Vendor,Category,Amount Paid,Payment Date
10 S. Riverside Property Owner LLC,Rental Expense,10610.96,1/17/2018
10 S. Riverside Property Owner LLC,Rental Expense,798.07,2/20/2018
10 S. Riverside Property Owner LLC,Rental Expense,9950.39,2/21/2018
10 S. Riverside Property Owner LLC,Rental Expense,10748.46,4/2/2018
10 S. Riverside Property Owner LLC,Rental Expense,10748.46,4/24/2018
10 S. Riverside Property Owner LLC,Rental Expense,798.07,5/22/2018
10 S. Riverside Property Owner LLC,Rental Expense,10248.9,5/22/2018
10 S. Riverside Property Owner LLC,Services,6495.76,5/29/2018
10 S. Riverside Property Owner LLC,Rental Expense,798.07,6/27/2018
10 S. Riverside Property Owner LLC,Rental Expense,10248.9,6/27/2018
10 S. Riverside Property Owner LLC,Rental Expense,798.07,7/27/2018
10 S. Riverside Property Owner LLC,Rental Expense,10248.9,7/27/2018
10 S. Riverside Property Owner LLC,Rental Expense,660.57,8/21/2018
10 S. Riverside Property Owner LLC,Rental Expense,10248.9,8/21/2018
10 S. Riverside Property Owner LLC,Rental Expense,798.07,9/25/2018
10 S. Riverside Property Owner LLC,Rental Expense,10248.9,9/25/2018
10 S. Riverside Property Owner LLC,Rental Expense,10248.9,10/30/2018
10 S. Riverside Property Owner LLC,Rental Expense,870.8,11/7/2018
10 S. Riverside Property Owner LLC,Rental Expense,11377,11/30/2018
2423 Partners  LLC,Rental Expense,12995.87,2/28/2018
401 Properties Lp C/O: Eric Janssen  Receiver #133,Rental Expense,23016.86,1/24/2018
401 Properties Lp C/O: Eric Janssen  Receiver #133,Rental Expense,23466.86,2/21/2018
401 Properties Lp C/O: Eric Janssen  Receiver #133,Rental Expense,23571.86,4/3/2018
401 Properties Lp C/O: Eric Janssen  Receiver #133,Rental Expense,25676.86,4/24/2018
401 Properties Lp C/O: Eric Janssen  Receiver #133,Rental Expense,26701.03,5/29/2018
401 Properties Lp C/O: Eric Janssen  Receiver #133,Rental Expense,27126.03,6/27/2018
401 Properties Lp C/O: Eric Janssen  Receiver #133,Rental Expense,26176.03,7/27/2018
401 Properties Lp C/O: Eric Janssen  Receiver #133,Rental Expense,27576.03,8/21/2018
401 Properties Lp C/O: Eric Janssen  Receiver #133,Rental Expense,23586.03,9/25/2018
401 Properties Lp C/O: Eric Janssen  Receiver #133,Rental Expense,23621.03,10/30/2018
401 Properties Lp C/O: Eric Janssen  Receiver #133,Rental Expense,24516.03,12/3/2018
440 South Lasalle St.(Chicago)Owner Llc,Rental Expense,127804.07,1/4/2018
440 South Lasalle St.(Chicago)Owner Llc,Rental Expense,256953.55,2/21/2018
440 South Lasalle St.(Chicago)Owner Llc,Rental Expense,127836.18,4/3/2018
440 South Lasalle St.(Chicago)Owner Llc,Rental Expense,128752.61,4/24/2018
440 South Lasalle St.(Chicago)Owner Llc,Rental Expense,120239.26,5/29/2018
440 South Lasalle St.(Chicago)Owner Llc,Rental Expense,127964.9,6/27/2018
440 South Lasalle St.(Chicago)Owner Llc,Rental Expense,129728.55,7/27/2018
440 South Lasalle St.(Chicago)Owner Llc,Rental Expense,134426.14,8/28/2018
440 South Lasalle St.(Chicago)Owner Llc,Rental Expense,130705.49,9/25/2018
440 South Lasalle St.(Chicago)Owner Llc,Rental Expense,129657.87,10/30/2018
440 South Lasalle St.(Chicago)Owner Llc,Rental Expense,187395.43,12/3/2018
A & L Relay Services Llc,Services,4675,9/5/2018
A M C Mechanical  Inc.,Materials,3959.6,3/1/2018
A M C Mechanical  Inc.,Services,3814.92,3/1/2018
A M C Mechanical  Inc.,Materials,3620.52,4/5/2018
A M C Mechanical  Inc.,Materials,1256.9,4/17/2018
A M C Mechanical  Inc.,Materials,1209.5,6/8/2018
A M C Mechanical  Inc.,Services,33512,8/15/2018
A M C Mechanical  Inc.,Materials,14565.07,10/22/2018
"A.L.L. Masonry Construction Co., Inc.",Capital Purchases,432481.43,2/8/2018
"A.L.L. Masonry Construction Co., Inc.",Capital Purchases,15711.77,7/2/2018
"A.L.L. Masonry Construction Co., Inc.",Capital Purchases,21588.23,7/2/2018
A-1 Equipment Sales,Services,3042.74,9/4/2018
A-Alert Exterminating Service,Services,45,1/2/2018
A-Alert Exterminating Service,Services,75,1/2/2018
A-Alert Exterminating Service,Services,105,1/2/2018
A-Alert Exterminating Service,Services,905,1/2/2018
A-Alert Exterminating Service,Services,45,1/10/2018
A-Alert Exterminating Service,Services,115,1/16/2018
A-Alert Exterminating Service,Services,30,1/19/2018
A-Alert Exterminating Service,Services,120,1/30/2018
A-Alert Exterminating Service,Services,75,1/30/2018
A-Alert Exterminating Service,Services,75,1/30/2018
A-Alert Exterminating Service,Services,75,1/30/2018
A-Alert Exterminating Service,Services,75,1/30/2018
A-Alert Exterminating Service,Services,115,1/30/2018
A-Alert Exterminating Service,Services,105,1/30/2018
A-Alert Exterminating Service,Services,75,2/1/2018
A-Alert Exterminating Service,Services,575,2/1/2018
A-Alert Exterminating Service,Services,45,2/13/2018
A-Alert Exterminating Service,Services,610,2/22/2018
A-Alert Exterminating Service,Services,75,2/23/2018
A-Alert Exterminating Service,Services,45,3/1/2018
A-Alert Exterminating Service,Services,75,3/6/2018
A-Alert Exterminating Service,Services,75,3/6/2018
A-Alert Exterminating Service,Services,210,3/6/2018
A-Alert Exterminating Service,Services,45,3/12/2018
A-Alert Exterminating Service,Services,150,3/12/2018
A-Alert Exterminating Service,Services,150,3/12/2018
A-Alert Exterminating Service,Services,150,3/12/2018
A-Alert Exterminating Service,Services,115,3/22/2018
A-Alert Exterminating Service,Services,135,3/22/2018
A-Alert Exterminating Service,Services,295,3/22/2018
A-Alert Exterminating Service,Services,45,4/2/2018
A-Alert Exterminating Service,Services,385,4/5/2018
A-Alert Exterminating Service,Services,115,4/6/2018
A-Alert Exterminating Service,Services,315,4/6/2018
A-Alert Exterminating Service,Services,180,4/16/2018
A-Alert Exterminating Service,Services,45,4/26/2018
A-Alert Exterminating Service,Services,75,4/26/2018
A-Alert Exterminating Service,Services,75,4/26/2018
A-Alert Exterminating Service,Services,75,4/26/2018
A-Alert Exterminating Service,Services,75,4/26/2018
A-Alert Exterminating Service,Services,75,4/26/2018
A-Alert Exterminating Service,Services,70,4/26/2018
A-Alert Exterminating Service,Services,295,5/4/2018
A-Alert Exterminating Service,Services,210,5/11/2018
A-Alert Exterminating Service,Services,180,5/14/2018
A-Alert Exterminating Service,Services,420,5/14/2018
A-Alert Exterminating Service,Services,45,5/30/2018
A-Alert Exterminating Service,Services,75,5/30/2018
A-Alert Exterminating Service,Services,75,5/30/2018
A-Alert Exterminating Service,Services,75,5/30/2018
A-Alert Exterminating Service,Services,115,5/30/2018
A-Alert Exterminating Service,Services,385,5/30/2018
A-Alert Exterminating Service,Services,295,5/31/2018
A-Alert Exterminating Service,Services,165,6/7/2018
A-Alert Exterminating Service,Services,75,6/7/2018
A-Alert Exterminating Service,Services,135,6/7/2018
A-Alert Exterminating Service,Services,45,6/8/2018
A-Alert Exterminating Service,Services,180,6/8/2018
A-Alert Exterminating Service,Services,240,6/15/2018
A-Alert Exterminating Service,Services,115,6/15/2018
A-Alert Exterminating Service,Services,75,6/21/2018
A-Alert Exterminating Service,Services,295,6/21/2018
A-Alert Exterminating Service,Services,75,6/25/2018
A-Alert Exterminating Service,Services,75,6/25/2018
A-Alert Exterminating Service,Services,75,6/25/2018
A-Alert Exterminating Service,Services,45,6/26/2018
A-Alert Exterminating Service,Services,135,6/26/2018
A-Alert Exterminating Service,Services,385,6/28/2018
A-Alert Exterminating Service,Services,75,7/9/2018
A-Alert Exterminating Service,Services,315,7/11/2018
A-Alert Exterminating Service,Services,30,7/12/2018
A-Alert Exterminating Service,Services,115,7/12/2018
A-Alert Exterminating Service,Services,45,7/23/2018
A-Alert Exterminating Service,Services,295,7/23/2018
A-Alert Exterminating Service,Services,210,7/26/2018
A-Alert Exterminating Service,Services,385,7/26/2018
A-Alert Exterminating Service,Services,45,7/30/2018
A-Alert Exterminating Service,Services,75,7/30/2018
A-Alert Exterminating Service,Services,75,7/30/2018
A-Alert Exterminating Service,Services,75,7/30/2018
A-Alert Exterminating Service,Services,115,8/6/2018
A-Alert Exterminating Service,Services,390,8/6/2018
A-Alert Exterminating Service,Services,30,8/14/2018
A-Alert Exterminating Service,Services,75,8/20/2018
A-Alert Exterminating Service,Services,285,8/20/2018
A-Alert Exterminating Service,Services,295,8/20/2018
A-Alert Exterminating Service,Services,75,9/4/2018
A-Alert Exterminating Service,Services,75,9/4/2018
A-Alert Exterminating Service,Services,75,9/4/2018
A-Alert Exterminating Service,Services,75,9/5/2018
A-Alert Exterminating Service,Services,75,10/1/2018
A-Alert Exterminating Service,Services,265,10/1/2018
A-Alert Exterminating Service,Services,135,10/2/2018
A-Alert Exterminating Service,Services,415,10/2/2018
A-Alert Exterminating Service,Services,105,10/12/2018
A-Alert Exterminating Service,Services,115,10/12/2018
A-Alert Exterminating Service,Services,390,10/12/2018
A-Alert Exterminating Service,Services,45,10/16/2018
A-Alert Exterminating Service,Services,150,10/16/2018
A-Alert Exterminating Service,Services,75,10/16/2018
A-Alert Exterminating Service,Services,75,10/16/2018
A-Alert Exterminating Service,Services,75,10/22/2018
A-Alert Exterminating Service,Services,520,10/22/2018
A-Alert Exterminating Service,Services,210,10/23/2018
A-Alert Exterminating Service,Services,150,10/23/2018
A-Alert Exterminating Service,Services,75,11/1/2018
A-Alert Exterminating Service,Services,385,11/1/2018
A-Alert Exterminating Service,Services,390,11/7/2018
A-Alert Exterminating Service,Services,45,11/8/2018
A-Alert Exterminating Service,Services,75,11/8/2018
A-Alert Exterminating Service,Services,75,11/8/2018
A-Alert Exterminating Service,Services,30,11/9/2018
A-Alert Exterminating Service,Services,115,11/9/2018
A-Alert Exterminating Service,Services,675,11/15/2018
A-Alert Exterminating Service,Services,75,11/28/2018
A-Alert Exterminating Service,Services,135,11/28/2018
A-Alert Exterminating Service,Services,235,11/28/2018
A-Alert Exterminating Service,Services,30,12/3/2018
A-Alert Exterminating Service,Services,120,12/12/2018
A-Alert Exterminating Service,Services,40,12/12/2018
A-Alert Exterminating Service,Services,75,12/12/2018
A-Alert Exterminating Service,Services,45,12/17/2018
A-Alert Exterminating Service,Services,75,12/17/2018
A-Alert Exterminating Service,Services,75,12/17/2018
A-Alert Exterminating Service,Services,75,12/17/2018
A-Alert Exterminating Service,Services,60,12/18/2018
A-Alert Exterminating Service,Services,850,12/18/2018
A-Alert Exterminating Service,Services,55,12/20/2018
Aaron Gulbransen,Services,53.42,2/5/2018
Aaron Gulbransen,Services,34.6,2/5/2018
Aaron Gulbransen,Services,350.38,2/5/2018
Aaron Gulbransen,Services,241.5,2/5/2018
Aaron Gulbransen,Services,115.76,3/15/2018
Aaron Gulbransen,Services,47.96,4/23/2018
Aaron Gulbransen,Services,70.41,6/20/2018
Aaron Gulbransen,Services,71.94,8/24/2018
Aaron Gulbransen,Services,47.96,9/17/2018
Aaron Maertins,Services,957,1/5/2018
Aaron Maertins,Services,5250,5/29/2018
Aaron Maertins,Services,52,7/10/2018
Aaron Sanderson,Services,125.9,5/16/2018
Aaron Sanderson,Services,83.93,8/10/2018
Aaron Sanderson,Services,83.93,12/12/2018
Aaron Torres,Services,32,4/4/2018
Aaron Torres,Services,42,11/30/2018
Aaron Willie,Services,85.6,1/23/2018
Aaron Willie,Services,102.72,1/23/2018
Aaron Willie,Services,69.76,2/15/2018
Aaron Willie,Services,23.98,2/15/2018
Aaron Willie,Services,176.58,3/19/2018
Aaron Willie,Services,23.98,3/19/2018
Aaron Willie,Services,117.72,7/19/2018
Aaron Willie,Services,104.64,7/19/2018
Aaron Willie,Services,117.72,8/14/2018
Aaron Willie,Services,34.88,8/14/2018
Aaron Willie,Services,43.6,12/3/2018
Aaron Willie,Services,34.88,12/3/2018
Aaron Willie,Services,34.88,12/3/2018
Aaron Willie,Services,11.99,12/3/2018
Abel Gomez,Services,3366.92,11/21/2018
Abel Lopez  Pantoja,Services,733.41,12/14/2018
Abraham R. Castellano,Services,98.1,12/13/2018
Abt,Materials,768,1/2/2018
Abt,Materials,498,1/11/2018
Abt,Services,29,1/11/2018
Abt,Materials,77,2/1/2018
Abt,Materials,1265,2/16/2018
Abt,Materials,280,5/14/2018
Abt,Materials,730,6/1/2018
Abt,Materials,174,7/2/2018
Abt,Services,6936,8/1/2018
Abt,Materials,701,8/22/2018
Abt,Services,890,10/1/2018
Abt,Materials,189,11/7/2018
Abt,Materials,527,11/7/2018
Abt,Materials,727,11/7/2018
Abt,Materials,826,11/7/2018
Aca Compliance Services  Inc.,Services,11999,2/6/2018
Accel Construction Services Group,Capital Purchases,47273.64,9/4/2018
Accel Construction Services Group,Capital Purchases,11184.3,9/19/2018
Accel Construction Services Group,Capital Purchases,38741.4,10/1/2018
Accel Construction Services Group,Capital Purchases,231897.01,10/1/2018
Accel Construction Services Group,Capital Purchases,140890.83,11/1/2018
Accel Construction Services Group,Capital Purchases,106271.53,11/9/2018
Accel Construction Services Group,Capital Purchases,307128.09,12/3/2018
Accurate Forms & Supplies,Services,2092,6/8/2018
Accurate Forms & Supplies,Services,750,6/8/2018
Accurate Reporting Co.  Inc.,Claims & Insurance,965,1/2/2018
Accurate Reporting Co.  Inc.,Claims & Insurance,2748.16,1/11/2018
Accurate Reporting Co.  Inc.,Services,1542.2,1/11/2018
Accurate Reporting Co.  Inc.,Claims & Insurance,62,2/6/2018
Accurate Reporting Co.  Inc.,Claims & Insurance,2646.25,2/6/2018
Accurate Reporting Co.  Inc.,Services,62,2/6/2018
Accurate Reporting Co.  Inc.,Services,1220.85,2/6/2018
Accurate Reporting Co.  Inc.,Claims & Insurance,2357.6,2/12/2018
Accurate Reporting Co.  Inc.,Services,62,2/12/2018
Accurate Reporting Co.  Inc.,Claims & Insurance,411.85,2/20/2018
Accurate Reporting Co.  Inc.,Claims & Insurance,2119.3,3/1/2018
Accurate Reporting Co.  Inc.,Services,1936.7,3/1/2018
Accurate Reporting Co.  Inc.,Services,186,3/1/2018
Accurate Reporting Co.  Inc.,Services,633.2,3/1/2018
Accurate Reporting Co.  Inc.,Claims & Insurance,1728.25,3/2/2018
Accurate Reporting Co.  Inc.,Services,3.5,3/2/2018
Accurate Reporting Co.  Inc.,Services,592.4,3/2/2018
Accurate Reporting Co.  Inc.,Claims & Insurance,1114.25,3/7/2018
Accurate Reporting Co.  Inc.,Claims & Insurance,180,3/9/2018
Accurate Reporting Co.  Inc.,Services,1149.6,3/9/2018
Accurate Reporting Co.  Inc.,Claims & Insurance,240.3,3/19/2018
Accurate Reporting Co.  Inc.,Services,1976.75,3/21/2018
Accurate Reporting Co.  Inc.,Claims & Insurance,684.1,4/11/2018
Accurate Reporting Co.  Inc.,Services,551.7,4/11/2018
Accurate Reporting Co.  Inc.,Services,1483.5,4/11/2018
Accurate Reporting Co.  Inc.,Claims & Insurance,1348.45,4/16/2018
Accurate Reporting Co.  Inc.,Claims & Insurance,1689.35,6/5/2018
Accurate Reporting Co.  Inc.,Claims & Insurance,3928.18,6/6/2018
Accurate Reporting Co.  Inc.,Claims & Insurance,112.5,6/6/2018
Accurate Reporting Co.  Inc.,Services,933.3,6/6/2018
Accurate Reporting Co.  Inc.,Services,1013.25,6/6/2018
Accurate Reporting Co.  Inc.,Services,889.1,6/6/2018
Accurate Reporting Co.  Inc.,Capital Purchases,143.9,6/7/2018
Accurate Reporting Co.  Inc.,Claims & Insurance,6438.6,6/7/2018
Accurate Reporting Co.  Inc.,Services,1048.15,6/7/2018
Accurate Reporting Co.  Inc.,Services,1588.8,6/7/2018
Accurate Reporting Co.  Inc.,Services,1301.1,6/7/2018
Accurate Reporting Co.  Inc.,Services,1481.3,6/7/2018
Accurate Reporting Co.  Inc.,Claims & Insurance,1770.1,6/14/2018
Accurate Reporting Co.  Inc.,Services,988.8,6/14/2018
Accurate Reporting Co.  Inc.,Services,789.95,6/14/2018
Accurate Reporting Co.  Inc.,Services,336.7,6/14/2018
Accurate Reporting Co.  Inc.,Claims & Insurance,726.15,6/18/2018
Accurate Reporting Co.  Inc.,Services,403.8,6/18/2018
Accurate Reporting Co.  Inc.,Services,1587.6,6/18/2018
Accurate Reporting Co.  Inc.,Claims & Insurance,118.8,6/25/2018
Accurate Reporting Co.  Inc.,Claims & Insurance,614.3,6/25/2018
Accurate Reporting Co.  Inc.,Services,185.65,6/25/2018
Accurate Reporting Co.  Inc.,Claims & Insurance,415.7,6/26/2018
Accurate Reporting Co.  Inc.,Claims & Insurance,234,6/28/2018
Accurate Reporting Co.  Inc.,Services,1172.2,6/28/2018
Accurate Reporting Co.  Inc.,Services,62,6/28/2018
Accurate Reporting Co.  Inc.,Claims & Insurance,4129.61,7/9/2018
Accurate Reporting Co.  Inc.,Claims & Insurance,2152.6,7/19/2018
Accurate Reporting Co.  Inc.,Services,382.4,7/19/2018
Accurate Reporting Co.  Inc.,Claims & Insurance,12015.67,8/1/2018
Accurate Reporting Co.  Inc.,Claims & Insurance,318.5,8/6/2018
Accurate Reporting Co.  Inc.,Claims & Insurance,4662.3,8/7/2018
Accurate Reporting Co.  Inc.,Claims & Insurance,1234.65,8/14/2018
Accurate Reporting Co.  Inc.,Claims & Insurance,525,8/20/2018
Accurate Reporting Co.  Inc.,Claims & Insurance,397.5,8/24/2018
Accurate Reporting Co.  Inc.,Services,484.45,8/28/2018
Accurate Reporting Co.  Inc.,Claims & Insurance,12609.13,9/4/2018
Accurate Reporting Co.  Inc.,Services,62,9/4/2018
Accurate Reporting Co.  Inc.,Services,674.5,9/4/2018
Accurate Reporting Co.  Inc.,Services,603.65,9/4/2018
Accurate Reporting Co.  Inc.,Services,1545.7,9/4/2018
Accurate Reporting Co.  Inc.,Services,572.2,9/4/2018
Accurate Reporting Co.  Inc.,Services,445.9,9/4/2018
Accurate Reporting Co.  Inc.,Services,249.1,9/5/2018
Accurate Reporting Co.  Inc.,Services,292.3,9/5/2018
Accurate Reporting Co.  Inc.,Claims & Insurance,681,9/18/2018
Accurate Reporting Co.  Inc.,Services,4435.25,9/18/2018
Accurate Reporting Co.  Inc.,Services,151,9/18/2018
Accurate Reporting Co.  Inc.,Claims & Insurance,641.15,9/24/2018
Accurate Reporting Co.  Inc.,Services,394.4,10/1/2018
Accurate Reporting Co.  Inc.,Claims & Insurance,91.95,10/4/2018
Accurate Reporting Co.  Inc.,Services,1288.25,10/4/2018
Accurate Reporting Co.  Inc.,Services,505.9,10/12/2018
Accurate Reporting Co.  Inc.,Claims & Insurance,473.4,10/15/2018
Accurate Reporting Co.  Inc.,Services,625.65,10/15/2018
Accurate Reporting Co.  Inc.,Claims & Insurance,12.9,10/16/2018
Accurate Reporting Co.  Inc.,Claims & Insurance,885.1,10/16/2018
Accurate Reporting Co.  Inc.,Claims & Insurance,224.9,10/22/2018
Accurate Reporting Co.  Inc.,Services,563.45,11/1/2018
Accurate Reporting Co.  Inc.,Claims & Insurance,886.64,11/12/2018
Accurate Reporting Co.  Inc.,Services,648.2,11/12/2018
Accurate Reporting Co.  Inc.,Services,444.05,11/12/2018
Accurate Reporting Co.  Inc.,Services,155,11/12/2018
Accurate Reporting Co.  Inc.,Services,297.1,11/12/2018
Accurate Reporting Co.  Inc.,Claims & Insurance,227.75,12/3/2018
Accurate Reporting Co.  Inc.,Claims & Insurance,155.6,12/3/2018
Accurate Reporting Co.  Inc.,Services,395.8,12/3/2018
Accurate Reporting Co.  Inc.,Services,645.7,12/3/2018
Accurate Reporting Co.  Inc.,Services,62,12/19/2018
Accurate Reporting Co.  Inc.,Services,1250.8,12/19/2018
Accurate Reporting Co.  Inc.,Services,3.5,12/19/2018
Accurate Reporting Co.  Inc.,Services,558.55,12/19/2018
Accurate Reporting Co.  Inc.,Services,861.15,12/19/2018
Ace Bakery,Services,40,8/7/2018
Ace Bakery,Services,405,8/7/2018
Aci Worldwide Corp.,Services,6120,1/9/2018
Aci Worldwide Corp.,Services,500,2/5/2018
Aci Worldwide Corp.,Services,28329,2/12/2018
Aci Worldwide Corp.,Services,1500,3/5/2018
Aci Worldwide Corp.,Services,24274,4/2/2018
Aci Worldwide Corp.,Services,1620,4/2/2018
Aci Worldwide Corp.,Services,24774,5/1/2018
Aci Worldwide Corp.,Services,5905,5/2/2018
Aci Worldwide Corp.,Services,1620,5/3/2018
Aci Worldwide Corp.,Services,24274,5/14/2018
Aci Worldwide Corp.,Services,24774,5/15/2018
Aci Worldwide Corp.,Services,73322,6/8/2018
Aci Worldwide Corp.,Services,15030,6/11/2018
Aci Worldwide Corp.,Services,500,8/17/2018
Aci Worldwide Corp.,Services,48548,9/4/2018
Aci Worldwide Corp.,Services,24274,9/18/2018
Aci Worldwide Corp.,Services,1000,10/3/2018
Aci Worldwide Corp.,Services,24274,11/8/2018
Aci Worldwide Corp.,Services,500,11/19/2018
Aci Worldwide Corp.,Services,500,12/3/2018
Adam Farence,Services,237.54,1/16/2018
Adam Farence,Services,113.36,2/26/2018
Adam Farence,Services,105.73,2/27/2018
Adam Farence,Services,643.65,4/26/2018
Adam Farence,Services,16.15,4/26/2018
Adam Farence,Services,507.94,7/19/2018
Adam Farence,Services,10.75,7/19/2018
Adam Farence,Services,56.68,8/15/2018
Adam Farence,Services,1.8,8/15/2018
Adam Farence,Services,235.44,8/20/2018
Adam Farence,Services,9,8/20/2018
Adam Farence,Services,89.38,9/10/2018
Adam Farence,Services,71.94,9/12/2018
Adam Farence,Services,191.3,10/17/2018
Adam Farence,Services,560.81,11/16/2018
Adam Farence,Services,56.68,12/20/2018
Adam Farence,Services,101.37,12/21/2018
Adam Gibson,Services,195,2/14/2018
Adam Gibson,Services,24.74,2/14/2018
Adam Gibson,Services,24.2,4/4/2018
Adam Gibson,Services,144.42,5/30/2018
Adam Gibson,Services,64.74,9/4/2018
Adam Gutierrez,Services,74.45,10/9/2018
Adam Haywood,Services,50.14,4/16/2018
Adam Haywood,Services,100.28,6/20/2018
Adam Haywood,Services,200.56,7/26/2018
Adam Haywood,Services,50.14,8/9/2018
Adam Haywood,Services,200.56,9/17/2018
Adam Haywood,Services,50.14,10/16/2018
Adam Krogul,Services,113.56,12/3/2018
Adam Krogul,Services,757.16,12/3/2018
Adam Krogul,Services,330,12/3/2018
Adam R. Page,Services,1087.87,9/27/2018
Adam R. Page,Services,2209.61,10/30/2018
Adam Singer,Services,160.88,3/8/2018
Adam Singer,Services,71.06,4/4/2018
Adam Singer,Services,71.06,8/2/2018
Adam Singer,Services,71.06,11/1/2018
Adam Singer,Services,38.8,11/21/2018
Adams & Westlake  Ltd.,Materials,8242.6,1/3/2018
Adams & Westlake  Ltd.,Materials,4121.3,2/12/2018
Adams & Westlake  Ltd.,Materials,6677.88,3/1/2018
Adams & Westlake  Ltd.,Materials,1262.8,3/8/2018
Adams & Westlake  Ltd.,Materials,20087.1,4/16/2018
Adams & Westlake  Ltd.,Materials,25065.86,4/17/2018
Adams & Westlake  Ltd.,Materials,168.3,5/1/2018
Adams & Westlake  Ltd.,Materials,10007.24,5/15/2018
Adams & Westlake  Ltd.,Materials,8701.16,6/14/2018
Adams & Westlake  Ltd.,Materials,4121.3,6/20/2018
Adams & Westlake  Ltd.,Materials,19593.43,6/28/2018
Adams & Westlake  Ltd.,Materials,19161.25,7/2/2018
Adams & Westlake  Ltd.,Materials,7239.28,7/12/2018
Adams & Westlake  Ltd.,Materials,13775.68,7/19/2018
Adams & Westlake  Ltd.,Materials,1415.56,8/13/2018
Adams & Westlake  Ltd.,Materials,7505.29,8/22/2018
Adams & Westlake  Ltd.,Materials,23614.43,9/5/2018
Adams & Westlake  Ltd.,Materials,1099.28,9/18/2018
Adams & Westlake  Ltd.,Materials,6813.44,11/8/2018
Adams & Westlake  Ltd.,Materials,9681.88,12/3/2018
Adams & Westlake  Ltd.,Materials,21275.25,12/17/2018
Adaptive Micro Systems Inc.,Services,125,1/3/2018
Adaptive Micro Systems Inc.,Materials,75,3/1/2018
Adaptive Micro Systems Inc.,Capital Purchases,209175,4/9/2018
Adaptive Micro Systems Inc.,Services,75,5/16/2018
Addison Electric  Inc.,Materials,125,2/12/2018
Addison Electric  Inc.,Materials,408.5,3/8/2018
Addison Electric  Inc.,Materials,1009.5,4/10/2018
Addison Electric  Inc.,Materials,336,4/11/2018
Addison Electric  Inc.,Materials,2296.5,6/22/2018
Addison Electric  Inc.,Materials,157.5,6/25/2018
Addison Electric  Inc.,Materials,198,8/16/2018
Addison Electric  Inc.,Materials,614,9/4/2018
Addison Electric  Inc.,Materials,1104,9/7/2018
Addison Electric  Inc.,Materials,759,10/23/2018
Addison Electric  Inc.,Materials,332,11/8/2018
Addison Electric  Inc.,Materials,340,12/3/2018
Addison Electric  Inc.,Materials,3510,12/13/2018
Adedayo Panaki,Services,4,4/16/2018
Adedayo Panaki,Services,1081.14,6/18/2018
Adolfo Nieto Bustamante,Services,169.5,5/2/2018
Adorama Inc,Services,7028.55,6/12/2018
"ADR Systems Of America, LLC",Claims & Insurance,10002,6/28/2018
"ADR Systems Of America, LLC",Claims & Insurance,5390,10/26/2018
Adrian Andrade,Services,621.5,4/26/2018
Adrian Andrade,Services,847.5,5/18/2018
Adrian J Ciesla,Services,174.33,8/24/2018
Adriana S. Mena,Services,6.25,8/2/2018
Advance Search Technical Staffing,Services,23280,1/5/2018
Advance Search Technical Staffing,Services,17520,3/1/2018
Advance Search Technical Staffing,Services,9200,3/15/2018
Advance Search Technical Staffing,Services,7360,4/17/2018
Advance Search Technical Staffing,Services,9840,5/16/2018
Advance Search Technical Staffing,Services,9040,6/25/2018
Advance Search Technical Staffing,Services,9100,7/2/2018
Advance Search Technical Staffing,Services,9880,7/12/2018
Advance Search Technical Staffing,Services,6160,8/1/2018
Advance Search Technical Staffing,Services,9720,9/5/2018
Advance Search Technical Staffing,Services,9880,9/18/2018
Advance Search Technical Staffing,Services,9200,10/1/2018
Advance Search Technical Staffing,Services,9720,10/25/2018
Advance Search Technical Staffing,Services,9680,11/8/2018
Advance Search Technical Staffing,Services,8320,12/5/2018
Advanced Occupational Medicine Spec.,Services,2660,1/10/2018
Advanced Occupational Medicine Spec.,Services,2000,1/16/2018
Advanced Occupational Medicine Spec.,Services,9640,3/1/2018
Advanced Orthopedic & Spine Care SC,Claims & Insurance,750,3/16/2018
Advanced Resources  Llc,Capital Purchases,1040,4/2/2018
Advanced Resources  Llc,Capital Purchases,1040,5/8/2018
Aecom Technical Services  Inc.,Capital Purchases,203274.97,2/1/2018
Aecom Technical Services  Inc.,Capital Purchases,41278.95,3/1/2018
Aecom Technical Services  Inc.,Capital Purchases,157446.06,3/1/2018
Aecom Technical Services  Inc.,Capital Purchases,135518.21,3/8/2018
Aecom Technical Services  Inc.,Capital Purchases,288183.6,4/2/2018
Aecom Technical Services  Inc.,Capital Purchases,38925.14,5/9/2018
Aecom Technical Services  Inc.,Capital Purchases,2103.61,5/16/2018
Aecom Technical Services  Inc.,Services,1836.59,5/16/2018
Aecom Technical Services  Inc.,Capital Purchases,411429.82,6/4/2018
Aecom Technical Services  Inc.,Capital Purchases,9216.53,7/2/2018
Aecom Technical Services  Inc.,Capital Purchases,16567.27,7/5/2018
Aecom Technical Services  Inc.,Capital Purchases,3916.08,7/12/2018
Aecom Technical Services  Inc.,Capital Purchases,19451.59,7/27/2018
Aecom Technical Services  Inc.,Capital Purchases,387249.7,8/1/2018
Aecom Technical Services  Inc.,Capital Purchases,5344.5,9/14/2018
Aecom Technical Services  Inc.,Capital Purchases,144854.07,10/1/2018
Aecom Technical Services  Inc.,Capital Purchases,17782.15,10/5/2018
Aecom Technical Services  Inc.,Services,2310.96,10/22/2018
Aecom Technical Services  Inc.,Capital Purchases,176636.85,11/1/2018
Aecom Technical Services  Inc.,Capital Purchases,190541.79,11/6/2018
Aecom Technical Services  Inc.,Capital Purchases,255.55,11/9/2018
Aecom Technical Services  Inc.,Services,11457.22,12/5/2018
Aecom Technical Services  Inc.,Capital Purchases,13534.66,12/28/2018
Afc International  Inc.,Services,275,1/16/2018
Afc International  Inc.,Services,275,1/16/2018
Afc International  Inc.,Services,645.9,12/13/2018
AFL Telecommunications LLC,Materials,22014,4/12/2018
AFL Telecommunications LLC,Materials,5473.26,9/4/2018
Agustin C. Ramirez,Services,1582,5/1/2018
Agustin C. Ramirez,Services,1695,5/18/2018
Agustin C. Ramirez,Services,1243,5/30/2018
Agustin C. Ramirez,Services,791,6/13/2018
Agustin C. Ramirez,Services,1582,9/24/2018
Ahmed Scales,Services,2425.92,4/4/2018
Aicpa Renewal Processing,Services,275,7/12/2018
Aircraft & Commercial Enterprises Inc.,Materials,3243,2/16/2018
Aircraft & Commercial Enterprises Inc.,Materials,1431,3/1/2018
Aircraft & Commercial Enterprises Inc.,Materials,6076,3/23/2018
Aircraft & Commercial Enterprises Inc.,Materials,1622,4/17/2018
Aircraft & Commercial Enterprises Inc.,Materials,1516,4/17/2018
Aircraft & Commercial Enterprises Inc.,Materials,4554,4/17/2018
Aircraft & Commercial Enterprises Inc.,Materials,5700,5/7/2018
Aircraft & Commercial Enterprises Inc.,Materials,396,5/7/2018
Aircraft & Commercial Enterprises Inc.,Materials,4132,6/8/2018
Aircraft & Commercial Enterprises Inc.,Materials,4560,6/8/2018
Aircraft & Commercial Enterprises Inc.,Capital Purchases,1920,6/25/2018
Aircraft & Commercial Enterprises Inc.,Capital Purchases,5103.5,9/11/2018
Aircraft & Commercial Enterprises Inc.,Materials,764,9/14/2018
Aircraft & Commercial Enterprises Inc.,Capital Purchases,1755,10/9/2018
Aircraft & Commercial Enterprises Inc.,Materials,764,10/12/2018
Aircraft & Commercial Enterprises Inc.,Capital Purchases,2262,10/25/2018
Aircraft & Commercial Enterprises Inc.,Capital Purchases,4642.5,11/8/2018
Aircraft & Commercial Enterprises Inc.,Capital Purchases,1819,12/3/2018
Aka Comp Solutions  Inc.,Capital Purchases,28048,3/14/2018
Aka Comp Solutions  Inc.,Services,196757.08,3/22/2018
Aka Comp Solutions  Inc.,Services,59484.49,4/27/2018
Aka Comp Solutions  Inc.,Capital Purchases,44800,8/13/2018
Aka Comp Solutions  Inc.,Capital Purchases,50072,8/16/2018
Aka Comp Solutions  Inc.,Services,20912,12/5/2018
Alan B. Bakotic,Services,427.8,3/1/2018
Alan B. Bakotic,Services,1001.28,3/1/2018
Alan B. Bakotic,Services,448,3/1/2018
Alan B. Bakotic,Services,215.26,6/19/2018
Alan B. Bakotic,Services,1269.06,6/19/2018
Alan B. Bakotic,Services,448,6/19/2018
Alan B. Bakotic,Services,240,6/19/2018
Alan B. Bakotic,Services,65.34,6/21/2018
Alan B. Bakotic,Services,296.48,6/22/2018
Alan B. Bakotic,Services,28.6,6/22/2018
Alan B. Bakotic,Services,454.72,6/22/2018
Alan B. Bakotic,Services,255,6/22/2018
Alan B. Bakotic,Services,81.54,8/24/2018
Alan B. Bakotic,Services,299.48,8/24/2018
Alan B. Bakotic,Services,177,8/24/2018
Alan B. Bakotic,Services,757,11/15/2018
Alan F. Gutierrez,Services,67.41,1/11/2018
Alan Feltes,Claims & Insurance,33.02,4/20/2018
Alan Ratliff,Services,107.92,2/27/2018
Alan Ratliff,Services,149.54,2/27/2018
Alan Ratliff,Services,669.38,2/27/2018
Alan Ratliff,Services,359.28,2/27/2018
Alan Ratliff,Services,357,2/27/2018
Alan Ratliff,Services,95.26,6/4/2018
Alan Ratliff,Services,151.42,6/4/2018
Alan Ratliff,Services,523.34,6/4/2018
Alan Ratliff,Services,382.88,6/4/2018
Alan Ratliff,Services,255,6/4/2018
Alan T. Hall II,Services,104.64,2/26/2018
Alan T. Hall II,Services,32.7,4/12/2018
Alan T. Hall II,Services,92.65,4/12/2018
Alan T. Hall II,Services,41.42,4/12/2018
Alan T. Hall II,Services,32.7,5/23/2018
Alan T. Hall II,Services,18.53,5/23/2018
Alan T. Hall II,Services,32.7,6/13/2018
Alan T. Hall II,Services,33.79,6/13/2018
Alan T. Hall II,Services,50.14,8/1/2018
Alan T. Hall II,Services,434.71,8/29/2018
Alan T. Hall II,Services,110.77,9/6/2018
Alan T. Hall II,Services,10.9,10/11/2018
Alan T. Hall II,Services,61.04,10/11/2018
Alan T. Hall II,Services,20.71,10/11/2018
Albert R. Pino,Claims & Insurance,5000,8/3/2018
Albertini Mfg. & Supply  Inc.,Capital Purchases,21000,5/2/2018
Alberto E. Ramirez,Services,912.66,3/8/2018
Alcohol & Drug Testing Services Llc,Services,12285.5,1/16/2018
Alcohol & Drug Testing Services Llc,Services,6126,2/1/2018
Alcohol & Drug Testing Services Llc,Services,7856,2/21/2018
Alcohol & Drug Testing Services Llc,Services,11385,3/23/2018
Alcohol & Drug Testing Services Llc,Services,6795.5,4/17/2018
Alcohol & Drug Testing Services Llc,Services,10039,5/25/2018
Alcohol & Drug Testing Services Llc,Services,5536,6/1/2018
Alcohol & Drug Testing Services Llc,Services,6908,6/8/2018
Alcohol & Drug Testing Services Llc,Services,6055,6/15/2018
Alcohol & Drug Testing Services Llc,Services,3806,8/30/2018
Alcohol & Drug Testing Services Llc,Services,14343.5,9/4/2018
Alcohol & Drug Testing Services Llc,Services,11971,9/17/2018
Alcohol & Drug Testing Services Llc,Services,6384.5,9/18/2018
Alcohol & Drug Testing Services Llc,Services,16544,11/1/2018
Alcohol & Drug Testing Services Llc,Services,16131.5,12/3/2018
Alejandro Reyes,Services,451.16,12/26/2018
Alejandro Sosa,Services,717.88,6/28/2018
Alejandro Sosa,Services,464.29,12/5/2018
Alesia S. Smith,Services,119.05,8/24/2018
Alexander Turchin,Claims & Insurance,1575,9/10/2018
Alexandra Dondiego,Services,1287.04,3/12/2018
Alexis Karas,Services,7.03,10/3/2018
Alexis Karas,Services,95.21,10/3/2018
Alexis Karas,Services,1111.79,10/3/2018
Alexis Karas,Services,211.5,10/3/2018
Alexis Karas,Services,50,10/3/2018
Alfonso Becerra,Services,32.7,4/18/2018
Alfonso Becerra,Services,44.85,6/7/2018
Alfonso Becerra,Services,98.1,8/21/2018
Alfonso Becerra,Services,32.7,11/7/2018
Alfonso Blanco,Services,15,4/18/2018
Alfonso Blanco,Services,12.12,12/17/2018
Alfred A. Kozmel  III,Services,35.97,4/30/2018
Alfred Benesch & Co.,Capital Purchases,1825.99,2/8/2018
Alfred Benesch & Co.,Services,17868.65,2/8/2018
Alfred Benesch & Co.,Capital Purchases,226633.81,2/13/2018
Alfred Benesch & Co.,Capital Purchases,404041.56,3/20/2018
Alfred Benesch & Co.,Capital Purchases,45219.12,5/30/2018
Alfred Benesch & Co.,Capital Purchases,16252.38,12/28/2018
Alfred Benesch & Co.,Capital Purchases,1966,12/28/2018
Alfred Olson,Services,794.41,10/24/2018
"Alfredo Godinez, Jr.",Services,52,6/14/2018
Alfredo Nieves,Claims & Insurance,24.32,3/20/2018
Alfredo Perez,Services,65.4,8/2/2018
Alicia Balonek,Claims & Insurance,34.08,1/8/2018
Alicia Long-Burrell,Services,116.22,3/1/2018
Alicia Long-Burrell,Services,10.73,3/1/2018
Align Elevation  Llc,Services,45195,2/2/2018
All Covered It Services From Konica Minolta,Capital Purchases,825,1/24/2018
All Covered It Services From Konica Minolta,Capital Purchases,2392.5,2/1/2018
All Covered It Services From Konica Minolta,Capital Purchases,4537.5,2/15/2018
All Covered It Services From Konica Minolta,Capital Purchases,1732.5,3/2/2018
All Covered It Services From Konica Minolta,Capital Purchases,3217.5,4/3/2018
All Covered It Services From Konica Minolta,Capital Purchases,3465,5/9/2018
All Covered It Services From Konica Minolta,Capital Purchases,3547.5,6/21/2018
All Covered It Services From Konica Minolta,Capital Purchases,1155,7/3/2018
All Covered It Services From Konica Minolta,Capital Purchases,165,9/5/2018
All Tech Energy  Inc.,Capital Purchases,30424.81,8/14/2018
All Tech Energy  Inc.,Capital Purchases,30424.81,10/18/2018
All Tech Energy  Inc.,Capital Purchases,75262.7,11/1/2018
All Tech Energy  Inc.,Capital Purchases,13137.68,12/3/2018
Allen M. Debraal,Services,106.95,1/5/2018
Allen M. Debraal,Services,33.25,2/15/2018
Allen M. Debraal,Services,76.5,2/15/2018
Allen M. Debraal,Services,96,3/9/2018
Allen M. Debraal,Services,29.65,5/4/2018
Allen M. Debraal,Services,1.5,5/4/2018
Allen M. Debraal,Services,43.2,6/27/2018
Allen M. Debraal,Services,172.5,6/27/2018
Allen M. Debraal,Services,4.56,12/13/2018
Allen Mahler,Services,943.73,8/3/2018
Allen Reddins,Services,256.99,5/2/2018
Allied Electronics Inc.,Materials,653,1/16/2018
Allied Electronics Inc.,Materials,336,4/17/2018
Allied Electronics Inc.,Materials,1706.6,7/5/2018
Allied Electronics Inc.,Materials,250.56,8/1/2018
Allied Electronics Inc.,Materials,1799.99,8/1/2018
Allied Electronics Inc.,Materials,57.5,8/7/2018
Allied Electronics Inc.,Capital Purchases,1155,9/4/2018
Allied Electronics Inc.,Materials,375.62,9/20/2018
Allison Buchwach,Services,242.65,4/26/2018
Allison Buchwach,Services,20.5,5/25/2018
Allison Buchwach,Services,595.99,5/25/2018
Allison Buchwach,Services,241.5,5/25/2018
Alma Cervantes,Services,9468,6/15/2018
Alonti Deli,Services,15,2/6/2018
Alonzo D Smith,Services,12813.14,5/9/2018
Alonzo D Smith,Services,299.48,8/24/2018
Alonzo D Smith,Services,177,8/24/2018
Alonzo D Smith,Services,60,8/29/2018
Alonzo D Smith,Services,249.56,12/5/2018
Aloysius Smith,Services,505.42,6/1/2018
Alstom Signaling  Inc.,Materials,10395.8,1/9/2018
Alstom Signaling  Inc.,Materials,16078.74,1/22/2018
Alstom Signaling  Inc.,Materials,2798,1/22/2018
Alstom Signaling  Inc.,Materials,10239.75,2/22/2018
Alstom Signaling  Inc.,Materials,3320.9,3/1/2018
Alstom Signaling  Inc.,Materials,15476.01,3/8/2018
Alstom Signaling  Inc.,Materials,38352.14,3/14/2018
Alstom Signaling  Inc.,Materials,1500,3/14/2018
Alstom Signaling  Inc.,Materials,1310.46,6/25/2018
Alstom Signaling  Inc.,Materials,873.64,8/16/2018
Alstom Signaling  Inc.,Materials,6356.32,8/17/2018
Alstom Signaling  Inc.,Materials,20503.44,8/22/2018
Alstom Signaling Operation  LLC,Capital Purchases,32634.49,1/2/2018
Alstom Signaling Operation  LLC,Capital Purchases,21528.32,1/2/2018
Alstom Signaling Operation  LLC,Materials,9105,1/4/2018
Alstom Signaling Operation  LLC,Materials,20162.1,1/4/2018
Alstom Signaling Operation  LLC,Services,3035,1/4/2018
Alstom Signaling Operation  LLC,Capital Purchases,26809.7,1/8/2018
Alstom Signaling Operation  LLC,Capital Purchases,2383.81,1/18/2018
Alstom Signaling Operation  LLC,Materials,45766.94,1/18/2018
Alstom Signaling Operation  LLC,Services,9105,1/18/2018
Alstom Signaling Operation  LLC,Services,890,1/18/2018
Alstom Signaling Operation  LLC,Capital Purchases,1650.72,1/22/2018
Alstom Signaling Operation  LLC,Capital Purchases,225586.99,2/1/2018
Alstom Signaling Operation  LLC,Services,1975,2/22/2018
Alstom Signaling Operation  LLC,Materials,187.68,2/26/2018
Alstom Signaling Operation  LLC,Capital Purchases,1974167.14,3/1/2018
Alstom Signaling Operation  LLC,Materials,5321.16,4/19/2018
Alstom Signaling Operation  LLC,Capital Purchases,9589.75,5/1/2018
Alstom Signaling Operation  LLC,Materials,4072.9,5/7/2018
Alstom Signaling Operation  LLC,Capital Purchases,237580,5/9/2018
Alstom Signaling Operation  LLC,Capital Purchases,157212.83,5/9/2018
Alstom Signaling Operation  LLC,Capital Purchases,61436.77,5/10/2018
Alstom Signaling Operation  LLC,Materials,10142.52,5/11/2018
Alstom Signaling Operation  LLC,Services,340,5/11/2018
Alstom Signaling Operation  LLC,Capital Purchases,2236.72,5/15/2018
Alstom Signaling Operation  LLC,Capital Purchases,23241.99,5/15/2018
Alstom Signaling Operation  LLC,Capital Purchases,17627.69,5/16/2018
Alstom Signaling Operation  LLC,Services,180,5/16/2018
Alstom Signaling Operation  LLC,Capital Purchases,1371.96,5/23/2018
Alstom Signaling Operation  LLC,Capital Purchases,2561.35,6/1/2018
Alstom Signaling Operation  LLC,Capital Purchases,33236.29,6/5/2018
Alstom Signaling Operation  LLC,Capital Purchases,34341.69,6/7/2018
Alstom Signaling Operation  LLC,Capital Purchases,9328.85,6/11/2018
Alstom Signaling Operation  LLC,Capital Purchases,30514.63,6/18/2018
Alstom Signaling Operation  LLC,Capital Purchases,299.85,6/18/2018
Alstom Signaling Operation  LLC,Capital Purchases,26060.72,6/19/2018
Alstom Signaling Operation  LLC,Materials,12671.46,6/20/2018
Alstom Signaling Operation  LLC,Capital Purchases,6932.08,6/20/2018
Alstom Signaling Operation  LLC,Materials,32453,6/21/2018
Alstom Signaling Operation  LLC,Capital Purchases,2050,6/21/2018
Alstom Signaling Operation  LLC,Services,1090,6/21/2018
Alstom Signaling Operation  LLC,Materials,1629.16,6/22/2018
Alstom Signaling Operation  LLC,Services,3035,6/22/2018
Alstom Signaling Operation  LLC,Services,300,6/22/2018
Alstom Signaling Operation  LLC,Capital Purchases,2121.6,6/25/2018
Alstom Signaling Operation  LLC,Capital Purchases,5801.7,6/26/2018
Alstom Signaling Operation  LLC,Capital Purchases,162.4,6/26/2018
Alstom Signaling Operation  LLC,Capital Purchases,847.5,6/28/2018
Alstom Signaling Operation  LLC,Capital Purchases,406118,7/2/2018
Alstom Signaling Operation  LLC,Capital Purchases,473841.18,7/2/2018
Alstom Signaling Operation  LLC,Capital Purchases,106.26,7/3/2018
Alstom Signaling Operation  LLC,Capital Purchases,177.84,7/6/2018
Alstom Signaling Operation  LLC,Capital Purchases,8266.02,7/11/2018
Alstom Signaling Operation  LLC,Materials,78151.6,7/12/2018
Alstom Signaling Operation  LLC,Capital Purchases,99708.87,7/23/2018
Alstom Signaling Operation  LLC,Capital Purchases,112027.07,8/1/2018
Alstom Signaling Operation  LLC,Capital Purchases,852.08,8/2/2018
Alstom Signaling Operation  LLC,Services,150,8/17/2018
Alstom Signaling Operation  LLC,Capital Purchases,4652.83,8/20/2018
Alstom Signaling Operation  LLC,Materials,16936,8/22/2018
Alstom Signaling Operation  LLC,Capital Purchases,1139.84,8/22/2018
Alstom Signaling Operation  LLC,Capital Purchases,17910.09,8/24/2018
Alstom Signaling Operation  LLC,Services,1000,8/31/2018
Alstom Signaling Operation  LLC,Materials,11482.36,9/4/2018
Alstom Signaling Operation  LLC,Capital Purchases,51112.86,9/4/2018
Alstom Signaling Operation  LLC,Services,1000,9/4/2018
Alstom Signaling Operation  LLC,Services,3000,9/6/2018
Alstom Signaling Operation  LLC,Capital Purchases,299.52,9/17/2018
Alstom Signaling Operation  LLC,Capital Purchases,1139.84,9/18/2018
Alstom Signaling Operation  LLC,Materials,7452.96,9/24/2018
Alstom Signaling Operation  LLC,Capital Purchases,2430,9/24/2018
Alstom Signaling Operation  LLC,Materials,4344,9/25/2018
Alstom Signaling Operation  LLC,Capital Purchases,11880.36,10/1/2018
Alstom Signaling Operation  LLC,Capital Purchases,913.29,10/1/2018
Alstom Signaling Operation  LLC,Capital Purchases,707.2,10/2/2018
Alstom Signaling Operation  LLC,Services,145,10/3/2018
Alstom Signaling Operation  LLC,Capital Purchases,1060.8,10/4/2018
Alstom Signaling Operation  LLC,Services,1000,10/12/2018
Alstom Signaling Operation  LLC,Capital Purchases,9706.31,10/16/2018
Alstom Signaling Operation  LLC,Capital Purchases,17667.52,10/18/2018
Alstom Signaling Operation  LLC,Materials,2574.08,10/18/2018
Alstom Signaling Operation  LLC,Services,8000,10/25/2018
Alstom Signaling Operation  LLC,Capital Purchases,2941.68,10/29/2018
Alstom Signaling Operation  LLC,Capital Purchases,12004.22,11/1/2018
Alstom Signaling Operation  LLC,Capital Purchases,3074.06,11/8/2018
Alstom Signaling Operation  LLC,Materials,14890.72,11/9/2018
Alstom Signaling Operation  LLC,Capital Purchases,1980.06,11/16/2018
Alstom Signaling Operation  LLC,Capital Purchases,4847.6,11/27/2018
Alstom Signaling Operation  LLC,Materials,1925.24,12/3/2018
Alstom Signaling Operation  LLC,Materials,909.52,12/4/2018
Alstom Signaling Operation  LLC,Capital Purchases,1743.04,12/4/2018
Alstom Signaling Operation  LLC,Services,545,12/4/2018
Alstom Signaling Operation  LLC,Capital Purchases,2841.28,12/10/2018
Alstom Signaling Operation  LLC,Materials,6528,12/11/2018
Alstom Signaling Operation  LLC,Capital Purchases,9070.83,12/12/2018
Alstom Signaling Operation  LLC,Materials,3639,12/13/2018
Alstom Signaling Operation  LLC,Capital Purchases,18250,12/14/2018
Alstom Signaling Operation  LLC,Materials,2689.44,12/19/2018
Alstom Signaling Operation  LLC,Capital Purchases,5880.32,12/21/2018
Alstom Signaling Operation LLC,Materials,5410.89,1/8/2018
Alstom Signaling Operation LLC,Materials,220,1/8/2018
Alstom Signaling Operation LLC,Services,1630,1/8/2018
Alstom Signaling Operation LLC,Capital Purchases,60375.6,1/9/2018
Alstom Signaling Operation LLC,Materials,1628,1/19/2018
Alstom Signaling Operation LLC,Capital Purchases,46717,2/1/2018
Alstom Signaling Operation LLC,Services,2095,2/21/2018
Alstom Signaling Operation LLC,Services,435,2/22/2018
Alstom Signaling Operation LLC,Services,3340,2/23/2018
Alstom Signaling Operation LLC,Services,780,2/26/2018
Alstom Signaling Operation LLC,Services,375,3/1/2018
Alstom Signaling Operation LLC,Services,1343,3/1/2018
Alstom Signaling Operation LLC,Services,2825,3/2/2018
Alstom Signaling Operation LLC,Services,4115,3/5/2018
Alstom Signaling Operation LLC,Services,1540,4/9/2018
Alstom Signaling Operation LLC,Services,440,4/11/2018
Alstom Signaling Operation LLC,Services,310,4/24/2018
Alstom Signaling Operation LLC,Services,620,4/26/2018
Alstom Signaling Operation LLC,Services,6515,4/27/2018
Alstom Signaling Operation LLC,Services,565,5/3/2018
Alstom Signaling Operation LLC,Services,1470,5/7/2018
Alstom Signaling Operation LLC,Services,565,5/8/2018
Alstom Signaling Operation LLC,Services,2245,5/11/2018
Alstom Signaling Operation LLC,Materials,850,5/16/2018
Alstom Signaling Operation LLC,Services,450,5/16/2018
Alstom Signaling Operation LLC,Services,370,5/17/2018
Alstom Signaling Operation LLC,Services,2010,5/29/2018
Alstom Signaling Operation LLC,Services,145,6/7/2018
Alstom Signaling Operation LLC,Services,1730,6/8/2018
Alstom Signaling Operation LLC,Services,1270,6/11/2018
Alstom Signaling Operation LLC,Services,4925,6/20/2018
Alstom Signaling Operation LLC,Services,460,6/20/2018
Alstom Signaling Operation LLC,Services,145,6/21/2018
Alstom Signaling Operation LLC,Services,270,6/21/2018
Alstom Signaling Operation LLC,Services,3605,6/21/2018
Alstom Signaling Operation LLC,Services,280,6/22/2018
Alstom Signaling Operation LLC,Services,155,6/26/2018
Alstom Signaling Operation LLC,Services,315,8/17/2018
Alstom Signaling Operation LLC,Services,270,9/24/2018
Alstom Signaling Operation LLC,Materials,850,10/1/2018
Alstom Signaling Operation LLC,Services,255,10/1/2018
Alstom Signaling Operation LLC,Materials,2200,10/3/2018
Alstom Transportation  Inc.,Materials,78500,1/16/2018
Alstom Transportation  Inc.,Materials,40820,2/1/2018
Alstom Transportation  Inc.,Materials,128740,2/12/2018
Alstom Transportation  Inc.,Materials,81640,3/6/2018
Alstom Transportation  Inc.,Materials,209040,3/21/2018
Alstom Transportation  Inc.,Materials,35880,3/21/2018
Alstom Transportation  Inc.,Materials,81640,4/13/2018
Alstom Transportation  Inc.,Materials,40820,4/16/2018
Alstom Transportation  Inc.,Materials,34840,4/27/2018
Alstom Transportation  Inc.,Materials,5980,4/27/2018
Alstom Transportation  Inc.,Materials,69680,5/1/2018
Alstom Transportation  Inc.,Materials,11960,5/1/2018
Alstom Transportation  Inc.,Materials,40820,6/25/2018
Alstom Transportation  Inc.,Materials,34840,7/2/2018
Alstom Transportation  Inc.,Materials,5980,7/2/2018
Alstom Transportation  Inc.,Materials,156110,9/19/2018
Alstom Transportation  Inc.,Materials,29824,9/19/2018
Alstom Transportation  Inc.,Materials,123950,9/20/2018
Alstom Transportation  Inc.,Materials,23680,9/20/2018
Alstom Transportation  Inc.,Services,1500,10/1/2018
Alstom Transportation  Inc.,Materials,388960,11/15/2018
Alstom Transportation  Inc.,Materials,198220,12/12/2018
Alternate Power  Inc.,Services,3699.74,1/3/2018
Alternate Power  Inc.,Services,8559.34,1/3/2018
Alternate Power  Inc.,Services,790.85,1/3/2018
Alternate Power  Inc.,Services,10856.48,2/1/2018
Alternate Power  Inc.,Services,3434.6,2/22/2018
Alternate Power  Inc.,Services,8356.64,3/1/2018
Alternate Power  Inc.,Services,163.92,3/1/2018
Alternate Power  Inc.,Services,4921.32,4/5/2018
Alternate Power  Inc.,Services,1366.5,6/6/2018
Alternate Power  Inc.,Materials,580.37,7/24/2018
Alternate Power  Inc.,Materials,382.27,7/24/2018
Alternate Power  Inc.,Services,1219.1,7/24/2018
Alternate Power  Inc.,Services,573.37,8/1/2018
Alternate Power  Inc.,Services,3099.43,8/6/2018
Alternate Power  Inc.,Services,3812.73,9/4/2018
Alternate Power  Inc.,Services,2519.21,9/4/2018
Alternate Power  Inc.,Services,487.05,12/3/2018
Alternate Power  Inc.,Services,569.59,12/11/2018
Altorfer Industries Inc.,Materials,4531.31,1/23/2018
Altorfer Industries Inc.,Materials,215.66,3/1/2018
Altorfer Industries Inc.,Materials,159.43,3/2/2018
Altorfer Industries Inc.,Materials,898.26,3/8/2018
Altorfer Industries Inc.,Materials,1872.3,3/14/2018
Altorfer Industries Inc.,Materials,2797.16,3/15/2018
Altorfer Industries Inc.,Materials,2356.71,3/28/2018
Altorfer Industries Inc.,Materials,3142.28,3/29/2018
Altorfer Industries Inc.,Materials,308.82,4/2/2018
Altorfer Industries Inc.,Materials,349.32,4/2/2018
Altorfer Industries Inc.,Services,1303.94,4/2/2018
Altorfer Industries Inc.,Materials,9596.56,4/3/2018
Altorfer Industries Inc.,Materials,195.22,4/3/2018
Altorfer Industries Inc.,Materials,11.64,4/17/2018
Altorfer Industries Inc.,Materials,5615.91,4/24/2018
Altorfer Industries Inc.,Materials,2450,5/1/2018
Altorfer Industries Inc.,Materials,2450,5/1/2018
Altorfer Industries Inc.,Materials,595.01,5/3/2018
Altorfer Industries Inc.,Materials,35.6,5/22/2018
Altorfer Industries Inc.,Materials,1078.81,5/22/2018
Altorfer Industries Inc.,Materials,96.91,6/13/2018
Altorfer Industries Inc.,Materials,1100.32,6/18/2018
Altorfer Industries Inc.,Materials,2633.07,6/20/2018
Altorfer Industries Inc.,Materials,50.93,6/20/2018
Altorfer Industries Inc.,Materials,1714.04,7/10/2018
Altorfer Industries Inc.,Materials,1777.98,7/18/2018
Altorfer Industries Inc.,Materials,253.26,7/18/2018
Altorfer Industries Inc.,Materials,972.3,7/24/2018
Altorfer Industries Inc.,Materials,493.43,7/26/2018
Altorfer Industries Inc.,Materials,163.28,7/31/2018
Altorfer Industries Inc.,Materials,1026.78,8/1/2018
Altorfer Industries Inc.,Materials,179.8,8/1/2018
Altorfer Industries Inc.,Materials,1581,8/16/2018
Altorfer Industries Inc.,Materials,75.66,8/16/2018
Altorfer Industries Inc.,Materials,281.5,8/16/2018
Altorfer Industries Inc.,Materials,3570.36,9/4/2018
Altorfer Industries Inc.,Materials,1317.78,9/4/2018
Altorfer Industries Inc.,Materials,349.32,9/24/2018
Altorfer Industries Inc.,Materials,337.7,9/25/2018
Altorfer Industries Inc.,Materials,4892.42,10/1/2018
Altorfer Industries Inc.,Materials,667.8,10/1/2018
Altorfer Industries Inc.,Materials,2142.76,10/18/2018
Altorfer Industries Inc.,Materials,252.42,11/2/2018
Altorfer Industries Inc.,Materials,392.71,11/26/2018
Altorfer Industries Inc.,Services,4833.14,11/26/2018
Altorfer Industries Inc.,Services,995,11/26/2018
Altorfer Industries Inc.,Materials,339.04,11/28/2018
Altorfer Industries Inc.,Services,2886.95,11/28/2018
Alvarez  Inc.,Services,2212,5/15/2018
Alvarez  Inc.,Services,2558,5/15/2018
Alvarez  Inc.,Services,2212,6/8/2018
Alvarez  Inc.,Services,2558,6/8/2018
Alvarez  Inc.,Services,4424,8/6/2018
Alvarez  Inc.,Services,5116,8/6/2018
Alvarez  Inc.,Services,2212,9/5/2018
Alvarez  Inc.,Services,2558,9/5/2018
Alvarez  Inc.,Services,2212,10/12/2018
Alvarez  Inc.,Services,2558,10/12/2018
Alvarez  Inc.,Materials,12300,10/22/2018
Alvarez  Inc.,Services,2212,11/7/2018
Alvarez  Inc.,Services,2558,11/7/2018
Alvarez  Inc.,Services,2212,12/5/2018
Alvarez  Inc.,Services,2558,12/5/2018
Alvin Toro,Services,728.05,3/16/2018
Alvin Toro,Services,17.44,11/21/2018
Alvin Toro,Services,510.12,11/21/2018
Alvin Toro,Services,274.5,11/21/2018
Alvin Toro,Services,25,11/21/2018
Alyssa M. Battaglia-Hofmann,Services,28,6/22/2018
Alyssa M. Battaglia-Hofmann,Services,33.39,6/22/2018
Alyssa M. Battaglia-Hofmann,Services,423.34,6/22/2018
Alyssa M. Battaglia-Hofmann,Services,103.5,6/22/2018
Amalgamated Services  Inc.,Materials,190.84,1/9/2018
Amalgamated Services  Inc.,Services,2288,1/9/2018
Amalgamated Services  Inc.,Materials,591.64,1/10/2018
Amalgamated Services  Inc.,Services,4160,1/10/2018
Amalgamated Services  Inc.,Materials,1281.91,3/1/2018
Amalgamated Services  Inc.,Services,5755,3/1/2018
Amalgamated Services  Inc.,Materials,34.97,3/23/2018
Amalgamated Services  Inc.,Services,1769,3/23/2018
Amalgamated Services  Inc.,Materials,1528.89,4/9/2018
Amalgamated Services  Inc.,Services,6888,4/9/2018
Amalgamated Services  Inc.,Materials,1087.27,4/17/2018
Amalgamated Services  Inc.,Services,3867,4/17/2018
Amalgamated Services  Inc.,Services,7063.91,5/16/2018
Amalgamated Services  Inc.,Services,1464,6/8/2018
Amalgamated Services  Inc.,Services,1952,6/22/2018
Amalgamated Services  Inc.,Services,832,7/2/2018
Amalgamated Services  Inc.,Materials,6962.78,8/1/2018
Amalgamated Services  Inc.,Services,17316,8/1/2018
Amalgamated Services  Inc.,Services,840,8/6/2018
Amalgamated Services  Inc.,Services,1320,8/20/2018
Amalgamated Services  Inc.,Materials,2566.31,9/4/2018
Amalgamated Services  Inc.,Services,1777,9/4/2018
Amalgamated Services  Inc.,Services,120.62,9/7/2018
Amalgamated Services  Inc.,Materials,1735.54,10/1/2018
Amalgamated Services  Inc.,Services,12436.94,10/1/2018
Amalgamated Services  Inc.,Materials,246.24,10/3/2018
Amalgamated Services  Inc.,Services,1260,10/3/2018
Amalgamated Services  Inc.,Materials,18.02,10/22/2018
Amalgamated Services  Inc.,Services,2194,10/22/2018
Amalgamated Services  Inc.,Materials,1564.48,10/26/2018
Amalgamated Services  Inc.,Services,4408,10/26/2018
Amalgamated Services  Inc.,Materials,137.84,11/1/2018
Amalgamated Services  Inc.,Services,992,11/1/2018
Amalgamated Services  Inc.,Materials,2884.29,11/7/2018
Amalgamated Services  Inc.,Services,3320,11/7/2018
Amalgamated Services  Inc.,Materials,2212.32,11/16/2018
Amalgamated Services  Inc.,Services,4200,11/16/2018
Amalgamated Services  Inc.,Materials,113,11/27/2018
Amalgamated Services  Inc.,Services,1680,11/27/2018
Amalgamated Services  Inc.,Materials,270.83,12/5/2018
Amalgamated Services  Inc.,Services,5040,12/5/2018
Amalgamated Services  Inc.,Materials,1076.85,12/11/2018
Amalgamated Services  Inc.,Services,9450,12/11/2018
Amalgamated Services  Inc.,Materials,87.66,12/13/2018
Amalgamated Services  Inc.,Services,2232,12/13/2018
Amalgamated Services  Inc.,Materials,389.43,12/17/2018
Amalgamated Services  Inc.,Services,1680,12/17/2018
American Assn.Of Railroad Superint.,Services,75,2/13/2018
American Bar Assn.,Services,41.98,2/20/2018
American Bar Assn.,Services,133,5/17/2018
American Battery Charging Inc.,Materials,17446,9/26/2018
American Building Services  Llc,Services,2788.8,4/17/2018
American Building Services  Llc,Services,1778.35,5/16/2018
American Building Services  Llc,Services,3634.58,8/1/2018
American Building Services  Llc,Services,4822.47,8/6/2018
American Building Services  Llc,Services,6113.34,9/14/2018
American Building Services  Llc,Services,13220.94,12/19/2018
American Building Services  Llc,Materials,202,12/20/2018
American Building Services  Llc,Services,7662.5,12/20/2018
American Calibration  Inc.,Materials,866,1/2/2018
American Calibration  Inc.,Services,1110.65,1/9/2018
American Calibration  Inc.,Services,665,1/10/2018
American Calibration  Inc.,Services,1119.65,1/10/2018
American Calibration  Inc.,Services,497.25,1/10/2018
American Calibration  Inc.,Materials,99,1/16/2018
American Calibration  Inc.,Services,1274.08,2/1/2018
American Calibration  Inc.,Services,1485.1,2/7/2018
American Calibration  Inc.,Services,132,2/8/2018
American Calibration  Inc.,Services,132,2/12/2018
American Calibration  Inc.,Services,300.35,2/12/2018
American Calibration  Inc.,Services,1302.5,2/12/2018
American Calibration  Inc.,Services,132,3/5/2018
American Calibration  Inc.,Services,607,3/5/2018
American Calibration  Inc.,Services,66,3/5/2018
American Calibration  Inc.,Materials,436,3/22/2018
American Calibration  Inc.,Services,497,3/22/2018
American Calibration  Inc.,Services,66,3/22/2018
American Calibration  Inc.,Materials,1013.25,6/7/2018
American Calibration  Inc.,Materials,175,6/7/2018
American Calibration  Inc.,Services,1134,6/7/2018
American Calibration  Inc.,Services,0,6/7/2018
American Calibration  Inc.,Services,742.95,6/7/2018
American Calibration  Inc.,Services,968.5,6/7/2018
American Calibration  Inc.,Materials,132,6/12/2018
American Calibration  Inc.,Services,401,6/12/2018
American Calibration  Inc.,Materials,1056,6/15/2018
American Calibration  Inc.,Materials,330,6/15/2018
American Calibration  Inc.,Services,418.5,6/15/2018
American Calibration  Inc.,Services,1691,6/22/2018
American Calibration  Inc.,Services,132,6/22/2018
American Calibration  Inc.,Services,66,7/2/2018
American Calibration  Inc.,Services,568,7/12/2018
American Calibration  Inc.,Materials,1896,8/1/2018
American Calibration  Inc.,Services,858,8/1/2018
American Calibration  Inc.,Services,132,8/15/2018
American Calibration  Inc.,Services,724.2,9/4/2018
American Calibration  Inc.,Services,185,9/4/2018
American Calibration  Inc.,Services,66,9/4/2018
American Calibration  Inc.,Materials,153.2,9/17/2018
American Calibration  Inc.,Materials,66,10/1/2018
American Calibration  Inc.,Services,171,10/1/2018
American Calibration  Inc.,Services,66,10/3/2018
American Calibration  Inc.,Services,198,10/3/2018
American Calibration  Inc.,Services,264,10/5/2018
American Calibration  Inc.,Services,1502.8,10/5/2018
American Calibration  Inc.,Materials,297,10/12/2018
American Calibration  Inc.,Materials,196.8,11/1/2018
American Calibration  Inc.,Materials,71,11/1/2018
American Calibration  Inc.,Materials,198,11/1/2018
American Calibration  Inc.,Services,132,11/1/2018
American Calibration  Inc.,Services,396,11/1/2018
American Calibration  Inc.,Services,1500,11/1/2018
American Calibration  Inc.,Services,132,11/1/2018
American Calibration  Inc.,Services,66,11/1/2018
American Calibration  Inc.,Services,1,11/1/2018
American Calibration  Inc.,Services,462,11/1/2018
American Calibration  Inc.,Services,4,12/3/2018
American Calibration  Inc.,Services,114.45,12/3/2018
American Calibration  Inc.,Services,132,12/3/2018
American Calibration  Inc.,Services,132,12/20/2018
"American Center for Spine & Neurosurgery, LLC",Claims & Insurance,1200,1/2/2018
American Inst. Of Architects,Services,554.25,5/2/2018
American Institute Of Architects,Services,554.25,5/7/2018
American Management Association International,Services,2445,4/24/2018
American Planning Assn.,Services,644,2/27/2018
American Planning Assn.,Services,644,9/7/2018
American Public Transportation Ass Meeting Department Apta,Services,850,1/8/2018
American Public Transportation Ass Meeting Department Apta,Services,1300,1/12/2018
American Public Transportation Ass Meeting Department Apta,Services,1700,2/6/2018
American Public Transportation Ass Meeting Department Apta,Services,145,4/4/2018
American Public Transportation Ass Meeting Department Apta,Services,3500,4/18/2018
American Public Transportation Ass Meeting Department Apta,Services,875,7/13/2018
American Public Transportation Ass Meeting Department Apta,Services,6000,7/27/2018
American Public Transportation Ass Meeting Department Apta,Services,925,9/4/2018
American Public Transportation Ass Meeting Department Apta,Services,925,9/11/2018
American Recycling & Disposal  Inc.,Capital Purchases,32336.47,2/12/2018
American Recycling & Disposal  Inc.,Services,3879.34,2/12/2018
American Recycling & Disposal  Inc.,Capital Purchases,31754.06,3/1/2018
American Recycling & Disposal  Inc.,Capital Purchases,41707.4,5/1/2018
American Recycling & Disposal  Inc.,Capital Purchases,17811.68,6/8/2018
American Recycling & Disposal  Inc.,Capital Purchases,19827.9,6/22/2018
American Recycling & Disposal  Inc.,Capital Purchases,35382.9,6/22/2018
American Recycling & Disposal  Inc.,Capital Purchases,2441.25,6/25/2018
American Recycling & Disposal  Inc.,Capital Purchases,16894.72,7/12/2018
American Recycling & Disposal  Inc.,Capital Purchases,18229.52,7/12/2018
American Recycling & Disposal  Inc.,Capital Purchases,36061.71,8/6/2018
American Recycling & Disposal  Inc.,Capital Purchases,48992.4,8/15/2018
American Recycling & Disposal  Inc.,Capital Purchases,9067.42,9/4/2018
American Recycling & Disposal  Inc.,Capital Purchases,616,9/10/2018
American Recycling & Disposal  Inc.,Capital Purchases,51225.08,9/10/2018
American Recycling & Disposal  Inc.,Capital Purchases,30701.2,10/1/2018
American Recycling & Disposal  Inc.,Capital Purchases,16809.84,10/3/2018
American Recycling & Disposal  Inc.,Capital Purchases,11642.38,10/9/2018
American Recycling & Disposal  Inc.,Capital Purchases,11623.08,10/9/2018
American Recycling & Disposal  Inc.,Capital Purchases,2991.36,11/1/2018
American Recycling & Disposal  Inc.,Capital Purchases,23830.62,11/1/2018
American Recycling & Disposal  Inc.,Services,17422.56,12/3/2018
American Recycling & Disposal  Inc.,Services,5667.26,12/10/2018
American Society Of Mechanical Eng.,Services,158,9/12/2018
American Solutions For Business,Materials,5080.4,1/16/2018
American Solutions For Business,Services,45913.75,2/13/2018
American Solutions For Business,Services,5199,3/5/2018
American Solutions For Business,Services,15597,3/15/2018
American Solutions For Business,Services,1735.8,3/15/2018
American Solutions For Business,Services,350,3/15/2018
American Solutions For Business,Services,1646,5/1/2018
American Solutions For Business,Services,350,5/1/2018
American Solutions For Business,Services,1848.4,6/8/2018
American Solutions For Business,Services,750,6/8/2018
American Solutions For Business,Services,3265.5,6/26/2018
American Solutions For Business,Services,28947.86,7/23/2018
American Solutions For Business,Materials,1629.9,8/29/2018
American Solutions For Business,Services,30750,8/29/2018
American Solutions For Business,Services,750,8/29/2018
American Solutions For Business,Materials,2385.8,9/14/2018
American Solutions For Business,Services,1500,9/14/2018
American Solutions For Business,Materials,1411.4,10/16/2018
American Solutions For Business,Services,750,10/16/2018
American Solutions For Business,Services,8708,11/27/2018
American Solutions For Business,Services,56356.65,12/3/2018
American Solutions For Business,Services,7590,12/20/2018
American Solutions For Business,Services,4077.4,12/20/2018
American Solutions For Business,Services,1500,12/20/2018
American Train Dispatchers Association Lodge 01117,Services,5097.15,8/13/2018
American Welding Society,Services,1260,2/15/2018
Amerigas,Materials,153.51,1/2/2018
Amerigas,Materials,2489.38,1/16/2018
Amerigas,Materials,824.7,1/26/2018
Amerigas,Materials,624.24,2/6/2018
Amerigas,Materials,3497.98,2/6/2018
Amerigas,Materials,152.1,2/21/2018
Amerigas,Materials,478.11,3/1/2018
Amerigas,Materials,6.99,3/13/2018
Amerigas,Materials,31.59,3/13/2018
Amerigas,Materials,174.71,3/13/2018
Amerigas,Materials,1582.93,3/13/2018
Amerigas,Materials,1729.25,3/14/2018
Amerigas,Services,210.11,3/14/2018
Amerigas,Materials,351.88,3/23/2018
Amerigas,Materials,137.27,4/5/2018
Amerigas,Materials,767.4,4/5/2018
Amerigas,Materials,208.74,4/17/2018
Amerigas,Materials,369.5,4/17/2018
Amerigas,Materials,187.48,4/27/2018
Amerigas,Materials,194.88,4/27/2018
Amerigas,Materials,350.22,5/1/2018
Amerigas,Materials,1327.92,5/16/2018
Amerigas,Services,218.71,5/16/2018
Amerigas,Services,217.95,5/16/2018
Amerigas,Services,181.03,8/1/2018
Amerigas,Materials,405.57,9/14/2018
Amerigas,Services,189.25,9/14/2018
Amerigas,Services,373.3,10/12/2018
Amerigas,Services,194.91,10/15/2018
Amerigas,Materials,45.85,10/22/2018
Amerigas,Materials,895.34,10/22/2018
Amerigas,Services,24.56,11/7/2018
Amerigas,Services,231.63,11/7/2018
Amerigas,Materials,468.23,12/17/2018
Amon Phillips,Services,370.78,11/30/2018
Amy E. Fischer,Services,52,7/19/2018
Amy Ortiz,Services,52,6/14/2018
Amy Ortiz,Services,80.21,7/19/2018
Anali De La O,Services,1336.53,10/15/2018
Anali De La O,Services,372.25,11/15/2018
Analytic Systems,Materials,6258,1/16/2018
Analytic Systems,Services,1100,1/24/2018
Analytic Systems,Materials,12516,2/1/2018
Analytic Systems,Materials,33376,3/1/2018
Analytic Systems,Capital Purchases,62910,4/27/2018
Analytic Systems,Capital Purchases,10530,6/18/2018
Analytic Systems,Services,2030,9/14/2018
Analytic Systems,Services,1400,9/14/2018
Analytic Systems,Services,800,9/14/2018
Analytic Systems,Materials,13595,11/1/2018
Analytic Systems,Materials,200,12/3/2018
Analytic Systems,Materials,1320,12/5/2018
Analytic Systems,Materials,10965,12/17/2018
Anchor Brake Shoe Co.,Materials,17546.76,1/16/2018
Anchor Brake Shoe Co.,Materials,15998.4,1/24/2018
Anchor Brake Shoe Co.,Materials,56146.32,2/1/2018
Anchor Brake Shoe Co.,Materials,71541.36,3/1/2018
Anchor Brake Shoe Co.,Materials,8773.38,3/23/2018
Anchor Brake Shoe Co.,Materials,48618.3,4/18/2018
Anchor Brake Shoe Co.,Materials,5848.92,4/27/2018
Anchor Brake Shoe Co.,Materials,31996.8,6/8/2018
Anchor Brake Shoe Co.,Materials,24300,6/21/2018
Anchor Brake Shoe Co.,Materials,24300,6/26/2018
Anchor Brake Shoe Co.,Materials,55242,7/19/2018
Anchor Brake Shoe Co.,Materials,5999.4,8/1/2018
Anchor Brake Shoe Co.,Materials,9999,8/6/2018
Anchor Brake Shoe Co.,Materials,17847.72,9/4/2018
Anchor Brake Shoe Co.,Materials,7999.2,9/14/2018
Anchor Brake Shoe Co.,Materials,25545.96,9/18/2018
Anchor Brake Shoe Co.,Materials,9999,9/21/2018
Anchor Brake Shoe Co.,Materials,11998.8,10/12/2018
Anchor Brake Shoe Co.,Materials,7999.2,10/23/2018
Anchor Brake Shoe Co.,Materials,7999.2,11/1/2018
Anchor Brake Shoe Co.,Materials,24300,11/7/2018
Anchor Brake Shoe Co.,Materials,11697.84,11/14/2018
Anchor Brake Shoe Co.,Materials,23395.68,11/27/2018
Anchor Brake Shoe Co.,Materials,23997.6,12/3/2018
Anchor Brake Shoe Co.,Materials,7999.2,12/17/2018
Anderson Lock Co.,Materials,1806.64,6/8/2018
Anderson Lock Co.,Materials,2254,8/17/2018
Anderson Lock Co.,Materials,1223.6,9/14/2018
Anderson Lock Co.,Materials,1288,9/21/2018
Anderson Lock Co.,Materials,2013.06,10/23/2018
Andre Hunt,Services,35.32,2/6/2018
Andre Hunt,Services,34.6,2/6/2018
Andre Hunt,Services,350.38,2/6/2018
Andre Hunt,Services,241.5,2/6/2018
Andre Hunt,Services,555.09,5/22/2018
Andre Hunt,Services,224,5/22/2018
Andre Hunt,Services,30,5/22/2018
Andre Hunt,Services,17.66,9/26/2018
Andre Hunt,Services,111.75,9/26/2018
Andre Hunt,Services,366.24,9/26/2018
Andre Hunt,Services,224,9/26/2018
Andre O. Moore,Services,153.36,1/12/2018
Andre O. Moore,Services,161.32,2/13/2018
Andre O. Moore,Services,120.99,3/20/2018
Andre O. Moore,Services,120.99,4/17/2018
Andre O. Moore,Services,120.99,5/21/2018
Andre R. Feliciano,Services,86.67,1/10/2018
Andre R. Feliciano,Services,34.88,2/15/2018
Andre R. Feliciano,Services,44.69,2/15/2018
Andre R. Feliciano,Services,34.88,8/9/2018
Andre R. Feliciano,Services,34.88,10/12/2018
Andrea Clark,Services,22.47,1/22/2018
Andrea Clark,Services,183.12,2/15/2018
Andrea Clark,Services,4.36,2/15/2018
Andrea Clark,Services,137.34,3/20/2018
Andrea Clark,Services,13.63,3/20/2018
Andrea Clark,Services,198.38,4/20/2018
Andrea Clark,Services,320.46,6/4/2018
Andrea Clark,Services,22.89,6/4/2018
Andrea Clark,Services,45.78,6/21/2018
Andrea Clark,Services,62.68,6/21/2018
Andrea Clark,Services,123.17,7/19/2018
Andrea Clark,Services,40.33,8/16/2018
Andrea Clark,Services,91.56,8/16/2018
Andrea Clark,Services,27.25,10/15/2018
Andrea D. Peek,Services,1662.85,3/29/2018
Andrea D. Peek,Services,214.84,4/23/2018
Andrea D. Peek,Services,241.98,5/21/2018
Andrea D. Peek,Services,241.98,6/12/2018
Andrea D. Peek,Services,241.98,8/2/2018
Andrea D. Peek,Services,205.7,8/14/2018
Andrea D. Peek,Services,266.18,9/10/2018
Andrea D. Peek,Services,217.78,10/11/2018
Andrea D. Peek,Services,278.28,11/14/2018
Andrea D. Peek,Services,241.98,12/12/2018
Andrea J Brown,Services,197.95,1/18/2018
Andrea J Brown,Services,201.65,2/8/2018
Andrea J Brown,Services,161.32,3/15/2018
Andrea J Brown,Services,161.32,4/18/2018
Andrea J Brown,Services,120.99,5/23/2018
Andrea Lurry,Services,123.14,4/16/2018
Andrea Lurry,Services,431.02,5/18/2018
Andrea Lurry,Services,343.3,6/22/2018
Andrea Lurry,Services,174.9,7/17/2018
Andrea Lurry,Services,1678.7,11/13/2018
Andres Delfin,Services,19.51,2/7/2018
Andres Delfin,Services,106.59,5/17/2018
Andres Hernandez Rodriguez,Services,621.5,4/25/2018
Andres Hernandez Rodriguez,Services,791,5/21/2018
Andres Hernandez Rodriguez,Services,56.5,5/30/2018
Andres Hernandez Rodriguez,Services,565,5/30/2018
Andres Hernandez Rodriguez,Services,678,6/14/2018
Andres Hernandez Rodriguez,Services,395.5,6/26/2018
Andres Hernandez Rodriguez,Services,395.5,6/26/2018
Andres Hernandez Rodriguez,Services,339,7/26/2018
Andres Hernandez Rodriguez,Services,113,7/26/2018
Andres Hernandez Rodriguez,Services,508.5,8/9/2018
Andres Hernandez Rodriguez,Services,282.5,9/12/2018
Andres Hernandez Rodriguez,Services,565,9/19/2018
Andrew Brashler,Services,8.52,2/15/2018
Andrew Brashler,Services,30,4/18/2018
Andrew Brashler,Services,37.89,7/19/2018
Andrew Brashler,Services,27.23,10/17/2018
Andrew Brashler,Services,34.46,11/7/2018
Andrew D. Garibay,Services,10.9,2/27/2018
Andrew D. Garibay,Services,21.8,7/12/2018
Andrew Grigg,Services,1336.53,10/11/2018
Andrew Grigg,Services,360.17,12/11/2018
Andrew James Kreuser,Services,596.58,5/24/2018
Andrew L. Taylor,Services,21.83,1/12/2018
Andrew L. Taylor,Services,100,11/1/2018
Andrew Shay,Services,1791.7,12/27/2018
Andy C. Flores,Services,734.5,5/1/2018
Andy C. Flores,Services,791,5/18/2018
Andy C. Flores,Services,508.5,5/30/2018
Angel Chavez,Services,678,4/30/2018
Angel Chavez,Services,734.5,5/21/2018
Angel Chavez,Services,678,5/30/2018
Angel Chavez,Services,565,7/25/2018
Angel Chavez,Services,791,7/25/2018
Angel Chavez,Services,565,8/10/2018
Angel Chavez,Services,621.5,9/24/2018
Angel Fragoso,Services,621.5,4/25/2018
Angel Fragoso,Services,847.5,5/21/2018
Angela G. Pegues,Services,302.21,1/18/2018
Angela G. Pegues,Services,20.52,4/23/2018
Angela G. Pegues,Services,159.33,5/4/2018
Angela G. Pegues,Services,123.15,6/8/2018
Angela G. Pegues,Services,72.88,6/20/2018
Angela G. Pegues,Services,184.72,7/23/2018
Angela G. Pegues,Services,20.52,8/2/2018
Angela G. Pegues,Services,82.1,8/9/2018
Angela G. Pegues,Services,336.21,8/13/2018
Angela G. Pegues,Services,274.63,9/13/2018
Angela G. Pegues,Services,20.52,9/13/2018
Angela G. Pegues,Services,322.04,11/14/2018
Angela G. Pegues,Services,184.72,12/12/2018
Angela Hibbler,Services,300,2/23/2018
Angela Hinton,Services,25.9,12/13/2018
Angela Wu-Hardee,Services,189.76,5/3/2018
Angela Wu-Hardee,Services,50,8/27/2018
Angela Young,Services,57.06,3/19/2018
Angelique Garzon,Services,46.87,4/23/2018
Anita Ayala-Ortega,Services,32.1,1/18/2018
Anita Ayala-Ortega,Services,49.22,1/18/2018
Anita Ayala-Ortega,Services,12.84,1/18/2018
Anita Ayala-Ortega,Services,63.22,2/16/2018
Anita Ayala-Ortega,Services,66.49,2/16/2018
Anita Ayala-Ortega,Services,65.4,2/21/2018
Anita Ayala-Ortega,Services,68.67,2/21/2018
Anita Ayala-Ortega,Services,73.03,3/20/2018
Anita Ayala-Ortega,Services,150.42,3/20/2018
Anita Ayala-Ortega,Services,32.7,4/17/2018
Anita Ayala-Ortega,Services,91.56,4/17/2018
Anita Ayala-Ortega,Services,109,5/11/2018
Anita Ayala-Ortega,Services,37.06,5/11/2018
Anita Ayala-Ortega,Services,32.7,6/14/2018
Anita Ayala-Ortega,Services,65.4,6/14/2018
Anita Ayala-Ortega,Services,37.06,6/14/2018
Anita Ayala-Ortega,Services,109,7/25/2018
Anita Ayala-Ortega,Services,18.53,7/25/2018
Anita Ayala-Ortega,Services,87.2,8/14/2018
Anita Ayala-Ortega,Services,50.14,8/14/2018
Anita Ayala-Ortega,Services,29.43,8/14/2018
Anita Ayala-Ortega,Services,129.71,9/14/2018
Anita Ayala-Ortega,Services,18.53,10/11/2018
Anita Ayala-Ortega,Services,98.1,11/6/2018
Anita Ayala-Ortega,Services,50.14,11/6/2018
Anita Ayala-Ortega,Services,32.7,12/12/2018
Anita Ayala-Ortega,Services,37.06,12/12/2018
Ankin Law Office LLC,Claims & Insurance,35000,4/18/2018
Ann Hammo,Services,53.75,7/11/2018
Ann M Hammo,Services,53.75,7/11/2018
Ann Marie Di Prima,Services,3933.4,8/15/2018
Anthony Adams,Services,79.18,1/18/2018
Anthony Adams,Services,39.59,1/18/2018
Anthony Adams,Services,40.33,2/16/2018
Anthony Adams,Services,49.6,3/21/2018
Anthony Adams,Services,120.99,4/24/2018
Anthony Adams,Services,9.27,4/24/2018
Anthony Adams,Services,40.33,6/15/2018
Anthony Adams,Services,40.88,10/17/2018
Anthony B. Davis,Services,141.24,1/12/2018
Anthony B. Davis,Services,10.7,1/12/2018
Anthony B. Davis,Services,32.7,2/26/2018
Anthony B. Davis,Services,100.28,2/26/2018
Anthony B. Davis,Services,21.8,2/26/2018
Anthony B. Davis,Services,10.9,2/26/2018
Anthony B. Davis,Services,65.4,3/21/2018
Anthony B. Davis,Services,50.14,3/21/2018
Anthony B. Davis,Services,10.9,3/21/2018
Anthony B. Davis,Services,65.4,4/18/2018
Anthony B. Davis,Services,50.14,4/18/2018
Anthony B. Davis,Services,13.08,4/18/2018
Anthony B. Davis,Services,130.8,5/17/2018
Anthony B. Davis,Services,34.88,5/17/2018
Anthony B. Davis,Services,32.7,7/11/2018
Anthony B. Davis,Services,32.7,7/11/2018
Anthony B. Davis,Services,10.9,7/11/2018
Anthony B. Davis,Services,65.4,7/25/2018
Anthony B. Davis,Services,100.28,7/25/2018
Anthony B. Davis,Services,21.8,7/25/2018
Anthony B. Davis,Services,65.4,8/21/2018
Anthony B. Davis,Services,47.96,8/21/2018
Anthony B. Davis,Services,10.9,8/21/2018
Anthony B. Davis,Services,32.7,9/13/2018
Anthony B. Davis,Services,240.89,9/13/2018
Anthony B. Davis,Services,65.4,10/11/2018
Anthony B. Davis,Services,32.7,10/11/2018
Anthony B. Davis,Services,98.1,11/9/2018
Anthony B. Davis,Services,132.98,11/9/2018
Anthony B. Davis,Services,54.5,11/9/2018
Anthony B. Davis,Services,32.7,12/17/2018
Anthony B. Davis,Services,132.98,12/17/2018
Anthony B. Davis,Services,21.8,12/17/2018
Anthony Costa,Services,173.86,9/6/2018
Anthony D. Bruce,Services,34.88,4/12/2018
Anthony D. Bruce,Services,11.99,11/7/2018
Anthony E. Jones,Services,217.68,1/4/2018
Anthony E. Jones,Services,22.47,1/10/2018
Anthony E. Jones,Services,45.78,2/13/2018
Anthony E. Jones,Services,22.89,2/13/2018
Anthony E. Jones,Services,25,3/1/2018
Anthony E. Jones,Services,63.22,3/20/2018
Anthony E. Jones,Services,22.89,3/20/2018
Anthony E. Jones,Services,22.89,4/17/2018
Anthony E. Jones,Services,51.23,4/17/2018
Anthony E. Jones,Services,40.33,5/21/2018
Anthony E. Jones,Services,51.23,5/21/2018
Anthony E. Jones,Services,65.4,6/12/2018
Anthony E. Jones,Services,9.05,6/12/2018
Anthony Fallico,Services,318.64,10/4/2018
Anthony H Schaeflein,Services,933,1/30/2018
Anthony H Schaeflein,Services,27.64,3/13/2018
Anthony H Schaeflein,Services,1427,3/28/2018
Anthony H Schaeflein,Services,325.74,6/7/2018
Anthony K. Young,Services,89.88,1/16/2018
Anthony K. Young,Services,264.8,12/28/2018
Anthony L. Brown,Services,197.95,1/18/2018
Anthony L. Brown,Services,161.32,2/8/2018
Anthony L. Brown,Services,161.32,3/16/2018
Anthony L. Brown,Services,201.65,4/18/2018
Anthony L. Brown,Services,161.32,5/23/2018
Anthony L. Brown,Services,40.33,7/30/2018
Anthony L. Brown,Services,332.86,8/20/2018
Anthony L. Brown,Services,376.76,12/4/2018
Anthony L. Williams Sr.,Services,6116.83,2/16/2018
Anthony M. Siembrzuch,Services,14387.71,5/10/2018
Anthony Ognibene,Services,52,8/2/2018
Anthony Schaeflein,Services,933,1/30/2018
Anthony Schaeflein,Services,27.64,3/13/2018
Anthony Schaeflein,Services,1427,3/28/2018
Anthony Schaeflein,Services,325.74,6/7/2018
Anthony Sevilla,Services,498.68,1/12/2018
Anthony T Parker,Services,280.14,12/14/2018
Antoine Conard,Services,621.5,4/25/2018
Antoine Conard,Services,621.5,5/30/2018
Antoine Conard,Services,452,5/30/2018
Antoine Conard,Services,508.5,6/15/2018
Antoine Conard,Services,113,6/26/2018
Antoine Conard,Services,395.5,6/26/2018
Antoine Conard,Services,904,8/10/2018
Antoine Conard,Services,339,9/12/2018
Antoine Conard,Services,339,9/18/2018
Antoine Haynes,Services,57.78,1/10/2018
Antoine Haynes,Services,104.64,2/13/2018
Antoine Haynes,Services,58.86,2/13/2018
Antoine Haynes,Services,58.86,3/20/2018
Antoine Haynes,Services,34.88,3/20/2018
Antoine Haynes,Services,61.04,3/20/2018
Antoine Haynes,Services,69.76,4/12/2018
Antoine Haynes,Services,117.72,7/11/2018
Antoine Haynes,Services,43.6,7/13/2018
Antoine Haynes,Services,44.69,8/13/2018
Antoine Haynes,Services,11.99,8/13/2018
Antoine Haynes,Services,104.64,9/4/2018
Antoine Haynes,Services,34.88,10/12/2018
Antoine Haynes,Services,139.52,10/12/2018
Antoine Haynes,Services,34.88,11/5/2018
Antoine Haynes,Services,69.76,11/5/2018
Antoine Haynes,Services,11.99,12/13/2018
Antoine Haynes,Services,69.76,12/13/2018
Antoinette Romans,Services,4080.79,8/29/2018
Antonia Sajuan,Claims & Insurance,38.64,7/27/2018
Antonio Madrinan,Services,64.23,9/20/2018
Antonio Madrinan,Services,64.23,10/4/2018
Antonio Mieszanek,Services,52.5,7/19/2018
Antwan J. Potts,Services,80.66,2/7/2018
Antwan J. Potts,Services,40.33,3/21/2018
Antwan J. Potts,Services,40.33,4/16/2018
Antwan J. Potts,Services,80.66,6/20/2018
Antwan J. Potts,Services,90.9,12/13/2018
Antwian T. Windmon,Services,313.7,5/1/2018
Aon (Bermuda) Ltd.,Claims & Insurance,156200,6/25/2018
Aon (Bermuda) Ltd.,Claims & Insurance,1420042,7/16/2018
Aon (Uk) Ltd,Claims & Insurance,221629,7/26/2018
Aon (Uk) Ltd,Claims & Insurance,4020,8/2/2018
"AON Property Risk Consulting, Inc.",Services,2530,1/22/2018
Aon Risk Services  Inc. Of Maryland,Claims & Insurance,1169,2/1/2018
Aon Risk Services  Inc. Of Maryland,Claims & Insurance,21000,3/16/2018
Aon Risk Services  Inc. Of Maryland,Services,72000,3/22/2018
Aon Risk Services  Inc. Of Maryland,Claims & Insurance,3838,4/19/2018
Aon Risk Services  Inc. Of Maryland,Claims & Insurance,15769,4/26/2018
Aon Risk Services  Inc. Of Maryland,Claims & Insurance,178650,5/4/2018
Aon Risk Services  Inc. Of Maryland,Claims & Insurance,46131,7/10/2018
Aon Risk Services  Inc. Of Maryland,Claims & Insurance,930255.25,7/11/2018
Aon Risk Services  Inc. Of Maryland,Claims & Insurance,20075,7/12/2018
Aon Risk Services  Inc. Of Maryland,Claims & Insurance,157688,7/16/2018
Aon Risk Services  Inc. Of Maryland,Claims & Insurance,407332,8/2/2018
Aon Risk Services  Inc. Of Maryland,Claims & Insurance,122976.57,8/13/2018
Aon Risk Services  Inc. Of Maryland,Claims & Insurance,340,8/13/2018
Aon Risk Services  Inc. Of Maryland,Claims & Insurance,1555,8/17/2018
Aon Risk Services  Inc. Of Maryland,Claims & Insurance,68730,8/24/2018
Aon Risk Services  Inc. Of Maryland,Claims & Insurance,26130,11/2/2018
Aon Risk Services  Inc. Of Maryland,Claims & Insurance,110734,12/17/2018
AP Electric & Generators LLC,Capital Purchases,80639.92,8/15/2018
Applied Industrial Technologies,Materials,1079.6,3/1/2018
Applied Industrial Technologies,Materials,1079.6,6/20/2018
Applied Power Systems,Capital Purchases,63664,6/5/2018
Aql Technologies  Inc.,Services,32560,9/4/2018
Aql Technologies  Inc.,Services,40480,10/1/2018
Aql Technologies  Inc.,Services,16720,11/1/2018
Aql Technologies  Inc.,Services,16720,11/7/2018
Aql Technologies  Inc.,Services,40480,11/27/2018
Aqua Illinois,Utilities,55.47,1/10/2018
Aqua Illinois,Utilities,1.13,2/9/2018
Aqua Illinois,Utilities,124.88,3/5/2018
Aqua Illinois,Utilities,57.39,4/9/2018
Aqua Illinois,Utilities,86.9,5/8/2018
Aqua Illinois,Utilities,82.92,6/6/2018
Aqua Illinois,Utilities,93.27,7/9/2018
Aqua Illinois,Utilities,75.74,7/30/2018
Aqua Illinois,Utilities,79.73,8/30/2018
Aqua Illinois,Utilities,82.12,10/2/2018
Aqua Illinois,Utilities,80.53,11/1/2018
Aqua Illinois,Utilities,80.53,11/29/2018
Arc Document Solutions LLC,Materials,2175.42,1/24/2018
Arc Document Solutions LLC,Services,267.16,1/24/2018
Arc Document Solutions LLC,Materials,2389.1,7/12/2018
Arc Document Solutions LLC,Materials,1088.34,9/4/2018
Arcadis Us  Inc.,Capital Purchases,76100.59,6/27/2018
Arcadis Us  Inc.,Capital Purchases,43314.21,7/6/2018
Arcadis Us  Inc.,Capital Purchases,47965.53,9/4/2018
Arcadis Us  Inc.,Capital Purchases,6411.14,9/19/2018
Arcadis Us  Inc.,Capital Purchases,5013.23,11/1/2018
Arcadis Us  Inc.,Capital Purchases,67707.49,11/1/2018
Arcadis Us  Inc.,Capital Purchases,54175.07,11/6/2018
Arcadis Us  Inc.,Capital Purchases,39935.57,11/7/2018
Arcadis Us  Inc.,Capital Purchases,79283.47,11/14/2018
Arema,Services,9294,7/26/2018
Arema,Services,425,8/2/2018
Arema,Services,1956,8/7/2018
Arglista Scott,Services,1428.42,10/15/2018
Arlington Park Racecourse Llc Churchill Downs Inc.,Rental Expense,20815.56,1/24/2018
Arlington Park Racecourse Llc Churchill Downs Inc.,Rental Expense,20815.56,2/28/2018
Arlington Park Racecourse Llc Churchill Downs Inc.,Rental Expense,20815.56,4/4/2018
Arlington Park Racecourse Llc Churchill Downs Inc.,Rental Expense,20815.56,4/27/2018
Arlington Park Racecourse Llc Churchill Downs Inc.,Rental Expense,20815.56,5/30/2018
Arlington Park Racecourse Llc Churchill Downs Inc.,Rental Expense,20815.56,6/27/2018
Arlington Park Racecourse Llc Churchill Downs Inc.,Rental Expense,20815.56,7/30/2018
Arlington Park Racecourse Llc Churchill Downs Inc.,Rental Expense,84154.28,8/13/2018
Arlington Park Racecourse Llc Churchill Downs Inc.,Rental Expense,20815.56,8/30/2018
Arlington Park Racecourse Llc Churchill Downs Inc.,Rental Expense,20815.56,9/25/2018
Arlington Park Racecourse Llc Churchill Downs Inc.,Rental Expense,20815.56,10/30/2018
Arlington Park Racecourse Llc Churchill Downs Inc.,Rental Expense,20815.56,11/30/2018
Arlington Resources,Services,9588.51,7/2/2018
Arlington Resources,Services,1960,8/1/2018
Arlington Resources,Services,1321.25,8/6/2018
Arlington Resources,Services,2520,9/4/2018
Arlington Resources,Services,840,9/14/2018
Arlington Resources,Services,10946.25,10/1/2018
Arlington Resources,Services,4375,10/12/2018
Arlington Resources,Services,6868.75,11/1/2018
Arlington Resources,Services,1400,11/6/2018
Arlington Resources,Services,9423.75,12/3/2018
Arlington Resources,Services,1120,12/10/2018
Armando Bucio,Services,240.65,5/2/2018
Arnold Maxey,Services,214.96,1/12/2018
Arnold Maxey,Services,216.82,2/5/2018
Arnold Maxey,Services,248.23,2/15/2018
Arnold Maxey,Services,25,2/26/2018
Arnold Maxey,Services,171.94,2/27/2018
Arnold Maxey,Services,49,2/27/2018
Arnold Maxey,Services,218.7,3/8/2018
Arnold Maxey,Services,355.39,3/20/2018
Arnold Maxey,Services,308.58,4/17/2018
Arnold Maxey,Services,256.67,4/23/2018
Arnold Maxey,Services,248.85,4/24/2018
Arnold Maxey,Services,315.45,5/2/2018
Arnold Maxey,Services,413.56,5/21/2018
Arnold Maxey,Services,198.6,6/4/2018
Arnold Maxey,Services,235.44,6/22/2018
Arnold Maxey,Services,264.87,7/3/2018
Arnold Maxey,Services,253.64,7/23/2018
Arnold Maxey,Services,363.97,8/7/2018
Arnold Maxey,Services,546.64,9/4/2018
Arnold Maxey,Services,134.62,9/24/2018
Arnold Maxey,Services,256.05,10/9/2018
Arnold Maxey,Services,315.14,10/22/2018
Arnold Maxey,Services,294.08,11/14/2018
Arnold Maxey,Services,318.5,11/29/2018
Arnold Maxey,Services,299.33,12/21/2018
Arthur R. Olsen,Services,34810.06,1/12/2018
Arturo J Mota,Services,82.84,2/15/2018
Arturo J Mota,Services,139.85,3/7/2018
Arturo J Mota,Services,201.1,4/2/2018
Arturo J Mota,Services,29.43,5/4/2018
Arturo J Mota,Services,158.36,5/22/2018
Arturo J Mota,Services,555.09,5/22/2018
Arturo J Mota,Services,224,5/22/2018
Arturo J Mota,Services,96.03,7/11/2018
Arturo J Mota,Services,263.18,8/7/2018
Arturo J Mota,Services,298.28,9/14/2018
Arturo J Mota,Services,133.69,10/3/2018
Arturo J Mota,Services,58.86,10/30/2018
Arturo J Mota,Services,49.32,11/21/2018
Arturo J Mota,Services,16.68,12/21/2018
Arturo Lopez,Services,94.88,9/6/2018
Arturo Zavala,Claims & Insurance,210,6/13/2018
Aruj Chaudhry,Services,1047.81,11/29/2018
Arun K Saxena,Services,34.88,4/26/2018
Arun K Saxena,Services,35662.02,11/29/2018
Asas/Tysol  Inc.,Materials,3240,1/24/2018
Asas/Tysol  Inc.,Materials,3024,4/18/2018
Asas/Tysol  Inc.,Materials,2534.7,4/18/2018
Asas/Tysol  Inc.,Materials,3024,4/27/2018
Asas/Tysol  Inc.,Materials,3240,11/6/2018
Ascendo Resources Llc,Capital Purchases,6264,1/2/2018
Ascendo Resources Llc,Capital Purchases,1795.5,1/12/2018
Ascendo Resources Llc,Capital Purchases,1080,1/24/2018
Ascendo Resources Llc,Capital Purchases,864,1/25/2018
Ascendo Resources Llc,Capital Purchases,1701,2/1/2018
Ascendo Resources Llc,Capital Purchases,1080,2/7/2018
Ascendo Resources Llc,Capital Purchases,864,2/12/2018
Ascendo Resources Llc,Capital Purchases,1080,3/1/2018
Ascendo Resources Llc,Capital Purchases,1080,3/5/2018
Ascendo Resources Llc,Capital Purchases,1080,3/15/2018
Ascendo Resources Llc,Capital Purchases,2079,5/1/2018
Ascendo Resources Llc,Capital Purchases,2160,5/9/2018
Ascendo Resources Llc,Capital Purchases,1080,6/6/2018
Asg Technologies Group Inc.,Services,16243.5,6/20/2018
Ashely Tully,Claims & Insurance,25.8,2/20/2018
Ashlee Wathen,Services,603.11,11/28/2018
Asis International,Services,195,1/9/2018
Asis International,Services,195,11/15/2018
ASNT,Services,200,2/15/2018
ASPA,Services,120,2/23/2018
"Asplundh Tree Expert, LLC",Services,13588.85,1/30/2018
"Asplundh Tree Expert, LLC",Services,88412.54,1/30/2018
"Asplundh Tree Expert, LLC",Services,11527.6,2/6/2018
"Asplundh Tree Expert, LLC",Services,57442.8,2/15/2018
"Asplundh Tree Expert, LLC",Services,1786.36,5/1/2018
"Asplundh Tree Expert, LLC",Services,19823.88,8/6/2018
"Asplundh Tree Expert, LLC",Services,33802.06,8/6/2018
"Asplundh Tree Expert, LLC",Services,34080.78,9/18/2018
"Asplundh Tree Expert, LLC",Services,10419.2,9/18/2018
"Asplundh Tree Expert, LLC",Services,28815.6,9/18/2018
"Asplundh Tree Expert, LLC",Services,18911.1,10/1/2018
"Asplundh Tree Expert, LLC",Services,23226.88,10/29/2018
"Asplundh Tree Expert, LLC",Services,19439.82,12/12/2018
ASQ,Services,159,2/13/2018
Assn. Of American Railroads (AAR),Services,4302,1/9/2018
Assn. Of American Railroads (AAR),Services,44230,1/17/2018
Assn. Of American Railroads (AAR),Services,11607.14,1/17/2018
Assn. Of American Railroads (AAR),Services,4302,2/8/2018
Assn. Of American Railroads (AAR),Services,4302,3/5/2018
Assn. Of American Railroads (AAR),Services,4302,4/2/2018
Assn. Of American Railroads (AAR),Services,11607.14,4/10/2018
Assn. Of American Railroads (AAR),Services,4302,5/2/2018
Assn. Of American Railroads (AAR),Services,4302,6/11/2018
Assn. Of American Railroads (AAR),Services,16250,6/21/2018
Assn. Of American Railroads (AAR),Services,4302,6/28/2018
Assn. Of American Railroads (AAR),Services,4302,8/8/2018
Assn. Of American Railroads (AAR),Services,4302,9/6/2018
Assn. Of American Railroads (AAR),Services,11607.14,9/10/2018
Assn. Of American Railroads (AAR),Services,4302,9/26/2018
Assn. Of American Railroads (AAR),Services,4302,11/2/2018
Assn. Of American Railroads (AAR),Services,4302,12/3/2018
Association for Financial Professionals,Services,885,1/2/2018
Association for Financial Professionals,Services,495,1/22/2018
Association for Financial Professionals,Services,1270,3/21/2018
Association of Financial Crimes Investigations,Services,10,1/17/2018
AT & T,Utilities,1350.08,1/2/2018
AT & T,Utilities,7690.9,1/2/2018
AT & T,Utilities,3537.37,1/2/2018
AT & T,Utilities,279373.12,1/4/2018
AT & T,Utilities,620,1/9/2018
AT & T,Utilities,8816.66,1/9/2018
AT & T,Utilities,1282.2,1/18/2018
AT & T,Utilities,161.96,1/18/2018
AT & T,Utilities,540.02,1/19/2018
AT & T,Utilities,1169.46,1/23/2018
AT & T,Utilities,1365.5,1/30/2018
AT & T,Utilities,7729.35,1/30/2018
AT & T,Utilities,3561.85,1/30/2018
AT & T,Utilities,7936.49,2/1/2018
AT & T,Utilities,288025.84,2/8/2018
AT & T,Utilities,620.8,2/8/2018
AT & T,Utilities,11819.12,2/8/2018
AT & T,Utilities,78612.8,2/14/2018
AT & T,Utilities,1492.52,2/15/2018
AT & T,Utilities,530.95,2/15/2018
AT & T,Utilities,620.8,2/20/2018
AT & T,Utilities,171.16,2/26/2018
AT & T,Utilities,1350.16,3/2/2018
AT & T,Utilities,7690.9,3/2/2018
AT & T,Utilities,3691.34,3/2/2018
AT & T,Utilities,291534.96,3/7/2018
AT & T,Utilities,620.8,3/7/2018
AT & T,Utilities,15107.62,3/7/2018
AT & T,Utilities,1340.84,3/16/2018
AT & T,Utilities,530.01,3/16/2018
AT & T,Utilities,39863.34,3/19/2018
AT & T,Utilities,49.42,3/19/2018
AT & T,Utilities,164.74,3/23/2018
AT & T,Utilities,293160.11,4/4/2018
AT & T,Utilities,1283.8,4/4/2018
AT & T,Utilities,7690.9,4/4/2018
AT & T,Utilities,3749.16,4/4/2018
AT & T,Utilities,620.8,4/9/2018
AT & T,Utilities,12059.43,4/9/2018
AT & T,Utilities,174.15,4/18/2018
AT & T,Utilities,1488.47,4/19/2018
AT & T,Utilities,1150.81,4/23/2018
AT & T,Utilities,5762.43,4/23/2018
AT & T,Utilities,43095,4/26/2018
AT & T,Utilities,7690.9,4/26/2018
AT & T,Utilities,3728.6,5/3/2018
AT & T,Utilities,620.8,5/10/2018
AT & T,Utilities,48868.12,5/10/2018
AT & T,Utilities,9267.44,5/16/2018
AT & T,Utilities,1471.53,5/21/2018
AT & T,Utilities,1126.43,5/21/2018
AT & T,Utilities,30152.25,5/21/2018
AT & T,Utilities,320429.14,5/22/2018
AT & T,Utilities,1302.79,5/29/2018
AT & T,Utilities,7451.7,5/29/2018
AT & T,Utilities,175.02,5/29/2018
AT & T,Utilities,292494.79,6/8/2018
AT & T,Utilities,596.42,6/8/2018
AT & T,Utilities,14728.81,6/8/2018
AT & T,Utilities,3702.16,6/11/2018
AT & T,Utilities,570.23,6/25/2018
AT & T,Utilities,42093.36,6/25/2018
AT & T,Utilities,7451.7,6/25/2018
AT & T,Utilities,12630.86,6/25/2018
AT & T,Utilities,9825.1,6/27/2018
AT & T,Utilities,317631.65,7/9/2018
AT & T,Utilities,596.42,7/10/2018
AT & T,Utilities,14794.61,7/10/2018
AT & T,Utilities,579.96,7/17/2018
AT & T,Utilities,1126.43,7/23/2018
AT & T,Utilities,6540.68,7/23/2018
AT & T,Utilities,42090.4,7/27/2018
AT & T,Utilities,2448,7/31/2018
AT & T,Utilities,7451.7,7/31/2018
AT & T,Utilities,9981.2,7/31/2018
AT & T,Utilities,310589.92,8/2/2018
AT & T,Utilities,596.42,8/6/2018
AT & T,Utilities,14738.25,8/6/2018
AT & T,Utilities,588.46,8/16/2018
AT & T,Utilities,25324.33,8/16/2018
AT & T,Utilities,1771,8/16/2018
AT & T,Utilities,596.42,8/20/2018
AT & T,Utilities,10138.72,8/23/2018
AT & T,Utilities,1239.91,8/28/2018
AT & T,Utilities,7451.7,8/28/2018
AT & T,Utilities,9420,8/28/2018
AT & T,Utilities,346.04,9/4/2018
AT & T,Utilities,596.42,9/5/2018
AT & T,Utilities,8676.65,9/5/2018
AT & T,Utilities,287013.98,9/10/2018
AT & T,Utilities,6349.1,9/10/2018
AT & T,Utilities,581.02,9/14/2018
AT & T,Utilities,38881.54,9/14/2018
AT & T,Utilities,6940.97,9/14/2018
AT & T,Utilities,2740,9/14/2018
AT & T,Utilities,7500.75,9/17/2018
AT & T,Utilities,1224,9/21/2018
AT & T,Utilities,1921.14,9/21/2018
AT & T,Utilities,7451.7,9/24/2018
AT & T,Utilities,8086.54,10/3/2018
AT & T,Utilities,9420,10/3/2018
AT & T,Utilities,320.49,10/3/2018
AT & T,Utilities,367276.74,10/9/2018
AT & T,Utilities,30779.56,10/9/2018
AT & T,Utilities,596.42,10/10/2018
AT & T,Utilities,596.42,10/10/2018
AT & T,Utilities,602.19,10/19/2018
AT & T,Utilities,530.01,10/19/2018
AT & T,Utilities,39140.85,10/24/2018
AT & T,Utilities,2762,10/24/2018
AT & T,Utilities,356.67,10/24/2018
AT & T,Utilities,1224,10/30/2018
AT & T,Utilities,7451.7,10/30/2018
AT & T,Utilities,11865.02,10/30/2018
AT & T,Utilities,319843.88,11/5/2018
AT & T,Utilities,15044.56,11/5/2018
AT & T,Utilities,9838.45,11/5/2018
AT & T,Utilities,619.24,11/14/2018
AT & T,Utilities,43270.88,11/14/2018
AT & T,Utilities,5988.28,11/14/2018
AT & T,Utilities,2672,11/14/2018
AT & T,Utilities,530.01,11/16/2018
AT & T,Utilities,9321.72,11/30/2018
AT & T,Utilities,1224,12/3/2018
AT & T,Utilities,7451.7,12/3/2018
AT & T,Utilities,322053.31,12/11/2018
AT & T,Utilities,2290.91,12/11/2018
AT & T,Utilities,5988.28,12/11/2018
AT & T,Utilities,10081.44,12/11/2018
AT & T,Utilities,600.67,12/17/2018
AT & T,Utilities,50290.74,12/17/2018
AT & T,Utilities,2785,12/17/2018
AT & T,Utilities,530.01,12/20/2018
AT & T,Utilities,15773.09,12/20/2018
Athletico Ltd.,Claims & Insurance,400,1/5/2018
Athletico Ltd.,Claims & Insurance,400,1/26/2018
Athletico Ltd.,Claims & Insurance,400,3/9/2018
Athletico Ltd.,Claims & Insurance,150,5/4/2018
Athletico Ltd.,Claims & Insurance,400,10/11/2018
ATI Physical Therapy,Claims & Insurance,81.9,7/26/2018
A-Tire County Service  Inc.,Services,2537.71,1/2/2018
A-Tire County Service  Inc.,Services,70.5,1/2/2018
A-Tire County Service  Inc.,Services,941.35,1/3/2018
A-Tire County Service  Inc.,Services,11736.78,1/16/2018
A-Tire County Service  Inc.,Services,77.5,1/16/2018
A-Tire County Service  Inc.,Services,354.1,2/21/2018
A-Tire County Service  Inc.,Services,23.5,2/21/2018
A-Tire County Service  Inc.,Services,349.33,4/13/2018
A-Tire County Service  Inc.,Services,23.5,4/13/2018
A-Tire County Service  Inc.,Services,2164.74,4/18/2018
A-Tire County Service  Inc.,Services,93.5,4/18/2018
A-Tire County Service  Inc.,Services,3238.72,5/25/2018
A-Tire County Service  Inc.,Services,150,6/6/2018
A-Tire County Service  Inc.,Services,6846.6,6/6/2018
A-Tire County Service  Inc.,Services,46.5,6/6/2018
A-Tire County Service  Inc.,Services,1120.95,6/7/2018
A-Tire County Service  Inc.,Services,23.5,6/7/2018
A-Tire County Service  Inc.,Services,180,6/12/2018
A-Tire County Service  Inc.,Services,2336.43,6/12/2018
A-Tire County Service  Inc.,Services,46.5,6/12/2018
A-Tire County Service  Inc.,Services,479.23,6/14/2018
A-Tire County Service  Inc.,Services,2962.71,6/14/2018
A-Tire County Service  Inc.,Services,23,6/14/2018
A-Tire County Service  Inc.,Services,2526.35,7/12/2018
A-Tire County Service  Inc.,Services,1767.22,8/1/2018
A-Tire County Service  Inc.,Services,23.5,8/1/2018
A-Tire County Service  Inc.,Services,9763.43,8/7/2018
A-Tire County Service  Inc.,Services,383,8/7/2018
A-Tire County Service  Inc.,Services,2675.9,8/16/2018
A-Tire County Service  Inc.,Services,23.5,8/16/2018
A-Tire County Service  Inc.,Services,380.63,9/4/2018
A-Tire County Service  Inc.,Services,23.5,9/4/2018
A-Tire County Service  Inc.,Services,3020.64,9/21/2018
A-Tire County Service  Inc.,Services,23.5,9/21/2018
A-Tire County Service  Inc.,Services,6062.29,10/1/2018
A-Tire County Service  Inc.,Services,23.5,10/1/2018
A-Tire County Service  Inc.,Services,3833.28,10/15/2018
A-Tire County Service  Inc.,Services,665.26,11/8/2018
A-Tire County Service  Inc.,Services,23,11/8/2018
A-Tire County Service  Inc.,Services,864.17,11/9/2018
A-Tire County Service  Inc.,Services,54,12/10/2018
A-Tire County Service  Inc.,Services,1092.21,12/12/2018
A-Tire County Service  Inc.,Services,116,12/12/2018
A-Tire County Service  Inc.,Services,2520.63,12/19/2018
Atlantic Track & Turnout Co.,Materials,84752,1/3/2018
Atlantic Track & Turnout Co.,Materials,59850,4/5/2018
Atlantic Track & Turnout Co.,Materials,26153.8,4/18/2018
Atlantic Track & Turnout Co.,Materials,9158,5/1/2018
Atlantic Track & Turnout Co.,Materials,101754.8,5/23/2018
Atlantic Track & Turnout Co.,Materials,10782.8,9/19/2018
Atlas & Associates  Inc.,Capital Purchases,1132,1/12/2018
Atlas Copco Compressors LLC,Services,1968.45,2/16/2018
Atlas Copco Compressors LLC,Services,3256.02,3/13/2018
Atlas Copco Compressors LLC,Materials,4955,5/14/2018
Atlas Copco Compressors LLC,Materials,1940,5/14/2018
Atlas Copco Compressors LLC,Materials,14000,5/14/2018
Atlas Copco Compressors LLC,Services,567,6/15/2018
Atlas Copco Compressors LLC,Services,1644.41,11/9/2018
Atlas Copco Compressors LLC,Services,564,11/14/2018
Atlas Copco Compressors LLC,Services,472.5,12/3/2018
Atlas/First Access,Capital Purchases,77811,1/5/2018
Atlas/First Access,Services,1771.28,1/5/2018
Atlas/First Access,Services,671.46,1/5/2018
Atlas/First Access,Services,568.21,1/11/2018
Atlas/First Access,Services,2097.78,1/12/2018
Atlas/First Access,Services,1071.55,1/18/2018
Atlas/First Access,Services,1775.71,2/21/2018
Atlas/First Access,Services,423.4,2/21/2018
Atlas/First Access,Services,627.51,2/21/2018
Atlas/First Access,Services,2740.57,2/21/2018
Atlas/First Access,Services,512.89,3/15/2018
Atlas/First Access,Services,588,4/5/2018
Atlas/First Access,Services,1764.6,4/5/2018
Atlas/First Access,Services,270,4/5/2018
Atlas/First Access,Services,5101.59,4/5/2018
Atlas/First Access,Capital Purchases,104336,4/18/2018
Atlas/First Access,Services,382.5,4/18/2018
Atlas/First Access,Services,190,5/25/2018
Atlas/First Access,Services,3553.89,5/25/2018
Atlas/First Access,Services,190,6/7/2018
Atlas/First Access,Services,93.6,6/21/2018
Atlas/First Access,Services,509.2,7/2/2018
Atlas/First Access,Services,535.1,7/3/2018
Atlas/First Access,Services,187.2,8/1/2018
Atlas/First Access,Services,54.49,9/12/2018
Atlas/First Access,Services,858.27,9/12/2018
Atlas/First Access,Services,95,9/14/2018
Atlas/First Access,Services,1028.6,10/1/2018
Atlas/First Access,Services,1269.64,10/5/2018
Atlas/First Access,Services,519.51,10/15/2018
Atlas/First Access,Services,324.51,10/22/2018
Atlas/First Access,Services,2949.39,11/7/2018
Atlas/First Access,Services,334.5,11/14/2018
Atlas/First Access,Services,1535.83,12/19/2018
Attorney Registration & Disciplinary  Commission,Services,5390,12/12/2018
Auburn Metrology Lab (Aml),Services,940.37,9/14/2018
Augusto Grillo,Services,149.39,12/4/2018
Auto Truck Group  Llc,Services,2803.07,1/5/2018
Auto Truck Group  Llc,Services,330,3/15/2018
Auto Truck Group  Llc,Services,481.52,4/5/2018
Auto Truck Group  Llc,Services,204.52,4/27/2018
Auto Truck Group  Llc,Services,440,6/20/2018
Auto Truck Group  Llc,Services,2313.85,9/4/2018
Auto Truck Group  Llc,Services,440,10/3/2018
Auto Truck Group  Llc,Services,165.35,10/3/2018
Auto Truck Group  Llc,Services,7864.61,11/26/2018
Auto Truck Group  Llc,Services,1864.88,12/3/2018
Automated Railroad Mntce. Systems Systems  Inc. (Arms  Inc.),Capital Purchases,2524.14,2/12/2018
Automated Railroad Mntce. Systems Systems  Inc. (Arms  Inc.),Capital Purchases,7436,4/5/2018
Automated Railroad Mntce. Systems Systems  Inc. (Arms  Inc.),Capital Purchases,2702.65,5/7/2018
Automated Railroad Mntce. Systems Systems  Inc. (Arms  Inc.),Capital Purchases,3623.85,7/25/2018
Automated Railroad Mntce. Systems Systems  Inc. (Arms  Inc.),Capital Purchases,2174.31,11/1/2018
Automated Railroad Mntce. Systems Systems  Inc. (Arms  Inc.),Capital Purchases,6548.41,12/26/2018
Averson R. Chandler,Services,254.09,1/12/2018
Averson R. Chandler,Services,289.94,2/23/2018
Averson R. Chandler,Services,37.06,3/14/2018
Averson R. Chandler,Services,123.14,3/14/2018
Averson R. Chandler,Services,92.65,4/23/2018
Averson R. Chandler,Services,172.01,4/23/2018
Averson R. Chandler,Services,160.69,6/1/2018
Averson R. Chandler,Services,17.88,6/4/2018
Averson R. Chandler,Services,115.54,6/4/2018
Averson R. Chandler,Services,389.62,6/15/2018
Averson R. Chandler,Services,838.47,7/2/2018
Averson R. Chandler,Services,178.24,7/6/2018
Averson R. Chandler,Services,223.12,7/25/2018
Averson R. Chandler,Services,123.15,8/15/2018
Averson R. Chandler,Services,266.82,9/13/2018
Averson R. Chandler,Services,182.73,10/11/2018
Averson R. Chandler,Services,96.27,11/16/2018
Averson R. Chandler,Services,59.58,12/13/2018
Averson R. Chandler,Services,205.44,12/28/2018
AWBC Communications Group/Magazine,Services,120,2/1/2018
"Axon Enterprise, Inc",Materials,7100,9/12/2018
Ayodeji Ariyo,Services,25.4,9/13/2018
Ayodeji Ariyo,Services,15.5,9/13/2018
Ayodeji Ariyo,Services,1034.03,9/13/2018
Ayodeji Ariyo,Services,352,9/13/2018
Azura Investigations Llc,Services,3171,4/2/2018
Azura Investigations Llc,Services,1011,4/5/2018
Azura Investigations Llc,Services,771,5/16/2018
Azura Investigations Llc,Services,2848.5,6/20/2018
Azura Investigations Llc,Services,963.5,8/6/2018
Azura Investigations Llc,Services,1067,11/1/2018
Azura Investigations Llc,Services,1050,11/14/2018
Azura Investigations Llc,Services,1813,12/3/2018
"Babak Mokhlesi, MD",Claims & Insurance,2600,3/26/2018
Bach-Simpson Div. Of Wabtec Canada  Inc.,Materials,2860,2/13/2018
Bach-Simpson Div. Of Wabtec Canada  Inc.,Materials,1050,2/13/2018
Bach-Simpson Div. Of Wabtec Canada  Inc.,Materials,5196,2/14/2018
Bach-Simpson Div. Of Wabtec Canada  Inc.,Materials,595,2/15/2018
Bach-Simpson Div. Of Wabtec Canada  Inc.,Services,3795,2/20/2018
Bach-Simpson Div. Of Wabtec Canada  Inc.,Materials,6925,3/1/2018
Bach-Simpson Div. Of Wabtec Canada  Inc.,Materials,9093,3/16/2018
Bach-Simpson Div. Of Wabtec Canada  Inc.,Capital Purchases,10417,4/2/2018
Bach-Simpson Div. Of Wabtec Canada  Inc.,Materials,2795,4/2/2018
Bach-Simpson Div. Of Wabtec Canada  Inc.,Services,2795,4/2/2018
Bach-Simpson Div. Of Wabtec Canada  Inc.,Materials,5936,4/9/2018
Bach-Simpson Div. Of Wabtec Canada  Inc.,Capital Purchases,3788,4/18/2018
Bach-Simpson Div. Of Wabtec Canada  Inc.,Services,595,4/18/2018
Bach-Simpson Div. Of Wabtec Canada  Inc.,Capital Purchases,19887,5/1/2018
Bach-Simpson Div. Of Wabtec Canada  Inc.,Services,2795,5/1/2018
Bach-Simpson Div. Of Wabtec Canada  Inc.,Materials,5196,5/10/2018
Bach-Simpson Div. Of Wabtec Canada  Inc.,Capital Purchases,947,5/11/2018
Bach-Simpson Div. Of Wabtec Canada  Inc.,Capital Purchases,1894,5/11/2018
Bach-Simpson Div. Of Wabtec Canada  Inc.,Capital Purchases,947,5/16/2018
Bach-Simpson Div. Of Wabtec Canada  Inc.,Materials,10275,5/30/2018
Bach-Simpson Div. Of Wabtec Canada  Inc.,Capital Purchases,1894,6/1/2018
Bach-Simpson Div. Of Wabtec Canada  Inc.,Services,4695,6/1/2018
Bach-Simpson Div. Of Wabtec Canada  Inc.,Capital Purchases,80444,6/4/2018
Bach-Simpson Div. Of Wabtec Canada  Inc.,Capital Purchases,947,6/4/2018
Bach-Simpson Div. Of Wabtec Canada  Inc.,Materials,11576,6/7/2018
Bach-Simpson Div. Of Wabtec Canada  Inc.,Capital Purchases,2841,6/7/2018
Bach-Simpson Div. Of Wabtec Canada  Inc.,Capital Purchases,947,7/6/2018
Bach-Simpson Div. Of Wabtec Canada  Inc.,Materials,370,7/10/2018
Bach-Simpson Div. Of Wabtec Canada  Inc.,Capital Purchases,947,7/16/2018
Bach-Simpson Div. Of Wabtec Canada  Inc.,Materials,1365,8/1/2018
Bach-Simpson Div. Of Wabtec Canada  Inc.,Materials,6890,8/7/2018
Bach-Simpson Div. Of Wabtec Canada  Inc.,Capital Purchases,3788,8/27/2018
Bach-Simpson Div. Of Wabtec Canada  Inc.,Materials,2544,9/4/2018
Bach-Simpson Div. Of Wabtec Canada  Inc.,Capital Purchases,6629,9/19/2018
Bach-Simpson Div. Of Wabtec Canada  Inc.,Materials,1110,9/25/2018
Bach-Simpson Div. Of Wabtec Canada  Inc.,Materials,7794,10/1/2018
Bach-Simpson Div. Of Wabtec Canada  Inc.,Materials,790,10/10/2018
Bach-Simpson Div. Of Wabtec Canada  Inc.,Capital Purchases,206952,10/10/2018
Bach-Simpson Div. Of Wabtec Canada  Inc.,Materials,370,10/17/2018
Bach-Simpson Div. Of Wabtec Canada  Inc.,Materials,6600,10/26/2018
Bach-Simpson Div. Of Wabtec Canada  Inc.,Materials,16818,11/1/2018
Bach-Simpson Div. Of Wabtec Canada  Inc.,Capital Purchases,1894,11/1/2018
Bach-Simpson Div. Of Wabtec Canada  Inc.,Materials,395,11/26/2018
Bach-Simpson Div. Of Wabtec Canada  Inc.,Materials,510,11/26/2018
Bach-Simpson Div. Of Wabtec Canada  Inc.,Capital Purchases,947,11/28/2018
Bach-Simpson Div. Of Wabtec Canada  Inc.,Capital Purchases,947,11/30/2018
Bach-Simpson Div. Of Wabtec Canada  Inc.,Materials,1990,12/3/2018
Bach-Simpson Div. Of Wabtec Canada  Inc.,Capital Purchases,1894,12/3/2018
Bach-Simpson Div. Of Wabtec Canada  Inc.,Materials,298,12/3/2018
Bach-Simpson Div. Of Wabtec Canada  Inc.,Services,8385,12/3/2018
Bach-Simpson Div. Of Wabtec Canada  Inc.,Services,1190,12/3/2018
Bach-Simpson Div. Of Wabtec Canada  Inc.,Materials,790,12/5/2018
Bach-Simpson Div. Of Wabtec Canada  Inc.,Capital Purchases,947,12/5/2018
Bach-Simpson Div. Of Wabtec Canada  Inc.,Materials,790,12/18/2018
Bake For Me,Materials,83.45,1/24/2018
Bake For Me,Materials,1808.15,2/14/2018
Bake For Me,Materials,336,3/21/2018
Bake For Me,Materials,200,4/9/2018
Bake For Me,Materials,246.9,4/13/2018
Bake For Me,Materials,192,4/16/2018
Bake For Me,Materials,971.6,6/7/2018
Bake For Me,Materials,123.45,6/22/2018
Bake For Me,Materials,246.9,7/9/2018
Bake For Me,Materials,323.45,7/11/2018
Bake For Me,Materials,973.8,8/1/2018
Bake For Me,Materials,414.9,8/7/2018
Bake For Me,Materials,578.35,8/13/2018
Bake For Me,Services,123.45,9/7/2018
Bake For Me,Services,136,9/21/2018
Bake For Me,Services,123.45,9/24/2018
Bake For Me,Services,382.9,9/24/2018
Bake For Me,Services,246.9,10/2/2018
Bake For Me,Materials,136,10/5/2018
Bake For Me,Services,207.1,10/10/2018
Bake For Me,Services,259.45,11/14/2018
Bake For Me,Services,507.45,12/5/2018
Bake For Me,Services,136,12/5/2018
Ballast Tools  Inc.,Materials,13232,4/24/2018
Ballast Tools  Inc.,Materials,4208,8/1/2018
Ballast Tools  Inc.,Materials,6312,11/2/2018
Ballast Tools  Inc.,Materials,9370,12/18/2018
Bank Of America,Services,38948.64,1/9/2018
Bank Of America,Services,5733723.99,1/10/2018
Bank Of America,Services,113.5,1/22/2018
Bank Of America,Services,5605936.8,1/24/2018
Bank Of America,Services,5815164.55,2/8/2018
Bank Of America,Services,16539.33,2/15/2018
Bank Of America,Services,6060205.75,2/23/2018
Bank Of America,Services,4989603.62,3/8/2018
Bank Of America,Services,5438175.86,3/23/2018
Bank Of America,Services,308128.51,4/2/2018
Bank Of America,Services,5773005.99,4/10/2018
Bank Of America,Services,16576.31,4/10/2018
Bank Of America,Services,5416231.5,4/24/2018
Bank Of America,Services,36112.3,5/4/2018
Bank Of America,Services,8049210.42,5/9/2018
Bank Of America,Services,5557819.4,5/23/2018
Bank Of America,Services,5940190.63,6/11/2018
Bank Of America,Services,5652478.97,6/25/2018
Bank Of America,Services,18101.57,6/27/2018
Bank Of America,Services,16959.83,6/28/2018
Bank Of America,Services,5506394.17,7/11/2018
Bank Of America,Services,5556244.49,7/24/2018
Bank Of America,Services,17248.75,7/26/2018
Bank Of America,Services,6201124.55,8/8/2018
Bank Of America,Services,5714514.25,8/24/2018
Bank Of America,Services,6155389.37,9/11/2018
Bank Of America,Services,18616.68,9/17/2018
Bank Of America,Services,5566265.27,9/25/2018
Bank Of America,Services,5686615.88,10/9/2018
Bank Of America,Services,5690175.38,10/23/2018
Bank Of America,Services,35005.32,11/7/2018
Bank Of America,Services,6269663.39,11/8/2018
Bank Of America,Services,5816995.88,11/26/2018
Bank Of America,Services,20469.21,12/5/2018
Bank Of America,Services,6167324.07,12/10/2018
Bank Of America,Services,5560646.55,12/26/2018
Bank Of America Merrill Lynch,Services,54887.77,11/12/2018
Barbara J. Buhai,Services,12.75,5/3/2018
Barbara J. Buhai,Services,4715,8/13/2018
Barbara K. Nelson,Services,240.8,4/4/2018
Barbara K. Nelson,Services,518,4/4/2018
Barbara K. Nelson,Services,1200,4/4/2018
Barbara K. Nelson,Services,87.3,6/12/2018
Barbara K. Nelson,Services,20,10/30/2018
Barbara K. Nelson,Services,25,12/12/2018
Barber Spring Co.,Materials,1423.16,3/1/2018
Barber Spring Co.,Materials,711.58,3/7/2018
Barber Spring Co.,Materials,1496.08,4/2/2018
Barber Spring Co.,Materials,2594.36,4/9/2018
Barber Spring Co.,Materials,4406.53,5/11/2018
Barber Spring Co.,Materials,3715.6,5/30/2018
Barber Spring Co.,Materials,1208.36,9/4/2018
Barber Spring Co.,Materials,674.42,9/12/2018
Barber Spring Co.,Materials,2384.96,10/17/2018
Barber Spring Co.,Materials,711.58,12/18/2018
Barber Spring Co.,Materials,1011.63,12/20/2018
Barber Spring Co.,Materials,2384.96,12/21/2018
Barco Products,Materials,810.78,5/16/2018
Barrett's Technology Solutions,Capital Purchases,43705.94,10/24/2018
Baultar Concept  Inc.,Capital Purchases,68113.4,11/1/2018
BBA Project  Inc.,Capital Purchases,520.02,1/23/2018
BBA Project  Inc.,Capital Purchases,211922.06,2/1/2018
BBA Project  Inc.,Materials,5463.35,2/14/2018
BBA Project  Inc.,Materials,510.88,3/1/2018
BBA Project  Inc.,Capital Purchases,3120.12,3/1/2018
BBA Project  Inc.,Materials,410,3/7/2018
BBA Project  Inc.,Capital Purchases,16238.32,3/16/2018
BBA Project  Inc.,Materials,2050,4/9/2018
BBA Project  Inc.,Capital Purchases,25397.52,4/11/2018
BBA Project  Inc.,Capital Purchases,1040.04,5/1/2018
BBA Project  Inc.,Capital Purchases,1819,5/1/2018
BBA Project  Inc.,Materials,410,5/11/2018
BBA Project  Inc.,Capital Purchases,24357.48,5/23/2018
BBA Project  Inc.,Capital Purchases,4680.18,5/23/2018
BBA Project  Inc.,Materials,1021.76,5/30/2018
BBA Project  Inc.,Capital Purchases,18720.72,6/1/2018
BBA Project  Inc.,Capital Purchases,520.02,6/7/2018
BBA Project  Inc.,Capital Purchases,1040.04,6/7/2018
BBA Project  Inc.,Capital Purchases,4992.62,6/8/2018
BBA Project  Inc.,Materials,800.25,6/8/2018
BBA Project  Inc.,Capital Purchases,21840.84,6/15/2018
BBA Project  Inc.,Materials,894.04,6/21/2018
BBA Project  Inc.,Capital Purchases,24357.48,6/21/2018
BBA Project  Inc.,Capital Purchases,520.02,6/21/2018
BBA Project  Inc.,Capital Purchases,24357.48,6/22/2018
BBA Project  Inc.,Capital Purchases,520.02,7/2/2018
BBA Project  Inc.,Capital Purchases,16238.32,7/11/2018
BBA Project  Inc.,Capital Purchases,24960.96,7/11/2018
BBA Project  Inc.,Materials,3069,8/1/2018
BBA Project  Inc.,Capital Purchases,32476.64,8/1/2018
BBA Project  Inc.,Materials,1215,8/1/2018
BBA Project  Inc.,Capital Purchases,520.02,8/7/2018
BBA Project  Inc.,Capital Purchases,520.02,8/21/2018
BBA Project  Inc.,Capital Purchases,48714.96,9/4/2018
BBA Project  Inc.,Capital Purchases,24960.96,9/4/2018
BBA Project  Inc.,Capital Purchases,24357.48,10/1/2018
BBA Project  Inc.,Capital Purchases,520.02,10/2/2018
BBA Project  Inc.,Materials,2728.5,10/17/2018
BBA Project  Inc.,Capital Purchases,79165.02,11/5/2018
BBA Project  Inc.,Materials,894.04,11/26/2018
BBA Project  Inc.,Capital Purchases,24357.48,12/3/2018
BBA Project  Inc.,Materials,4430,12/18/2018
BCBS Of Illinois,Services,953866.83,1/10/2018
BCBS Of Illinois,Services,923666.92,2/7/2018
BCBS Of Illinois,Services,959334.19,3/1/2018
BCBS Of Illinois,Services,957000.77,3/29/2018
BCBS Of Illinois,Services,938838.64,4/27/2018
BCBS Of Illinois,Services,975667.15,6/5/2018
BCBS Of Illinois,Services,968762.25,7/2/2018
BCBS Of Illinois,Services,996502.83,7/27/2018
BCBS Of Illinois,Services,978141.89,9/7/2018
BCBS Of Illinois,Services,874623.26,10/10/2018
BCBS Of Illinois,Claims & Insurance,20,10/29/2018
BCBS Of Illinois,Services,959353.88,11/13/2018
BCBS Of Illinois,Services,984504.19,12/3/2018
Beau Willis,Services,100,8/24/2018
Bebon Office Machines Co.  Inc.,Services,180,3/7/2018
Bebon Office Machines Co.  Inc.,Services,180,4/11/2018
Bebon Office Machines Co.  Inc.,Materials,160,6/7/2018
Bebon Office Machines Co.  Inc.,Services,1456,6/13/2018
Bebon Office Machines Co.  Inc.,Services,565,9/4/2018
Bebon Office Machines Co.  Inc.,Services,1381,9/5/2018
Bebon Office Machines Co.  Inc.,Materials,95,11/14/2018
Bebon Office Machines Co.  Inc.,Services,650,11/14/2018
Beligh Sraieb,Services,34.88,3/2/2018
Beligh Sraieb,Services,102.46,3/21/2018
Beligh Sraieb,Services,82.84,4/30/2018
Beligh Sraieb,Services,23.98,5/24/2018
Beligh Sraieb,Services,43.6,8/3/2018
Beligh Sraieb,Services,69.76,8/10/2018
Beligh Sraieb,Services,34.88,8/20/2018
Beligh Sraieb,Services,43.6,10/22/2018
Bellwood Electric Motors Inc.,Materials,18900,1/2/2018
Bellwood Electric Motors Inc.,Capital Purchases,3500,1/16/2018
Bellwood Electric Motors Inc.,Materials,18900,2/1/2018
Bellwood Electric Motors Inc.,Materials,32250,2/14/2018
Bellwood Electric Motors Inc.,Materials,7070,3/1/2018
Bellwood Electric Motors Inc.,Services,3570,3/1/2018
Bellwood Electric Motors Inc.,Services,3200,3/1/2018
Bellwood Electric Motors Inc.,Services,4350,3/1/2018
Bellwood Electric Motors Inc.,Materials,5390,3/7/2018
Bellwood Electric Motors Inc.,Capital Purchases,3500,3/22/2018
Bellwood Electric Motors Inc.,Services,2000,3/22/2018
Bellwood Electric Motors Inc.,Capital Purchases,3500,4/17/2018
Bellwood Electric Motors Inc.,Materials,20480,5/1/2018
Bellwood Electric Motors Inc.,Materials,790,5/30/2018
Bellwood Electric Motors Inc.,Materials,33600,6/1/2018
Bellwood Electric Motors Inc.,Services,0.01,6/1/2018
Bellwood Electric Motors Inc.,Capital Purchases,3500,6/18/2018
Bellwood Electric Motors Inc.,Materials,13500,7/2/2018
Bellwood Electric Motors Inc.,Materials,6700,7/11/2018
Bellwood Electric Motors Inc.,Capital Purchases,3500,7/11/2018
Bellwood Electric Motors Inc.,Materials,4600,8/1/2018
Bellwood Electric Motors Inc.,Materials,4390,9/4/2018
Bellwood Electric Motors Inc.,Materials,890,9/12/2018
Bellwood Electric Motors Inc.,Materials,8200,9/24/2018
Bellwood Electric Motors Inc.,Materials,3500,9/25/2018
Bellwood Electric Motors Inc.,Materials,18900,10/2/2018
Bellwood Electric Motors Inc.,Materials,4000,10/10/2018
Bellwood Electric Motors Inc.,Materials,3950,10/15/2018
Bellwood Electric Motors Inc.,Materials,4400,10/17/2018
Bellwood Electric Motors Inc.,Materials,18900,10/22/2018
Bellwood Electric Motors Inc.,Materials,8800,11/1/2018
"Benchmark Reporting Agency, Inc.",Claims & Insurance,198.95,3/27/2018
Benefit Resource Inc.,Services,44576.23,1/10/2018
Benefit Resource Inc.,Services,44742.89,1/24/2018
Benefit Resource Inc.,Services,3489.5,2/7/2018
Benefit Resource Inc.,Services,44697.06,2/8/2018
Benefit Resource Inc.,Services,58936.11,2/16/2018
Benefit Resource Inc.,Services,44492.89,2/26/2018
Benefit Resource Inc.,Services,44097.05,3/9/2018
Benefit Resource Inc.,Services,43990.8,3/23/2018
Benefit Resource Inc.,Services,156956.28,3/29/2018
Benefit Resource Inc.,Services,4395.01,4/4/2018
Benefit Resource Inc.,Services,44226.22,4/10/2018
Benefit Resource Inc.,Services,36494.43,4/12/2018
Benefit Resource Inc.,Services,44006.22,4/24/2018
Benefit Resource Inc.,Services,43918.1,5/9/2018
Benefit Resource Inc.,Services,43755.17,5/23/2018
Benefit Resource Inc.,Services,2256,6/5/2018
Benefit Resource Inc.,Services,43993.6,6/11/2018
Benefit Resource Inc.,Services,43810.41,6/25/2018
Benefit Resource Inc.,Services,43891.65,7/11/2018
Benefit Resource Inc.,Services,44016.65,7/24/2018
Benefit Resource Inc.,Services,2880.3,7/27/2018
Benefit Resource Inc.,Services,43847.9,8/9/2018
Benefit Resource Inc.,Services,102459.65,8/20/2018
Benefit Resource Inc.,Services,106760.24,8/21/2018
Benefit Resource Inc.,Services,43485.39,8/24/2018
Benefit Resource Inc.,Services,53985.71,9/7/2018
Benefit Resource Inc.,Services,43615.4,9/11/2018
Benefit Resource Inc.,Services,43631.23,9/25/2018
Benefit Resource Inc.,Services,43637.48,10/9/2018
Benefit Resource Inc.,Services,53758.73,10/10/2018
Benefit Resource Inc.,Services,43456.22,10/23/2018
Benefit Resource Inc.,Services,43412.46,11/8/2018
Benefit Resource Inc.,Services,43743.73,11/27/2018
Benefit Resource Inc.,Services,752,11/30/2018
Benefit Resource Inc.,Services,3760,12/3/2018
Benefit Resource Inc.,Services,5777.2,12/4/2018
Benefit Resource Inc.,Services,43431.56,12/10/2018
Benefit Resource Inc.,Services,42809.11,12/27/2018
Beni V. Calderon,Services,21.12,3/1/2018
"Benjamin A. Goldberg, MD",Claims & Insurance,10250,2/1/2018
"Benjamin A. Goldberg, MD",Claims & Insurance,4250,7/25/2018
"Benjamin A. Goldberg, MD",Claims & Insurance,8750,9/4/2018
"Benjamin A. Goldberg, MD",Claims & Insurance,7750,10/5/2018
"Benjamin A. Goldberg, MD",Claims & Insurance,12000,12/12/2018
"Benjamin A. Goldberg, MD",Claims & Insurance,13000,12/17/2018
"Benjamin and Shapiro, LTD.",Claims & Insurance,66999.08,3/14/2018
Benjamin Contreras,Services,734.5,5/30/2018
Benjamin Contreras,Services,734.5,6/14/2018
Benjamin Contreras,Services,169.5,6/25/2018
Benjamin Contreras,Services,395.5,6/25/2018
Benjamin Contreras,Services,226,7/25/2018
Benjamin Contreras,Services,1356,8/13/2018
Benjamin Contreras,Services,678,9/12/2018
Benjamin Contreras,Services,226,9/18/2018
Benjamin Robles  Iii,Services,116.84,11/30/2018
Benjamin Robles  Iii,Services,233.68,12/5/2018
Bentley Systems  Inc.,Services,137279.04,12/4/2018
Berkeley Simulation Software  LLC,Services,5000,12/3/2018
Bernard Powell,Services,565,5/1/2018
Bernard Powell,Services,113,5/1/2018
Bernard Powell,Services,734.5,5/18/2018
Bernard Powell,Services,565,6/1/2018
Bernard Powell,Services,395.5,6/14/2018
Bernard Powell,Services,169.5,6/26/2018
Bernard Powell,Services,395.5,6/26/2018
Bernard Powell,Services,282.5,7/25/2018
Bernard Powell,Services,452,7/25/2018
Bernard Powell,Services,169.5,8/10/2018
Bernard Powell,Services,395.5,8/10/2018
Bernard Powell,Services,339,9/13/2018
Bernard Powell,Services,113,9/13/2018
Bernard Powell,Services,339,9/19/2018
Bernard Powell,Services,678,9/19/2018
Bernard Powell,Services,56.5,9/19/2018
Berts Car Wash  Inc.,Services,2177,2/13/2018
Berts Car Wash  Inc.,Services,284,2/14/2018
Berts Car Wash  Inc.,Services,1532,3/1/2018
Berts Car Wash  Inc.,Services,1278,5/11/2018
Berts Car Wash  Inc.,Services,1514,5/16/2018
Berts Car Wash  Inc.,Services,2949,7/2/2018
Berts Car Wash  Inc.,Services,4088,8/13/2018
Berts Car Wash  Inc.,Services,1787,10/10/2018
Berts Car Wash  Inc.,Services,1984,11/2/2018
Berts Car Wash  Inc.,Services,1198,12/18/2018
Beverly Rutledge,Claims & Insurance,2400,9/12/2018
"Bevil Reporting Service, Inc.",Claims & Insurance,306.4,10/1/2018
Big Mountain Imaging,Services,3926.4,11/1/2018
Binal Patel,Services,717.88,6/28/2018
Black Dog Petroleum LLC,Materials,4712,3/1/2018
Black Dog Petroleum LLC,Materials,4564.75,5/30/2018
Black Dog Petroleum LLC,Materials,1767,6/21/2018
Black Dog Petroleum LLC,Materials,1767,6/26/2018
Black Dog Petroleum LLC,Materials,1619.75,8/1/2018
Black Dog Petroleum LLC,Materials,2945,8/17/2018
Black Dog Petroleum LLC,Materials,1914.25,9/4/2018
Black Dog Petroleum LLC,Materials,1767,9/5/2018
Black Dog Petroleum LLC,Materials,1914.25,10/1/2018
Black Dog Petroleum LLC,Materials,2356,10/2/2018
Black Dog Petroleum LLC,Materials,1619.75,10/26/2018
Black Dog Petroleum LLC,Materials,3386.75,11/26/2018
Black Dog Petroleum LLC,Materials,2208.75,12/3/2018
Black Dog Petroleum LLC,Materials,2945,12/6/2018
Black Women Lawyer's Association,Services,100,2/15/2018
Blake D. Austin,Services,2531.38,4/19/2018
BLET GCA Local 294 & 575,Services,20,1/12/2018
BLET GCA Local 294 & 575,Services,20,2/13/2018
BLET GCA Local 294 & 575,Services,20,3/14/2018
BLET GCA Local 294 & 575,Services,15,4/13/2018
BLET GCA Local 294 & 575,Services,15,5/10/2018
BLET GCA Local 294 & 575,Services,20,6/12/2018
BLET GCA Local 294 & 575,Services,20,7/17/2018
BLET GCA Local 294 & 575,Services,25,8/13/2018
BLET GCA Local 294 & 575,Services,25,9/17/2018
BLET GCA Local 294 & 575,Services,25,10/15/2018
BLET GCA Local 294 & 575,Services,25,11/16/2018
BLET GCA Local 294 & 575,Services,25,12/17/2018
Blinderman Construction Co.  Inc.,Capital Purchases,176542.43,5/1/2018
Blinderman Construction Co.  Inc.,Capital Purchases,604807.61,6/12/2018
Blinderman Construction Co.  Inc.,Capital Purchases,1022204.79,9/4/2018
Blue Print Shoppe  Inc.,Capital Purchases,2.4,3/1/2018
Blue Print Shoppe  Inc.,Capital Purchases,198.84,3/1/2018
Blue Print Shoppe  Inc.,Capital Purchases,22.24,5/9/2018
Blue Print Shoppe  Inc.,Capital Purchases,1494.2,5/16/2018
Blue Print Shoppe  Inc.,Capital Purchases,123.34,9/6/2018
Blue Print Shoppe  Inc.,Capital Purchases,1458.24,9/18/2018
Blue Print Shoppe  Inc.,Capital Purchases,295,10/8/2018
Blue Print Shoppe  Inc.,Capital Purchases,635.4,11/1/2018
BMC Software Inc.,Services,16160,6/26/2018
Bnsf Railway Co.,Capital Purchases,5704.29,1/5/2018
Bnsf Railway Co.,Capital Purchases,227460.82,1/9/2018
Bnsf Railway Co.,Capital Purchases,261853.69,1/9/2018
Bnsf Railway Co.,Capital Purchases,145287.03,1/11/2018
Bnsf Railway Co.,Capital Purchases,40509.87,1/11/2018
Bnsf Railway Co.,Services,4566875.24,1/22/2018
Bnsf Railway Co.,Capital Purchases,186371.27,2/1/2018
Bnsf Railway Co.,Capital Purchases,146610.51,2/1/2018
Bnsf Railway Co.,Capital Purchases,5695.37,2/5/2018
Bnsf Railway Co.,Services,3578.89,2/13/2018
Bnsf Railway Co.,Services,5398294.49,2/22/2018
Bnsf Railway Co.,Capital Purchases,10131.33,3/23/2018
Bnsf Railway Co.,Services,4659157.19,3/26/2018
Bnsf Railway Co.,Capital Purchases,65803.14,4/3/2018
Bnsf Railway Co.,Capital Purchases,26742.65,4/4/2018
Bnsf Railway Co.,Capital Purchases,4918.39,4/4/2018
Bnsf Railway Co.,Services,4986543.12,4/24/2018
Bnsf Railway Co.,Services,14315.56,4/25/2018
Bnsf Railway Co.,Capital Purchases,24032.86,4/26/2018
Bnsf Railway Co.,Capital Purchases,132790.36,5/1/2018
Bnsf Railway Co.,Capital Purchases,545381.3,5/1/2018
Bnsf Railway Co.,Capital Purchases,27270,5/2/2018
Bnsf Railway Co.,Capital Purchases,289983.45,5/2/2018
Bnsf Railway Co.,Capital Purchases,67209.74,5/2/2018
Bnsf Railway Co.,Capital Purchases,436987.05,5/2/2018
Bnsf Railway Co.,Capital Purchases,7335.5,5/9/2018
Bnsf Railway Co.,Services,3578.89,5/9/2018
Bnsf Railway Co.,Capital Purchases,360271.19,5/11/2018
Bnsf Railway Co.,Capital Purchases,146028,5/11/2018
Bnsf Railway Co.,Capital Purchases,-935,5/21/2018
Bnsf Railway Co.,Capital Purchases,31483.14,5/21/2018
Bnsf Railway Co.,Capital Purchases,6641.54,5/22/2018
Bnsf Railway Co.,Capital Purchases,3849.45,5/22/2018
Bnsf Railway Co.,Capital Purchases,-817.66,5/22/2018
Bnsf Railway Co.,Services,5053094.38,5/25/2018
Bnsf Railway Co.,Capital Purchases,5891.15,6/1/2018
Bnsf Railway Co.,Capital Purchases,37299.8,6/5/2018
Bnsf Railway Co.,Capital Purchases,42112.23,6/5/2018
Bnsf Railway Co.,Capital Purchases,914.88,6/6/2018
Bnsf Railway Co.,Capital Purchases,12968.8,6/6/2018
Bnsf Railway Co.,Capital Purchases,1390.29,6/7/2018
Bnsf Railway Co.,Capital Purchases,141.34,6/11/2018
Bnsf Railway Co.,Services,3578.89,6/15/2018
Bnsf Railway Co.,Capital Purchases,7864.62,6/21/2018
Bnsf Railway Co.,Services,5349623.15,6/26/2018
Bnsf Railway Co.,Capital Purchases,453073.07,7/2/2018
Bnsf Railway Co.,Services,3578.89,7/12/2018
Bnsf Railway Co.,Services,5349218.99,7/26/2018
Bnsf Railway Co.,Capital Purchases,19235.77,8/20/2018
Bnsf Railway Co.,Capital Purchases,36366.72,8/23/2018
Bnsf Railway Co.,Capital Purchases,88769.15,8/23/2018
Bnsf Railway Co.,Services,5477913.01,8/24/2018
Bnsf Railway Co.,Capital Purchases,54098.61,8/27/2018
Bnsf Railway Co.,Capital Purchases,23813.45,8/27/2018
Bnsf Railway Co.,Capital Purchases,354720.77,8/27/2018
Bnsf Railway Co.,Capital Purchases,30978.21,8/29/2018
Bnsf Railway Co.,Capital Purchases,694587.15,9/4/2018
Bnsf Railway Co.,Services,3779.36,9/4/2018
Bnsf Railway Co.,Capital Purchases,90016.77,9/6/2018
Bnsf Railway Co.,Capital Purchases,23772.61,9/6/2018
Bnsf Railway Co.,Services,3779.36,9/12/2018
Bnsf Railway Co.,Capital Purchases,80205.15,9/13/2018
Bnsf Railway Co.,Services,5569235.03,9/24/2018
Bnsf Railway Co.,Services,3779.36,10/16/2018
Bnsf Railway Co.,Services,5248108.7,10/23/2018
Bnsf Railway Co.,Capital Purchases,9087.37,11/12/2018
Bnsf Railway Co.,Capital Purchases,69925.44,11/12/2018
Bnsf Railway Co.,Capital Purchases,73154.87,11/12/2018
Bnsf Railway Co.,Capital Purchases,55373.5,11/13/2018
Bnsf Railway Co.,Capital Purchases,280952.44,11/13/2018
Bnsf Railway Co.,Capital Purchases,999199.07,11/14/2018
Bnsf Railway Co.,Capital Purchases,21212.96,11/14/2018
Bnsf Railway Co.,Capital Purchases,4752.16,11/15/2018
Bnsf Railway Co.,Services,5612408.54,11/26/2018
Bnsf Railway Co.,Capital Purchases,351.86,11/30/2018
Bnsf Railway Co.,Capital Purchases,37276.93,12/3/2018
Bnsf Railway Co.,Services,3779.36,12/3/2018
Bnsf Railway Co.,Capital Purchases,18380,12/5/2018
Bnsf Railway Co.,Capital Purchases,114527.29,12/5/2018
Bnsf Railway Co.,Capital Purchases,2415.99,12/6/2018
Bnsf Railway Co.,Services,3779.36,12/10/2018
Bnsf Railway Co.,Services,5139318.25,12/19/2018
Bolingbrook Park District,Claims & Insurance,145,10/3/2018
Boma/Chicago,Services,2489,1/9/2018
Borislav Apostolov,Services,201.65,6/15/2018
Borislav Apostolov,Services,40.33,7/30/2018
Brabazon Pumpe Co.  Ltd.,Materials,1457.04,3/7/2018
Brabazon Pumpe Co.  Ltd.,Materials,308.8,4/13/2018
Brabazon Pumpe Co.  Ltd.,Materials,19488,6/21/2018
Brabazon Pumpe Co.  Ltd.,Materials,803.28,7/11/2018
Brabazon Pumpe Co.  Ltd.,Materials,812,10/17/2018
Brabazon Pumpe Co.  Ltd.,Materials,15409.16,11/2/2018
Brabazon Pumpe Co.  Ltd.,Materials,12992,11/14/2018
Brad Methling,Services,59.92,1/18/2018
Brad Methling,Services,43.87,1/18/2018
Brad Methling,Services,163.71,1/18/2018
Brad Methling,Services,44.7,2/13/2018
Brad Methling,Services,283.39,2/13/2018
Brad Methling,Services,87.2,3/1/2018
Brad Methling,Services,69.76,3/1/2018
Brad Methling,Services,89.38,3/1/2018
Brad Methling,Services,89.38,4/17/2018
Brad Methling,Services,83.93,4/17/2018
Brad Methling,Services,47.96,5/11/2018
Brad Methling,Services,134.07,5/11/2018
Brad Methling,Services,107.91,5/11/2018
Brad Methling,Services,252.88,6/7/2018
Brad Methling,Services,383.68,6/7/2018
Brad Methling,Services,261.6,7/19/2018
Brad Methling,Services,104.64,7/19/2018
Brad Methling,Services,89.38,8/13/2018
Brad Methling,Services,119.9,8/13/2018
Brad Methling,Services,34.88,9/14/2018
Brad Methling,Services,34.88,9/14/2018
Brad Methling,Services,69.76,9/14/2018
Brad Methling,Services,44.69,9/14/2018
Brad Methling,Services,61.04,10/9/2018
Brad Methling,Services,134.07,10/9/2018
Brad Methling,Services,179.85,10/9/2018
Brad Methling,Services,61.04,11/14/2018
Brad Methling,Services,44.69,11/14/2018
Brad Methling,Services,35.97,11/14/2018
Brad Methling,Services,136.25,12/12/2018
Brad Methling,Services,104.64,12/12/2018
Bradley L. Williams,Services,731.32,11/15/2018
Brandon C. Hill,Services,67.69,12/4/2018
Brandon Dudley,Claims & Insurance,22.56,8/3/2018
Brandon Henley,Services,309.05,5/1/2018
Brandon Johnson,Services,4270.58,5/10/2018
Brandon M. Bush,Services,125.51,11/15/2018
Brandon Postal,Services,3999.56,1/29/2018
Brandon Scott,Services,159.12,9/6/2018
Branton Scaife,Claims & Insurance,29.6,5/1/2018
Braulio Alvarez,Services,508.5,5/30/2018
Braulio Alvarez,Services,508.5,6/14/2018
Braulio Alvarez,Services,254.25,7/11/2018
Braulio Alvarez,Services,254.25,7/11/2018
Braulio Alvarez,Services,339,7/27/2018
Braulio Alvarez,Services,508.5,8/10/2018
Brenda Resendez,Services,156.73,11/19/2018
Brendan A. Stejskal,Services,68.67,4/17/2018
Brendan A. Stejskal,Services,212.56,7/23/2018
Brendan A. Stejskal,Services,226.3,8/6/2018
Brendan A. Stejskal,Services,129.17,9/4/2018
Brendan A. Stejskal,Services,207.55,9/11/2018
Brendan A. Stejskal,Services,230,9/24/2018
Brendan A. Stejskal,Services,169.51,10/9/2018
Brendan A. Stejskal,Services,149.34,10/22/2018
Brendan A. Stejskal,Services,295.95,11/7/2018
Brendan A. Stejskal,Services,169.5,11/29/2018
Brendan A. Stejskal,Services,309.02,12/13/2018
Brendan A. Stejskal,Services,300.1,12/21/2018
Brendan M. Ohara,Services,165.68,10/12/2018
Bresshenda Crudup,Services,260.44,8/14/2018
Brey Krause Manufacturing Co.,Capital Purchases,4660.76,8/1/2018
Brey Krause Manufacturing Co.,Services,185,8/1/2018
Brian C. Peters,Services,62.02,9/27/2018
Brian C. Peters,Services,1003.86,9/27/2018
Brian C. Peters,Services,416,9/27/2018
Brian C. Peters,Services,690.6,11/16/2018
Brian C. Peters,Services,363,11/16/2018
Brian E Hanas,Services,35,10/4/2018
Brian J. Kocis,Services,101.59,8/24/2018
Brian J. Kocis,Services,158.73,11/14/2018
Brian Jay Reynolds,Services,505.14,5/30/2018
Brian Piper,Services,53.75,7/10/2018
Brian R Borden,Services,1401.22,4/12/2018
Brian Ratulowski,Services,956.51,2/14/2018
Brian Ratulowski,Services,2335.6,10/2/2018
Brian S Wimmer,Services,176.58,6/14/2018
Brian S Wimmer,Services,164.59,7/11/2018
Brian S Wimmer,Services,9,7/11/2018
Brian S Wimmer,Services,149.74,8/22/2018
Brian S Wimmer,Services,88.5,8/22/2018
Brian Simnick,Services,232.44,3/2/2018
Brian Windle,Services,30,10/25/2018
Brian Windle,Services,35.76,10/25/2018
Brian Windle,Services,114,10/25/2018
Briant C. Holloway,Services,104.97,11/15/2018
Briant C. Holloway,Services,441.78,12/13/2018
Broadway Electric  Inc.,Capital Purchases,338872.5,12/3/2018
Brotherhood Of Locomotive Engineers & Trainmen  Div. 815,Services,118,1/12/2018
Brotherhood Of Locomotive Engineers & Trainmen  Div. 815,Services,128,2/13/2018
Brotherhood Of Locomotive Engineers & Trainmen  Div. 815,Services,178,3/14/2018
Brotherhood Of Locomotive Engineers & Trainmen  Div. 815,Services,178,4/13/2018
Brotherhood Of Locomotive Engineers & Trainmen  Div. 815,Services,178,4/16/2018
Brotherhood Of Locomotive Engineers & Trainmen  Div. 815,Services,178,5/10/2018
Brotherhood Of Locomotive Engineers & Trainmen  Div. 815,Services,73,6/6/2018
Brotherhood Of Locomotive Engineers & Trainmen  Div. 815,Services,193,6/12/2018
Brotherhood Of Locomotive Engineers & Trainmen  Div. 815,Services,60,7/16/2018
Brotherhood Of Locomotive Engineers & Trainmen  Div. 815,Services,193,7/17/2018
Brotherhood Of Locomotive Engineers & Trainmen  Div. 815,Services,193,8/13/2018
Brotherhood Of Locomotive Engineers & Trainmen  Div. 815,Services,193,9/17/2018
Brotherhood Of Locomotive Engineers & Trainmen  Div. 815,Services,193,10/15/2018
Brotherhood Of Locomotive Engineers & Trainmen  Div. 815,Services,193,11/16/2018
Brotherhood Of Locomotive Engineers & Trainmen  Div. 815,Services,193,12/17/2018
Bruce  Marcheschi,Services,164.59,5/30/2018
Bruce  Marcheschi,Services,205.58,6/27/2018
Bruce  Marcheschi,Services,553.33,6/27/2018
Bruce  Marcheschi,Services,207,6/27/2018
Bruce  Marcheschi,Services,262.89,7/2/2018
Bruce Coleman,Services,452,4/24/2018
Bruce Coleman,Services,734.5,5/21/2018
Bruce L. Frakes,Services,35686.32,1/16/2018
Bruce L. Frakes,Claims & Insurance,2000,6/11/2018
"Bruce W. Hallmann, MD",Claims & Insurance,800,6/12/2018
"Bruce W. Hallmann, MD",Claims & Insurance,400,8/20/2018
Bruno J Zawisza,Services,212,3/19/2018
Bryan Mack,Services,3765,8/3/2018
Buchanan Reporting  Inc.,Claims & Insurance,204.6,3/12/2018
Buchanan Reporting  Inc.,Claims & Insurance,179.8,4/2/2018
Buchanan Reporting  Inc.,Claims & Insurance,938,8/20/2018
Bulk Equipment Corp.,Services,8075.98,5/7/2018
Bureau Veritas North America  Inc.,Capital Purchases,8645.7,1/12/2018
Bureau Veritas North America  Inc.,Capital Purchases,2704.96,2/20/2018
Bureau Veritas North America  Inc.,Capital Purchases,1180.38,3/19/2018
Bureau Veritas North America  Inc.,Capital Purchases,3267.64,4/18/2018
Bureau Veritas North America  Inc.,Capital Purchases,4770.33,5/11/2018
Bureau Veritas North America  Inc.,Capital Purchases,5335.32,6/1/2018
Bureau Veritas North America  Inc.,Capital Purchases,2433.03,7/3/2018
Bureau Veritas North America  Inc.,Capital Purchases,9070.94,8/22/2018
Bureau Veritas North America  Inc.,Capital Purchases,6534.84,11/1/2018
Burns & Mcdonnell Engineering Co.,Capital Purchases,121608.26,1/19/2018
Burns & Mcdonnell Engineering Co.,Capital Purchases,852.18,2/1/2018
Burns & Mcdonnell Engineering Co.,Capital Purchases,37910.69,5/1/2018
Burns & Mcdonnell Engineering Co.,Capital Purchases,20730.53,5/1/2018
Burns & Mcdonnell Engineering Co.,Capital Purchases,10804.7,5/16/2018
Burns & Mcdonnell Engineering Co.,Capital Purchases,13668.08,5/16/2018
Burns & Mcdonnell Engineering Co.,Capital Purchases,41461.06,6/1/2018
Burns & Mcdonnell Engineering Co.,Capital Purchases,7353.22,7/6/2018
Burns & Mcdonnell Engineering Co.,Capital Purchases,39195.03,8/1/2018
Burns & Mcdonnell Engineering Co.,Capital Purchases,69700.65,9/19/2018
Burns & Mcdonnell Engineering Co.,Capital Purchases,27011.76,10/2/2018
Burns & Mcdonnell Engineering Co.,Capital Purchases,46105.21,10/3/2018
Burns & Mcdonnell Engineering Co.,Capital Purchases,13668.08,10/5/2018
Burns & Mcdonnell Engineering Co.,Capital Purchases,12636.9,11/29/2018
Burris Equipment Co.,Rental Expense,1814.4,1/23/2018
Burris Equipment Co.,Rental Expense,3628.8,2/20/2018
Burris Equipment Co.,Rental Expense,604.8,4/2/2018
Burris Equipment Co.,Rental Expense,1814.4,4/11/2018
Burris Equipment Co.,Rental Expense,1814.4,4/11/2018
Burris Equipment Co.,Rental Expense,3628.8,5/11/2018
Burris Equipment Co.,Rental Expense,3628.8,6/8/2018
Burris Equipment Co.,Rental Expense,3628.8,7/11/2018
Burris Equipment Co.,Rental Expense,3628.8,8/13/2018
Burris Equipment Co.,Rental Expense,3628.8,9/4/2018
Burris Equipment Co.,Rental Expense,1814.4,10/1/2018
Burris Equipment Co.,Rental Expense,1814.4,10/22/2018
Burris Equipment Co.,Rental Expense,201.6,12/3/2018
Ca  Inc.,Services,75106,10/1/2018
"Cal Coil Technologies, Inc.",Materials,143,5/10/2018
Calamp Wireless Networks Corp.,Capital Purchases,38049.6,1/26/2018
Calumet Harbor Lumber & Supplyco.,Materials,5070,2/20/2018
Calumet Harbor Lumber & Supplyco.,Materials,5070,2/20/2018
Calumet Lift Truck Service Co. Inc.,Materials,5968,2/1/2018
Calumet Lift Truck Service Co. Inc.,Services,5968,7/25/2018
Calumet Lift Truck Service Co. Inc.,Rental Expense,4988,9/4/2018
Calumet Lift Truck Service Co. Inc.,Services,3050,10/18/2018
Calumet Lift Truck Service Co. Inc.,Services,500,11/1/2018
Canadian National Railroad,Services,23180.91,1/2/2018
Canadian National Railroad,Services,20075.4,1/9/2018
Canadian National Railroad,Services,357.44,1/10/2018
Canadian National Railroad,Services,134956.66,1/29/2018
Canadian National Railroad,Services,33506.22,1/29/2018
Canadian National Railroad,Rental Expense,202435,1/29/2018
Canadian National Railroad,Services,134956.66,3/1/2018
Canadian National Railroad,Rental Expense,202435,3/1/2018
Canadian National Railroad,Services,134956.66,3/19/2018
Canadian National Railroad,Services,31228.41,3/19/2018
Canadian National Railroad,Rental Expense,202435,3/19/2018
Canadian National Railroad,Services,514.46,3/22/2018
Canadian National Railroad,Services,28639.89,4/25/2018
Canadian National Railroad,Capital Purchases,665654.63,5/1/2018
Canadian National Railroad,Services,146456.98,5/10/2018
Canadian National Railroad,Services,3117.95,5/10/2018
Canadian National Railroad,Services,70553.89,5/10/2018
Canadian National Railroad,Rental Expense,219685.52,5/10/2018
Canadian National Railroad,Services,137831.74,6/1/2018
Canadian National Railroad,Services,206747.63,6/1/2018
Canadian National Railroad,Services,137831.74,6/7/2018
Canadian National Railroad,Services,206747.63,6/7/2018
Canadian National Railroad,Services,9397.24,7/5/2018
Canadian National Railroad,Services,316.05,7/24/2018
Canadian National Railroad,Services,16407.88,7/30/2018
Canadian National Railroad,Services,137831.74,8/1/2018
Canadian National Railroad,Services,206747.63,8/1/2018
Canadian National Railroad,Services,137831.74,8/23/2018
Canadian National Railroad,Services,537.46,8/23/2018
Canadian National Railroad,Services,485.54,8/23/2018
Canadian National Railroad,Services,51827.15,8/23/2018
Canadian National Railroad,Rental Expense,154920.48,8/23/2018
Canadian National Railroad,Services,52505.22,9/5/2018
Canadian National Railroad,Capital Purchases,15650,9/21/2018
Canadian National Railroad,Capital Purchases,1450,10/1/2018
Canadian National Railroad,Capital Purchases,19950,10/8/2018
Canadian National Railroad,Services,275663.48,10/11/2018
Canadian National Railroad,Services,413495.26,10/11/2018
Canadian National Railroad,Services,724.18,11/2/2018
Canadian National Railroad,Services,52985.81,11/2/2018
Canadian National Railroad,Capital Purchases,3100,11/5/2018
Canadian National Railroad,Capital Purchases,4800,11/12/2018
Canadian National Railroad,Capital Purchases,8725,11/20/2018
Canadian National Railroad,Services,137831.74,11/20/2018
Canadian National Railroad,Services,266672.06,11/20/2018
Canadian National Railroad,Services,1424.8,12/21/2018
Canadian Pacific Railway Co.,Services,94946.4,1/17/2018
Canadian Pacific Railway Co.,Services,91824.02,2/1/2018
Canadian Pacific Railway Co.,Services,93486.97,2/20/2018
Canadian Pacific Railway Co.,Services,85049.51,3/20/2018
Canadian Pacific Railway Co.,Services,94073.6,4/23/2018
Canadian Pacific Railway Co.,Services,90482.38,5/9/2018
Canadian Pacific Railway Co.,Services,94147.59,6/21/2018
Canadian Pacific Railway Co.,Services,27761,7/16/2018
Canadian Pacific Railway Co.,Services,16138.1,7/16/2018
Canadian Pacific Railway Co.,Services,16694,7/16/2018
Canadian Pacific Railway Co.,Services,9860,7/16/2018
Canadian Pacific Railway Co.,Services,90649.94,7/20/2018
Canadian Pacific Railway Co.,Services,94073.59,9/10/2018
Canadian Pacific Railway Co.,Services,93812.47,9/26/2018
Canadian Pacific Railway Co.,Services,93256.73,10/4/2018
Canadian Pacific Railway Co.,Services,90149.01,11/8/2018
Canadian Pacific Railway Co.,Services,27727,12/10/2018
Canadian Pacific Railway Co.,Services,16116,12/10/2018
Canadian Pacific Railway Co.,Services,16719.5,12/10/2018
Canadian Pacific Railway Co.,Services,9928,12/10/2018
Canadian Pacific Railway Co.,Services,92640.16,12/12/2018
Candiano Law Office,Claims & Insurance,5755.62,10/24/2018
Candise Phelan,Services,1389.33,8/30/2018
Canete Medina Consulting Group Inc.,Services,20569.8,9/19/2018
Canete Medina Consulting Group Inc.,Services,148878.27,9/25/2018
Canete Medina Consulting Group Inc.,Services,72321.92,10/18/2018
Canete Medina Consulting Group Inc.,Services,72321.91,10/26/2018
Canete Medina Consulting Group Inc.,Services,108482.87,11/16/2018
Canon Solutions America  Inc.,Services,1877.97,1/3/2018
Canon Solutions America  Inc.,Rental Expense,77.19,1/3/2018
Canon Solutions America  Inc.,Rental Expense,77.19,1/17/2018
Canon Solutions America  Inc.,Services,5897.78,10/4/2018
Canon Solutions America  Inc.,Services,1852.06,10/5/2018
Canon Solutions America  Inc.,Services,158.24,11/12/2018
Canon Solutions America  Inc.,Services,3699.65,11/16/2018
Canteen Refreshment Services,Materials,23,1/10/2018
Canteen Refreshment Services,Materials,80.5,2/1/2018
Canteen Refreshment Services,Materials,18.5,2/7/2018
Canteen Refreshment Services,Materials,81,2/20/2018
Canteen Refreshment Services,Materials,188.5,8/1/2018
Canteen Refreshment Services,Materials,323.25,11/27/2018
Canteen Refreshment Services,Materials,189.5,12/4/2018
Capricorn Communications,Services,10000,2/1/2018
Capricorn Communications,Services,4250,3/13/2018
Capricorn Communications,Services,4250,5/3/2018
Capricorn Communications,Services,4250,5/22/2018
Capricorn Communications,Services,4250,6/21/2018
Capricorn Communications,Services,8500,7/20/2018
Capricorn Communications,Services,4250,9/4/2018
Capricorn Communications,Services,4250,9/13/2018
Capricorn Communications,Services,4250,10/16/2018
Capricorn Communications,Services,4250,11/16/2018
Cardinal Colorprint,Services,5028.75,2/7/2018
Cardinal Colorprint,Services,4363.74,3/1/2018
Cardinal Colorprint,Services,3134.25,4/13/2018
Cardinal Colorprint,Services,18074.75,4/16/2018
Cardinal Colorprint,Services,5079.5,4/20/2018
Cardinal Colorprint,Services,48310.05,5/2/2018
Cardinal Colorprint,Services,6700.79,5/3/2018
Cardinal Colorprint,Services,2363.75,6/21/2018
Cardinal Colorprint,Services,5196.39,7/2/2018
Cardinal Colorprint,Services,9388.45,7/18/2018
Cardinal Colorprint,Services,18537.83,7/27/2018
Cardinal Colorprint,Services,10562,7/30/2018
Cardinal Colorprint,Services,2853.75,8/1/2018
Cardinal Colorprint,Services,2333.75,10/3/2018
Cardinal Colorprint,Services,3528.75,11/1/2018
Cardinal Colorprint,Services,6880,11/14/2018
Cardinal Colorprint,Services,4617.5,11/28/2018
Cardinal Colorprint,Services,3877.04,12/5/2018
Cardine Opiela,Services,436.03,12/4/2018
Carl D. Gibbs,Services,1433.87,10/15/2018
Carl J. Warmac,Services,3833.97,2/13/2018
Carl Miehlke Jr.,Services,42.8,2/6/2018
Carl Miehlke Jr.,Services,2.6,2/6/2018
Carl Miehlke Jr.,Services,117.72,2/26/2018
Carl Miehlke Jr.,Services,43.6,3/20/2018
Carl Miehlke Jr.,Services,235.44,5/24/2018
Carl Miehlke Jr.,Services,37.06,6/22/2018
Carl Miehlke Jr.,Services,43.6,6/22/2018
Carl Miehlke Jr.,Services,117.72,6/22/2018
Carl Miehlke Jr.,Services,2.8,6/22/2018
Carl Miehlke Jr.,Services,117.72,10/26/2018
Carl Miehlke Jr.,Services,58.86,12/6/2018
Carla Gordon,Claims & Insurance,25000,2/12/2018
Carlos A. Del Toro,Services,101.37,9/10/2018
Carlos A. Gallegos,Services,52,7/11/2018
Carlos Degante,Services,53.75,7/11/2018
Carlos Lazaro,Services,58.14,1/31/2018
Carlos R Ochoa,Services,565,6/22/2018
Carlos R Ochoa,Services,565,7/25/2018
Carlos R Ochoa,Services,395.5,8/9/2018
Carlos R Ochoa,Services,169.5,8/9/2018
Carlos R Ochoa,Services,565,9/14/2018
Carlos R Ochoa,Services,508.5,9/19/2018
Carlos R Ochoa,Services,565,10/10/2018
Carlos R Ochoa,Services,56.5,10/10/2018
Carlos R Ochoa,Services,113,10/10/2018
Carlos R Ochoa,Services,791,10/11/2018
Carlos R Ochoa,Services,621.5,10/12/2018
Carlos R Ochoa,Services,734.5,11/6/2018
Carlos R Ochoa,Services,621.5,11/30/2018
Carlos R Ochoa,Services,452,12/12/2018
Carlos Ross,Services,396.58,11/28/2018
Carlos Ross,Services,94.21,12/3/2018
Carlos Ross,Services,1901.25,12/3/2018
Carlos Ross,Services,407,12/3/2018
Carlos Ross,Services,60,12/3/2018
Carlos V. Torres,Services,57.94,11/14/2018
Carmichael Leasing Co.  Inc.,Services,66,1/2/2018
Carmichael Leasing Co.  Inc.,Services,1032.42,1/17/2018
Carmichael Leasing Co.  Inc.,Services,396,1/23/2018
Carmichael Leasing Co.  Inc.,Services,33,2/1/2018
Carmichael Leasing Co.  Inc.,Services,2636.35,2/5/2018
Carmichael Leasing Co.  Inc.,Services,198,2/21/2018
Carmichael Leasing Co.  Inc.,Services,5221.79,3/1/2018
Carmichael Leasing Co.  Inc.,Services,3760.55,3/7/2018
Carmichael Leasing Co.  Inc.,Services,6397.76,3/14/2018
Carmichael Leasing Co.  Inc.,Services,465.03,3/19/2018
Carmichael Leasing Co.  Inc.,Services,518.76,3/20/2018
Carmichael Leasing Co.  Inc.,Services,107,4/2/2018
Carmichael Leasing Co.  Inc.,Services,132,4/5/2018
Carmichael Leasing Co.  Inc.,Services,2055.9,4/10/2018
Carmichael Leasing Co.  Inc.,Services,33,4/10/2018
Carmichael Leasing Co.  Inc.,Services,1994.27,4/27/2018
Carmichael Leasing Co.  Inc.,Services,1285.11,5/15/2018
Carmichael Leasing Co.  Inc.,Services,99,5/15/2018
Carmichael Leasing Co.  Inc.,Services,347,5/22/2018
Carmichael Leasing Co.  Inc.,Services,117.7,6/4/2018
Carmichael Leasing Co.  Inc.,Services,11175.2,6/11/2018
Carmichael Leasing Co.  Inc.,Services,363,6/11/2018
Carmichael Leasing Co.  Inc.,Services,1277.72,6/21/2018
Carmichael Leasing Co.  Inc.,Services,33,6/22/2018
Carmichael Leasing Co.  Inc.,Services,2174.58,6/25/2018
Carmichael Leasing Co.  Inc.,Services,1618.35,7/12/2018
Carmichael Leasing Co.  Inc.,Services,849.71,8/7/2018
Carmichael Leasing Co.  Inc.,Services,1053.37,8/15/2018
Carmichael Leasing Co.  Inc.,Services,165,8/15/2018
Carmichael Leasing Co.  Inc.,Services,264,8/27/2018
Carmichael Leasing Co.  Inc.,Services,866.01,9/10/2018
Carmichael Leasing Co.  Inc.,Services,99,9/10/2018
Carmichael Leasing Co.  Inc.,Services,3834.27,9/24/2018
Carmichael Leasing Co.  Inc.,Services,925.86,9/26/2018
Carmichael Leasing Co.  Inc.,Services,2186.76,10/1/2018
Carmichael Leasing Co.  Inc.,Services,2779.81,10/2/2018
Carmichael Leasing Co.  Inc.,Services,2549.26,10/3/2018
Carmichael Leasing Co.  Inc.,Services,289,10/3/2018
Carmichael Leasing Co.  Inc.,Services,1070,10/4/2018
Carmichael Leasing Co.  Inc.,Services,33,10/4/2018
Carmichael Leasing Co.  Inc.,Services,321,10/10/2018
Carmichael Leasing Co.  Inc.,Services,230.76,10/19/2018
Carmichael Leasing Co.  Inc.,Services,1226.94,10/25/2018
Carmichael Leasing Co.  Inc.,Services,3910.88,11/1/2018
Carmichael Leasing Co.  Inc.,Services,106.6,11/1/2018
Carmichael Leasing Co.  Inc.,Services,66,11/2/2018
Carmichael Leasing Co.  Inc.,Services,1162.93,11/9/2018
Carmichael Leasing Co.  Inc.,Services,489.48,11/19/2018
Carmichael Leasing Co.  Inc.,Services,264,12/3/2018
Carmichael Leasing Co.  Inc.,Services,838.86,12/12/2018
Carmichael Leasing Co.  Inc.,Services,267.5,12/18/2018
Carnow  Conibear & Assoc.  Ltd.,Services,750,3/14/2018
Carnow  Conibear & Assoc.  Ltd.,Services,2069.1,4/2/2018
Carnow  Conibear & Assoc.  Ltd.,Services,5433.35,4/3/2018
Carnow  Conibear & Assoc.  Ltd.,Services,3306.25,4/17/2018
Carnow  Conibear & Assoc.  Ltd.,Services,9647.5,4/20/2018
Carnow  Conibear & Assoc.  Ltd.,Services,570,4/24/2018
Carnow  Conibear & Assoc.  Ltd.,Services,4200,5/3/2018
Carnow  Conibear & Assoc.  Ltd.,Services,2311.25,6/14/2018
Carnow  Conibear & Assoc.  Ltd.,Services,2465.4,7/20/2018
Carnow  Conibear & Assoc.  Ltd.,Services,285,7/27/2018
Carnow  Conibear & Assoc.  Ltd.,Services,4362.75,8/20/2018
Carnow  Conibear & Assoc.  Ltd.,Services,5003.35,9/12/2018
Carnow  Conibear & Assoc.  Ltd.,Services,767.24,9/21/2018
Carnow  Conibear & Assoc.  Ltd.,Services,515,10/4/2018
Carnow  Conibear & Assoc.  Ltd.,Services,2372.48,10/10/2018
Carnow  Conibear & Assoc.  Ltd.,Services,11576,11/13/2018
Carnow  Conibear & Assoc.  Ltd.,Services,833.75,12/3/2018
Carnow  Conibear & Assoc.  Ltd.,Services,2369.25,12/3/2018
Carol L. Moore,Services,5942.77,8/14/2018
Carol L. Moore,Services,695.68,12/3/2018
Carol Moore,Services,695.68,12/4/2018
Carolyn Capranica,Services,1138.9,3/12/2018
Carolyn Capranica,Services,864.6,12/3/2018
Carolyn R. King,Services,67.41,1/10/2018
Carolyn R. King,Services,91.56,2/15/2018
Carolyn R. King,Services,91.56,3/19/2018
Carolyn R. King,Services,91.56,4/20/2018
Carolyn R. King,Services,68.67,5/21/2018
Carolyn Tucker,Services,4830.61,10/17/2018
Casimir J Sieronski,Services,63,1/12/2018
Casimir J Sieronski,Services,100,2/8/2018
Casimir J Sieronski,Services,121,2/14/2018
Casimir J Sieronski,Services,79,3/2/2018
Casimir J Sieronski,Services,63,3/27/2018
Casimir J Sieronski,Services,105,4/23/2018
Casimir J Sieronski,Services,58,4/25/2018
Casimir J Sieronski,Services,116,5/16/2018
Casimir J Sieronski,Services,105,6/4/2018
Casimir J Sieronski,Services,100,6/15/2018
Casimir J Sieronski,Services,140,6/28/2018
Casimir J Sieronski,Services,126,7/19/2018
Casimir J Sieronski,Services,105,8/3/2018
Casimir J Sieronski,Services,100,8/7/2018
Casimir J Sieronski,Services,100,9/4/2018
Casimir J Sieronski,Services,42,9/24/2018
Casimir J Sieronski,Services,124,10/3/2018
Casimir J Sieronski,Services,126,10/9/2018
Casimir J Sieronski,Services,121,10/22/2018
Casimir J Sieronski,Services,147,11/9/2018
Casimir J Sieronski,Services,100,12/14/2018
Casimir J Sieronski,Services,145,12/17/2018
Casimir J Sieronski,Services,182,12/21/2018
Casimir J Sieronski,Services,58.53,12/27/2018
Casimir J Sieronski,Services,28,12/27/2018
Casimir J Sieronski,Services,70.72,12/27/2018
Casimir J Sieronski,Services,445.4,12/27/2018
Casimir J Sieronski,Services,339.5,12/27/2018
Cassandra Black,Services,62.78,11/13/2018
Cassandra Black,Services,188.35,12/3/2018
Cassandra Black,Services,83.71,12/13/2018
Cavalry Fire Protection Svc. LLC,Services,317,1/3/2018
Cavalry Fire Protection Svc. LLC,Services,1860,1/17/2018
Cavalry Fire Protection Svc. LLC,Services,258,1/17/2018
Cavalry Fire Protection Svc. LLC,Services,301,2/9/2018
Cavalry Fire Protection Svc. LLC,Services,207,2/15/2018
Cavalry Fire Protection Svc. LLC,Services,610,2/16/2018
Cavalry Fire Protection Svc. LLC,Materials,522,2/21/2018
Cavalry Fire Protection Svc. LLC,Materials,217,3/1/2018
Cavalry Fire Protection Svc. LLC,Materials,484.5,3/1/2018
Cavalry Fire Protection Svc. LLC,Materials,273,3/1/2018
Cavalry Fire Protection Svc. LLC,Services,853.5,3/1/2018
Cavalry Fire Protection Svc. LLC,Services,5284,3/7/2018
Cavalry Fire Protection Svc. LLC,Services,203,3/13/2018
Cavalry Fire Protection Svc. LLC,Services,4619,3/13/2018
Cavalry Fire Protection Svc. LLC,Services,1640,4/2/2018
Cavalry Fire Protection Svc. LLC,Services,554,4/5/2018
Cavalry Fire Protection Svc. LLC,Services,527,4/17/2018
Cavalry Fire Protection Svc. LLC,Services,2144,4/17/2018
Cavalry Fire Protection Svc. LLC,Services,3094,4/23/2018
Cavalry Fire Protection Svc. LLC,Services,8291.5,5/1/2018
Cavalry Fire Protection Svc. LLC,Services,1427,5/8/2018
Cavalry Fire Protection Svc. LLC,Services,261,5/14/2018
Cavalry Fire Protection Svc. LLC,Services,572,6/1/2018
Cavalry Fire Protection Svc. LLC,Services,1362,6/20/2018
Cavalry Fire Protection Svc. LLC,Services,2418,6/20/2018
Cavalry Fire Protection Svc. LLC,Services,493,6/25/2018
Cavalry Fire Protection Svc. LLC,Services,76,7/10/2018
Cavalry Fire Protection Svc. LLC,Services,836.5,7/10/2018
Cavalry Fire Protection Svc. LLC,Services,1369.5,7/27/2018
Cavalry Fire Protection Svc. LLC,Services,817,8/1/2018
Cavalry Fire Protection Svc. LLC,Services,783.5,8/8/2018
Cavalry Fire Protection Svc. LLC,Materials,105,8/21/2018
Cavalry Fire Protection Svc. LLC,Materials,269,8/21/2018
Cavalry Fire Protection Svc. LLC,Services,2710,8/22/2018
Cavalry Fire Protection Svc. LLC,Materials,320,9/10/2018
Cavalry Fire Protection Svc. LLC,Services,15,9/10/2018
Cavalry Fire Protection Svc. LLC,Services,35,9/10/2018
Cavalry Fire Protection Svc. LLC,Services,547.5,9/10/2018
Cavalry Fire Protection Svc. LLC,Services,2365,9/10/2018
Cavalry Fire Protection Svc. LLC,Services,1398,9/14/2018
Cavalry Fire Protection Svc. LLC,Services,578.5,9/18/2018
Cavalry Fire Protection Svc. LLC,Services,763,9/19/2018
Cavalry Fire Protection Svc. LLC,Services,741,9/19/2018
Cavalry Fire Protection Svc. LLC,Services,760,9/25/2018
Cavalry Fire Protection Svc. LLC,Services,248,10/1/2018
Cavalry Fire Protection Svc. LLC,Services,600,10/1/2018
Cavalry Fire Protection Svc. LLC,Services,776.5,10/12/2018
Cavalry Fire Protection Svc. LLC,Services,549,10/12/2018
Cavalry Fire Protection Svc. LLC,Materials,221,10/16/2018
Cavalry Fire Protection Svc. LLC,Services,90,10/16/2018
Cavalry Fire Protection Svc. LLC,Services,578,10/26/2018
Cavalry Fire Protection Svc. LLC,Services,4112.5,10/26/2018
Cavalry Fire Protection Svc. LLC,Services,3993,10/30/2018
Cavalry Fire Protection Svc. LLC,Services,554,11/8/2018
Cavalry Fire Protection Svc. LLC,Services,929,11/13/2018
Cavalry Fire Protection Svc. LLC,Services,405,11/13/2018
Cavalry Fire Protection Svc. LLC,Services,413,11/26/2018
Cavalry Fire Protection Svc. LLC,Services,257,12/3/2018
Cavalry Fire Protection Svc. LLC,Services,164,12/10/2018
Cavalry Fire Protection Svc. LLC,Services,99,12/10/2018
Cavalry Fire Protection Svc. LLC,Materials,0,12/27/2018
Cavalry Fire Protection Svc. LLC,Services,2262.5,12/27/2018
Cavalry Fire Protection Svc. LLC,Services,3200,12/27/2018
Cbre  Inc.,Services,2000,8/21/2018
Cbre  Inc.,Services,1500,12/4/2018
Cbt Nuggets Llc,Services,4474.56,1/17/2018
Cbt Nuggets Llc,Services,4176.55,10/9/2018
CDECI,Materials,1318.29,1/18/2018
CDECI,Services,14565,1/18/2018
CDECI,Services,21607.32,1/24/2018
CDECI,Materials,6529.58,2/7/2018
CDECI,Services,43614,2/7/2018
CDECI,Materials,4715.69,3/7/2018
CDECI,Services,22871.17,3/7/2018
CDECI,Materials,2143.42,4/10/2018
CDECI,Services,13536,4/10/2018
CDECI,Materials,1455.32,4/11/2018
CDECI,Services,8624,4/11/2018
CDECI,Materials,1090.97,4/27/2018
CDECI,Services,22900,4/27/2018
CDECI,Services,8380.19,6/8/2018
CDECI,Materials,1342.53,7/19/2018
CDECI,Services,7392,7/19/2018
CDECI,Materials,207.89,8/1/2018
CDECI,Services,15905,8/1/2018
CDECI,Materials,498.39,8/7/2018
CDECI,Services,10314,8/7/2018
CDECI,Services,12992.96,8/23/2018
CDECI,Services,21762,8/28/2018
CDECI,Materials,9553.5,8/29/2018
CDECI,Materials,2018.21,9/10/2018
CDECI,Services,13376,9/10/2018
CDECI,Materials,2339.47,9/24/2018
CDECI,Services,13896,9/24/2018
CDECI,Materials,306.61,10/26/2018
CDECI,Services,16952,10/26/2018
CDECI,Materials,9457.78,10/29/2018
CDECI,Materials,1940.03,11/13/2018
CDECI,Services,13200,11/13/2018
Cdm Smith  Inc.,Capital Purchases,13226.9,9/6/2018
Cdm Smith  Inc.,Capital Purchases,7744,10/17/2018
CDW Government  LLC,Capital Purchases,161785.19,1/2/2018
CDW Government  LLC,Services,1092871.41,1/2/2018
CDW Government  LLC,Capital Purchases,381660.73,1/18/2018
CDW Government  LLC,Services,497.38,1/18/2018
CDW Government  LLC,Capital Purchases,3012,1/24/2018
CDW Government  LLC,Materials,6896.49,3/1/2018
CDW Government  LLC,Services,12238.91,3/1/2018
CDW Government  LLC,Capital Purchases,30081.63,3/20/2018
CDW Government  LLC,Capital Purchases,32337,3/22/2018
CDW Government  LLC,Services,154903.28,4/3/2018
CDW Government  LLC,Services,25220,4/16/2018
CDW Government  LLC,Services,6676,4/17/2018
CDW Government  LLC,Capital Purchases,5961,5/16/2018
CDW Government  LLC,Capital Purchases,2005,6/11/2018
CDW Government  LLC,Capital Purchases,4010,6/18/2018
CDW Government  LLC,Services,8860.4,6/21/2018
CDW Government  LLC,Materials,5033.4,7/2/2018
CDW Government  LLC,Capital Purchases,14223,7/10/2018
CDW Government  LLC,Services,10997.45,7/16/2018
CDW Government  LLC,Capital Purchases,3765,7/25/2018
CDW Government  LLC,Capital Purchases,24060,8/17/2018
CDW Government  LLC,Services,31631.04,8/27/2018
CDW Government  LLC,Capital Purchases,666,9/4/2018
CDW Government  LLC,Capital Purchases,206838,9/12/2018
CDW Government  LLC,Services,69873.07,10/1/2018
CDW Government  LLC,Services,50354.51,10/11/2018
CDW Government  LLC,Capital Purchases,802,10/18/2018
CDW Government  LLC,Capital Purchases,2005,10/23/2018
CDW Government  LLC,Services,154903.28,10/26/2018
CDW Government  LLC,Capital Purchases,7212,11/2/2018
CDW Government  LLC,Capital Purchases,16127,11/7/2018
CDW Government  LLC,Services,1083962.79,11/15/2018
CDW Government  LLC,Capital Purchases,3974,11/26/2018
CDW Government  LLC,Capital Purchases,336761.44,12/17/2018
Cedric Garrett,Services,40.33,4/23/2018
Cedric Garrett,Services,80.66,5/21/2018
Cedric Hayes,Services,34.88,12/13/2018
Cedric Hayes,Services,47.96,12/13/2018
Cedric L Smith,Services,70.64,4/4/2018
Cedric L Smith,Services,241.98,5/16/2018
Celeste Industries Corp.,Materials,1368,2/1/2018
Celeste Industries Corp.,Materials,6384,10/1/2018
Celuis Escutia,Services,38.32,11/14/2018
Centegra Primary Care,Claims & Insurance,225,6/20/2018
Centegra Primary Care,Claims & Insurance,1000,7/11/2018
Central DuPage Physician Group,Claims & Insurance,500,5/1/2018
Central Sales & Service Inc.,Materials,1877.89,2/2/2018
Central Sales & Service Inc.,Materials,1366.61,3/26/2018
Central Sales & Service Inc.,Materials,6080,4/2/2018
Central Sales & Service Inc.,Materials,2789,5/18/2018
Central Sales & Service Inc.,Materials,299.28,6/15/2018
Central Sales & Service Inc.,Materials,620,7/2/2018
Central Sales & Service Inc.,Materials,2356.6,8/15/2018
Central Sales & Service Inc.,Materials,619.2,8/23/2018
Central Sales & Service Inc.,Materials,206.4,10/1/2018
Central Sales & Service Inc.,Materials,103.2,11/1/2018
Central Sales & Service Inc.,Materials,154.8,12/27/2018
Certified Fleet Services  Inc.,Services,1740.81,1/2/2018
Certified Fleet Services  Inc.,Services,4849.52,2/1/2018
Certified Fleet Services  Inc.,Services,400,2/1/2018
Certified Fleet Services  Inc.,Services,3431.41,2/5/2018
Certified Fleet Services  Inc.,Services,1192.87,2/15/2018
Certified Fleet Services  Inc.,Services,14494.15,2/20/2018
Certified Fleet Services  Inc.,Services,84.18,2/20/2018
Certified Fleet Services  Inc.,Services,800,2/20/2018
Certified Fleet Services  Inc.,Services,12281.12,3/1/2018
Certified Fleet Services  Inc.,Services,292.32,3/1/2018
Certified Fleet Services  Inc.,Services,475,3/1/2018
Certified Fleet Services  Inc.,Services,9425.99,3/7/2018
Certified Fleet Services  Inc.,Services,400,3/7/2018
Certified Fleet Services  Inc.,Services,16792.03,3/20/2018
Certified Fleet Services  Inc.,Services,120.46,3/20/2018
Certified Fleet Services  Inc.,Services,475,3/20/2018
Certified Fleet Services  Inc.,Services,7329.21,4/20/2018
Certified Fleet Services  Inc.,Services,144.42,4/20/2018
Certified Fleet Services  Inc.,Services,598.23,4/25/2018
Certified Fleet Services  Inc.,Services,11195.18,5/9/2018
Certified Fleet Services  Inc.,Services,136.68,5/9/2018
Certified Fleet Services  Inc.,Services,400,5/9/2018
Certified Fleet Services  Inc.,Services,2919.99,6/22/2018
Certified Fleet Services  Inc.,Services,7882.11,8/17/2018
Certified Fleet Services  Inc.,Services,400,8/17/2018
Certified Fleet Services  Inc.,Services,8973.94,8/27/2018
Certified Fleet Services  Inc.,Services,475,8/27/2018
Certified Fleet Services  Inc.,Services,2656.12,9/21/2018
Certified Fleet Services  Inc.,Services,475,9/21/2018
Certified Fleet Services  Inc.,Services,1499.92,10/10/2018
Certified Fleet Services  Inc.,Services,997.83,10/19/2018
Certified Fleet Services  Inc.,Services,5807,11/2/2018
Certified Fleet Services  Inc.,Services,138.2,11/2/2018
Certified Fleet Services  Inc.,Services,5940.92,11/19/2018
Certified Fleet Services  Inc.,Services,435,11/19/2018
Certified Fleet Services  Inc.,Services,796.58,11/27/2018
Certified Languages International,Services,18,1/22/2018
Certified Languages International,Services,26.1,3/23/2018
Certified Languages International,Services,9,6/11/2018
Certified Languages International,Services,10.8,7/24/2018
Certified Languages International,Services,86.4,9/12/2018
Certified Languages International,Services,241.56,9/24/2018
Certified Languages International,Services,130.5,11/8/2018
Certified Languages International,Services,89.1,12/19/2018
Cesar A. Escoto-Saucedo,Services,167.03,6/11/2018
Cesar Guajardo,Services,14.11,5/18/2018
Cesar Guajardo,Services,92.34,5/21/2018
Cesar Guajardo,Services,92.86,6/13/2018
Cesar Guajardo,Services,69.98,7/19/2018
Cesar Olivarez,Services,241.5,6/22/2018
CFpromo,Services,275,7/27/2018
Chambers  Conlon & Hartwell  LLC,Services,73271.93,1/19/2018
Chambers  Conlon & Hartwell  LLC,Services,48813.7,2/1/2018
Chambers  Conlon & Hartwell  LLC,Services,49500.84,2/21/2018
Chambers  Conlon & Hartwell  LLC,Services,24210.24,3/13/2018
Chambers  Conlon & Hartwell  LLC,Services,24192.47,5/3/2018
Chambers  Conlon & Hartwell  LLC,Services,24084.68,5/22/2018
Chambers  Conlon & Hartwell  LLC,Services,24338.47,7/11/2018
Chambers  Conlon & Hartwell  LLC,Services,24061.53,7/20/2018
Chambers  Conlon & Hartwell  LLC,Services,24194.61,9/4/2018
Chambers  Conlon & Hartwell  LLC,Services,24416.81,10/16/2018
Chambers  Conlon & Hartwell  LLC,Services,24116.32,10/22/2018
Chandler Services  Inc.,Services,195.08,1/2/2018
Chandler Services  Inc.,Services,6139.8,2/9/2018
Chandler Services  Inc.,Services,3481.22,3/26/2018
Chandler Services  Inc.,Services,933.2,5/15/2018
Chandler Services  Inc.,Services,373.02,6/21/2018
Chandler Services  Inc.,Services,96.27,11/13/2018
Chandra  Mahalingam,Services,145.87,12/17/2018
"Channahon Tractor, LLC",Services,2775,10/18/2018
"Channahon Tractor, LLC",Services,11201.34,10/18/2018
Charles A. Wilson,Services,79.57,12/13/2018
Charles A. Wilson,Services,11.99,12/13/2018
Charles A. Wilson,Services,11.99,12/13/2018
Charles Alcoser,Services,339,5/30/2018
Charles Alcoser,Services,352,6/1/2018
Charles Alcoser,Services,226,6/26/2018
Charles Alcoser,Services,282.5,6/26/2018
Charles Alcoser,Services,395.5,7/27/2018
Charles Alcoser,Services,113,7/27/2018
Charles Alcoser,Services,508.5,8/10/2018
Charles Alcoser,Services,508,8/10/2018
Charles Alcoser,Services,395.5,8/14/2018
Charles Alcoser,Services,339,9/4/2018
Charles Alcoser,Services,226,9/21/2018
Charles Allen,Services,232.44,3/20/2018
Charles Allen,Services,8.55,3/20/2018
Charles Henry,Services,1578.94,1/12/2018
Charles Henry,Services,565,4/25/2018
Charles Henry,Services,791,5/21/2018
Charles Henry,Services,56.5,6/8/2018
Charles Henry,Services,452,6/8/2018
Charles Henry,Services,508.5,6/14/2018
Charles Henry,Services,395.5,7/26/2018
Charles Henry,Services,113,7/26/2018
Charles Henry,Services,56.5,8/9/2018
Charles Henry,Services,339,8/9/2018
Charles Henry,Services,508.5,8/10/2018
Charles Henry,Services,395.5,8/13/2018
Charles Henry,Services,678,9/19/2018
Charles Holstein,Claims & Insurance,34.28,3/26/2018
Charles J. Harrison,Services,275,9/26/2018
Charles Lee,Services,866.66,2/28/2018
Charles Lee,Services,866.66,3/12/2018
Charles Lee,Services,866.66,3/27/2018
Charles R. Cravatta,Services,101.46,2/28/2018
Chas A Arce,Services,1981.33,1/29/2018
Chas A Arce,Services,43.6,2/13/2018
Chas A Arce,Services,104.64,2/13/2018
Chas A Arce,Services,34.88,3/16/2018
Chas A Arce,Services,11.99,3/16/2018
Chas A Arce,Services,130.8,3/21/2018
Chas A Arce,Services,104.64,3/21/2018
Chas A Arce,Services,44.69,3/21/2018
Chas A Arce,Services,43.6,4/5/2018
Chas A Arce,Services,34.88,4/5/2018
Chas A Arce,Services,44.69,4/5/2018
Chas A Arce,Services,32.7,5/15/2018
Chas A Arce,Services,34.88,5/15/2018
Chas A Arce,Services,209.28,6/12/2018
Chas A Arce,Services,53.41,6/12/2018
Chas A Arce,Services,222.36,7/19/2018
Chas A Arce,Services,209.28,8/7/2018
Chas A Arce,Services,139.52,9/10/2018
Chas A Arce,Services,69.54,9/12/2018
Chas A Arce,Services,104.64,10/11/2018
Chas A Arce,Services,43.6,11/15/2018
Chas A Arce,Services,34.88,11/15/2018
Chas A Arce,Services,44.69,11/15/2018
Chas A Arce,Services,43.6,12/13/2018
Chas A Arce,Services,34.88,12/13/2018
Chas A Arce,Services,3,12/13/2018
Chem & Consult  Inc.,Materials,2547.6,1/8/2018
Chem & Consult  Inc.,Materials,1867.8,4/17/2018
Chem & Consult  Inc.,Materials,1867.8,4/25/2018
Chem & Consult  Inc.,Materials,1867.8,7/23/2018
Chem & Consult  Inc.,Materials,1867.8,9/13/2018
Cherie J. Kizer,Services,52,7/11/2018
Chestnut Ridge Foam Inc.,Materials,9220,10/16/2018
Chestnut Ridge Foam Inc.,Capital Purchases,34761.74,11/12/2018
Chicago Bar Assn.,Services,432,4/23/2018
Chicago Bar Assn.,Services,658,5/16/2018
Chicago Car Seal Co.,Materials,943.89,8/20/2018
Chicago Car Seal Co.,Materials,1049.65,11/1/2018
Chicago Defender,Services,1350,3/7/2018
Chicago Lawyers' Committee for Civil Rights,Claims & Insurance,90585,3/1/2018
Chicago Metal Maintenance  Inc.,Services,610,1/26/2018
Chicago Metal Maintenance  Inc.,Services,610,2/21/2018
Chicago Metal Maintenance  Inc.,Services,610,3/26/2018
Chicago Metal Maintenance  Inc.,Services,610,4/17/2018
Chicago Metal Maintenance  Inc.,Services,610,5/23/2018
Chicago Metal Maintenance  Inc.,Services,610,6/20/2018
Chicago Metal Maintenance  Inc.,Services,610,7/31/2018
Chicago Metal Maintenance  Inc.,Services,610,8/28/2018
Chicago Metal Maintenance  Inc.,Services,610,10/19/2018
Chicago Metal Maintenance  Inc.,Services,610,11/1/2018
Chicago Metal Maintenance  Inc.,Services,610,11/14/2018
Chicago Minority Supplier Devel. Council  Inc.,Services,2050,2/12/2018
Chicago Parts & Sound  Llc. Dba Police Department Systems,Services,448.8,1/2/2018
Chicago Parts & Sound  Llc. Dba Police Department Systems,Services,48.5,1/10/2018
Chicago Parts & Sound  Llc. Dba Police Department Systems,Services,468.75,1/10/2018
Chicago Parts & Sound  Llc. Dba Police Department Systems,Services,48.5,3/13/2018
Chicago Parts & Sound  Llc. Dba Police Department Systems,Services,1122,3/21/2018
Chicago Parts & Sound  Llc. Dba Police Department Systems,Services,80.15,4/27/2018
Chicago Parts & Sound  Llc. Dba Police Department Systems,Services,591.75,5/29/2018
Chicago Parts & Sound  Llc. Dba Police Department Systems,Services,43.76,8/1/2018
Chicago Parts & Sound  Llc. Dba Police Department Systems,Services,122.75,8/17/2018
Chicago Parts & Sound  Llc. Dba Police Department Systems,Services,784.52,10/8/2018
Chicago Parts & Sound  Llc. Dba Police Department Systems,Services,1205.5,10/16/2018
Chicago Parts & Sound  Llc. Dba Police Department Systems,Services,494.75,10/29/2018
Chicago Parts & Sound  Llc. Dba Police Department Systems,Services,145.5,12/10/2018
Chicago Police Dept. Records Customer Service Section,Claims & Insurance,6,12/26/2018
Chicago Railroad Supply Inc.,Capital Purchases,79205,1/2/2018
Chicago Railroad Supply Inc.,Materials,27407,8/31/2018
Chicago Railroad Supply Inc.,Materials,19414.36,9/10/2018
Chicago Railroad Supply Inc.,Materials,4700,9/14/2018
Chicago Railroad Supply Inc.,Materials,104,12/19/2018
"Chicago Scaffolding, Inc.",Capital Purchases,12750,10/3/2018
Chicago Soft  Ltd.,Services,5457,1/2/2018
Chicago Soft  Ltd.,Services,5593,11/5/2018
Chicago South Suburban Mass Transit District,Capital Purchases,7234.24,3/2/2018
Chicago South Suburban Mass Transit District,Capital Purchases,9352.63,3/21/2018
Chicago Spence Tool & Rubber Co.,Materials,568.2,3/14/2018
Chicago Spence Tool & Rubber Co.,Materials,1136.41,10/17/2018
Chicago Spence Tool & Rubber Co.,Materials,426.15,10/29/2018
Chicago Sun-Times,Services,594.7,1/2/2018
Chicago Sun-Times,Materials,1995,1/26/2018
Chicago Sun-Times,Services,416,2/5/2018
Chicago Sun-Times,Materials,1563.74,3/1/2018
Chicago Sun-Times,Materials,1252.1,3/27/2018
Chicago Sun-Times,Materials,3824.7,4/25/2018
Chicago Sun-Times,Materials,1404.1,6/11/2018
Chicago Sun-Times,Materials,2139.4,7/3/2018
Chicago Sun-Times,Materials,1837.3,8/8/2018
Chicago Sun-Times,Materials,1894.3,9/11/2018
Chicago Sun-Times,Materials,1444,10/8/2018
Chicago Sun-Times,Services,894.9,11/12/2018
Chicago Sun-Times,Services,1434.5,12/12/2018
Chicago Tire Inc.,Services,476.13,1/2/2018
Chicago Tire Inc.,Services,1774.55,1/8/2018
Chicago Tire Inc.,Services,685.43,1/10/2018
Chicago Tire Inc.,Services,313.66,1/11/2018
Chicago Tire Inc.,Services,913.93,1/12/2018
Chicago Tire Inc.,Services,799.4,1/17/2018
Chicago Tire Inc.,Services,1002.13,1/23/2018
Chicago Tire Inc.,Services,586.56,1/24/2018
Chicago Tire Inc.,Services,768.41,1/26/2018
Chicago Tire Inc.,Services,724.93,2/5/2018
Chicago Tire Inc.,Services,1363.79,2/7/2018
Chicago Tire Inc.,Services,12,2/8/2018
Chicago Tire Inc.,Services,705.73,2/20/2018
Chicago Tire Inc.,Services,1523.5,2/21/2018
Chicago Tire Inc.,Services,2021.46,3/1/2018
Chicago Tire Inc.,Services,267.89,3/7/2018
Chicago Tire Inc.,Services,442.5,3/20/2018
Chicago Tire Inc.,Services,784.94,3/21/2018
Chicago Tire Inc.,Materials,80,3/22/2018
Chicago Tire Inc.,Services,23460,3/22/2018
Chicago Tire Inc.,Services,2202.05,4/11/2018
Chicago Tire Inc.,Services,702.45,4/27/2018
Chicago Tire Inc.,Services,1728.81,5/15/2018
Chicago Tire Inc.,Services,85,5/23/2018
Chicago Tire Inc.,Services,500.73,5/25/2018
Chicago Tire Inc.,Services,1242,5/29/2018
Chicago Tire Inc.,Materials,2484,6/1/2018
Chicago Tire Inc.,Services,994.86,6/8/2018
Chicago Tire Inc.,Services,103.35,6/12/2018
Chicago Tire Inc.,Services,3051.13,6/12/2018
Chicago Tire Inc.,Services,899.18,6/19/2018
Chicago Tire Inc.,Services,390.2,6/20/2018
Chicago Tire Inc.,Services,1303.98,6/25/2018
Chicago Tire Inc.,Services,60,6/26/2018
Chicago Tire Inc.,Services,682.6,7/2/2018
Chicago Tire Inc.,Services,820.35,7/9/2018
Chicago Tire Inc.,Services,60,7/12/2018
Chicago Tire Inc.,Services,1653.24,7/12/2018
Chicago Tire Inc.,Services,12,7/23/2018
Chicago Tire Inc.,Services,12,7/25/2018
Chicago Tire Inc.,Services,303.69,8/1/2018
Chicago Tire Inc.,Services,9.5,8/1/2018
Chicago Tire Inc.,Services,210.69,8/3/2018
Chicago Tire Inc.,Services,5118.12,8/14/2018
Chicago Tire Inc.,Services,1506.45,8/17/2018
Chicago Tire Inc.,Services,1589.5,8/24/2018
Chicago Tire Inc.,Services,1002.58,8/29/2018
Chicago Tire Inc.,Services,1332.59,9/6/2018
Chicago Tire Inc.,Services,1201.72,9/7/2018
Chicago Tire Inc.,Services,501.91,9/11/2018
Chicago Tire Inc.,Services,120.55,9/21/2018
Chicago Tire Inc.,Services,12,9/24/2018
Chicago Tire Inc.,Services,2.5,10/2/2018
Chicago Tire Inc.,Services,2231.66,10/2/2018
Chicago Tire Inc.,Services,1253.29,10/5/2018
Chicago Tire Inc.,Services,1251.42,10/10/2018
Chicago Tire Inc.,Services,591.36,10/26/2018
Chicago Tire Inc.,Services,60,10/29/2018
Chicago Tire Inc.,Services,1096.58,10/29/2018
Chicago Tire Inc.,Services,1487.09,10/30/2018
Chicago Tire Inc.,Services,151.83,11/5/2018
Chicago Tire Inc.,Services,1842.53,11/9/2018
Chicago Tire Inc.,Services,1149.77,11/15/2018
Chicago Tire Inc.,Services,124.49,11/21/2018
Chicago Tire Inc.,Services,771.67,11/26/2018
Chicago Tire Inc.,Services,214.97,11/27/2018
Chicago Tire Inc.,Services,12,11/29/2018
Chicago Tire Inc.,Services,786.65,11/30/2018
Chicago Tire Inc.,Services,971.25,12/10/2018
Chicago Tire Inc.,Services,32,12/12/2018
Chicago Tire Inc.,Services,553.76,12/13/2018
Chicago Tire Inc.,Services,108.72,12/27/2018
Chicago Tire Inc.,Services,571.84,12/27/2018
Chicago Title Insurance,Capital Purchases,16700,5/1/2018
Chicago Title Insurance,Capital Purchases,2000,5/2/2018
Chicago Transit Authority,Services,103785,1/22/2018
Chicago Transit Authority,Services,111592.25,2/22/2018
Chicago Transit Authority,Services,112340.25,3/26/2018
Chicago Transit Authority,Services,50337,4/17/2018
Chicago Transit Authority,Services,111685.75,4/24/2018
Chicago Transit Authority,Services,108086,5/25/2018
Chicago Transit Authority,Services,105608.25,6/26/2018
Chicago Transit Authority,Services,2173.65,7/18/2018
Chicago Transit Authority,Services,102896.75,7/26/2018
Chicago Transit Authority,Services,100091.75,8/23/2018
Chicago Transit Authority,Services,99390.5,9/24/2018
Chicago Transit Authority,Services,96819.25,10/23/2018
Chicago Transit Authority,Services,98081.5,11/26/2018
Chicago Transit Authority,Services,97707.5,12/19/2018
Chicago Tribune,Services,663,3/21/2018
Chicago Tribune,Services,351,4/17/2018
Chicago Tribune,Services,351,10/2/2018
Chicago Uniform Co.,Services,296.14,1/16/2018
Chicago Uniform Co.,Services,5863.57,1/19/2018
Chicago Uniform Co.,Services,2123.08,2/5/2018
Chicago Uniform Co.,Services,1678.81,3/1/2018
Chicago Uniform Co.,Services,1510,3/2/2018
Chicago Uniform Co.,Services,7579.9,5/4/2018
Chicago Uniform Co.,Services,1650,6/1/2018
Chicago Uniform Co.,Services,2890.82,6/4/2018
Chicago Uniform Co.,Services,1643.21,6/11/2018
Chicago Uniform Co.,Services,202.93,7/9/2018
Chicago Uniform Co.,Services,1473.56,7/24/2018
Chicago Uniform Co.,Services,195.83,8/9/2018
Chicago Uniform Co.,Services,361.6,8/10/2018
Chicago Uniform Co.,Services,8197.63,9/18/2018
Chicago Uniform Co.,Services,72.4,9/19/2018
Chicago Uniform Co.,Services,252.27,10/2/2018
Chicago Uniform Co.,Services,456.09,10/11/2018
Chicago Uniform Co.,Services,82.2,10/18/2018
Chicago Uniform Co.,Services,1163.83,10/30/2018
Chicago Uniform Co.,Services,390.76,11/21/2018
Chicago Uniform Co.,Services,1140.52,11/28/2018
Chicago Uniform Co.,Services,5215.75,12/18/2018
Chicago United Industries  Ltd.,Materials,52.76,3/22/2018
Chicago United Industries  Ltd.,Materials,474.84,5/1/2018
Chicago United Industries  Ltd.,Materials,572.46,5/11/2018
Chicago United Industries  Ltd.,Materials,997.14,5/29/2018
Chicago United Industries  Ltd.,Materials,618,7/9/2018
Chicago United Industries  Ltd.,Materials,1118,8/17/2018
Chicago United Industries  Ltd.,Materials,619.24,8/23/2018
Chicago United Industries  Ltd.,Materials,1056,8/24/2018
Chicago United Industries  Ltd.,Materials,210.16,10/15/2018
Chicago United Industries  Ltd.,Materials,669.52,11/1/2018
Chicago Urban League,Services,250,5/22/2018
Chicagoland Paving Contractors Inc.,Capital Purchases,255336.5,1/2/2018
Chicagoland Paving Contractors Inc.,Capital Purchases,11175,1/2/2018
Chicagoland Paving Contractors Inc.,Capital Purchases,19683.24,1/2/2018
Chicagoland Paving Contractors Inc.,Capital Purchases,18108,1/19/2018
Chicagoland Paving Contractors Inc.,Capital Purchases,19215.7,1/19/2018
Chicagoland Paving Contractors Inc.,Capital Purchases,10796.4,2/14/2018
Chicagoland Paving Contractors Inc.,Capital Purchases,120603.9,2/14/2018
Chicagoland Paving Contractors Inc.,Capital Purchases,28488.27,3/12/2018
Chicagoland Paving Contractors Inc.,Capital Purchases,526057.22,4/2/2018
Chicagoland Paving Contractors Inc.,Capital Purchases,63591.12,6/21/2018
Chicagoland Paving Contractors Inc.,Capital Purchases,80121.94,7/18/2018
Chicagoland Paving Contractors Inc.,Materials,16670,10/1/2018
Chicagoland Paving Contractors Inc.,Capital Purchases,169130,11/1/2018
Chicagoland Paving Contractors Inc.,Services,14700.6,11/1/2018
Chicagoland Paving Contractors Inc.,Capital Purchases,544950.72,11/2/2018
Chicagoland Paving Contractors Inc.,Capital Purchases,8902.06,11/2/2018
Chicagoland Paving Contractors Inc.,Capital Purchases,50188.6,11/5/2018
Chicagoland Paving Contractors Inc.,Capital Purchases,279644,11/13/2018
Chicagoland Paving Contractors Inc.,Capital Purchases,36141,11/16/2018
Chicagoland Paving Contractors Inc.,Capital Purchases,28670.4,11/19/2018
Chicagoland Paving Contractors Inc.,Capital Purchases,37304.82,11/19/2018
Chicagoland Paving Contractors Inc.,Services,21571.2,11/21/2018
Chicagoland Paving Contractors Inc.,Capital Purchases,42136.8,11/28/2018
Chicagoland Paving Contractors Inc.,Capital Purchases,61706.09,12/3/2018
Chicagoland Paving Contractors Inc.,Capital Purchases,21841.4,12/4/2018
Chicagoland Paving Contractors Inc.,Capital Purchases,88268.35,12/10/2018
Chicagoland Paving Contractors Inc.,Services,11262.6,12/10/2018
Chicagoland Paving Contractors Inc.,Capital Purchases,579135.7,12/21/2018
Chicagoland Paving Contractors Inc.,Services,6720,12/27/2018
Christian Maxwell Ramos,Services,728.56,11/16/2018
Christine Razo-Edison,Services,22.89,4/16/2018
Christopher A Prutsman,Services,79.18,1/12/2018
Christopher D. Leonard,Services,45.78,2/13/2018
Christopher D. Leonard,Services,91.56,3/15/2018
Christopher D. Leonard,Services,68.67,4/20/2018
Christopher D. Leonard,Services,22.89,5/21/2018
Christopher Krakar,Services,63,3/20/2018
Christopher Krakar,Services,96,3/20/2018
Christopher Krakar,Services,35.42,6/4/2018
Christopher Krakar,Services,34,6/4/2018
Christopher Krakar,Services,19,6/4/2018
Christopher Krakar,Services,103.5,6/4/2018
Christopher L. Perdue,Services,32.7,3/21/2018
Christopher L. Perdue,Services,98.1,8/13/2018
Christopher L. Swoope,Services,146.95,6/12/2018
Christopher P. Dorsey,Services,141.24,1/11/2018
Christopher P. Dorsey,Services,224.54,2/13/2018
Christopher P. Dorsey,Services,290.49,2/15/2018
Christopher P. Dorsey,Services,194.57,3/2/2018
Christopher P. Dorsey,Services,201.65,3/7/2018
Christopher P. Dorsey,Services,207.1,3/20/2018
Christopher P. Dorsey,Services,201.65,4/11/2018
Christopher P. Dorsey,Services,224.54,4/20/2018
Christopher P. Dorsey,Services,103.55,5/21/2018
Christopher P. Dorsey,Services,305.2,6/8/2018
Christopher P. Dorsey,Services,322.64,6/21/2018
Christopher P. Dorsey,Services,310.65,7/11/2018
Christopher P. Dorsey,Services,80.66,8/7/2018
Christopher P. Dorsey,Services,264.87,9/4/2018
Christopher P. Dorsey,Services,186.94,9/13/2018
Christopher P. Dorsey,Services,556.88,10/11/2018
Christopher P. Dorsey,Services,247.43,10/23/2018
Christopher R. Evers,Services,3909.2,5/1/2018
Christopher S Jackson,Services,105,4/30/2018
Christopher S Jackson,Services,192.84,4/30/2018
Christopher S Jackson,Services,1595.35,4/30/2018
Christopher S Jackson,Services,393.13,4/30/2018
Christopher S Jackson,Services,24,12/3/2018
Christopher S Jackson,Services,40,12/3/2018
Christopher S Jackson,Services,378.56,12/3/2018
Christopher S Jackson,Services,165,12/3/2018
Christopher S Jackson,Services,60,12/3/2018
Christy Webber & Co.,Services,3791,5/17/2018
Christy Webber & Co.,Services,5987,5/17/2018
Christy Webber & Co.,Services,3791,6/11/2018
Christy Webber & Co.,Services,5987,6/11/2018
Christy Webber & Co.,Services,3791,7/10/2018
Christy Webber & Co.,Services,13659,7/10/2018
Christy Webber & Co.,Materials,3791,8/1/2018
Christy Webber & Co.,Materials,5987,8/1/2018
Christy Webber & Co.,Services,3791,9/10/2018
Christy Webber & Co.,Services,5987,9/10/2018
Christy Webber & Co.,Services,3791,10/4/2018
Christy Webber & Co.,Services,5987,10/4/2018
Christy Webber & Co.,Services,3791,11/13/2018
Christy Webber & Co.,Services,5987,11/13/2018
Ciera Stipe,Services,523.2,8/14/2018
"CIOX Health, LLC",Claims & Insurance,124.07,6/1/2018
"CIOX Health, LLC",Claims & Insurance,54.11,8/3/2018
"CIOX Health, LLC",Claims & Insurance,106.76,12/5/2018
"CIOX Health, LLC",Claims & Insurance,20,12/5/2018
Circle Tractor,Materials,484.62,4/5/2018
Circle Tractor,Services,150,4/5/2018
Cisco Systems,Services,4590,3/14/2018
City Club Of Chicago,Services,85,1/16/2018
City Club Of Chicago,Services,35,1/22/2018
City Club Of Chicago,Services,420,2/5/2018
City Club Of Chicago,Services,100,2/8/2018
City Club Of Chicago,Services,85,2/15/2018
City Club Of Chicago,Services,935,4/25/2018
City Club Of Chicago,Services,35,5/9/2018
City Club Of Chicago,Services,50,5/22/2018
City Club Of Chicago,Services,750,6/6/2018
City Club Of Chicago,Services,320,10/23/2018
City Of Blue Island,Utilities,123.84,1/10/2018
City Of Blue Island,Utilities,412.8,1/10/2018
City Of Blue Island,Utilities,16.51,1/10/2018
City Of Blue Island,Utilities,24.77,1/10/2018
City Of Blue Island,Utilities,136.22,1/10/2018
City Of Blue Island,Utilities,517.38,1/10/2018
City Of Blue Island,Utilities,511.87,1/10/2018
City Of Blue Island,Utilities,553.15,2/7/2018
City Of Blue Island,Utilities,123.84,2/8/2018
City Of Blue Island,Utilities,16.51,2/8/2018
City Of Blue Island,Utilities,16.51,2/8/2018
City Of Blue Island,Utilities,123.84,2/8/2018
City Of Blue Island,Utilities,281.53,2/8/2018
City Of Blue Island,Utilities,298.87,2/8/2018
City Of Blue Island,Utilities,378.4,2/9/2018
City Of Blue Island,Utilities,123.84,3/6/2018
City Of Blue Island,Utilities,18.16,3/6/2018
City Of Blue Island,Utilities,16.51,3/6/2018
City Of Blue Island,Utilities,123.84,3/6/2018
City Of Blue Island,Utilities,558.66,3/6/2018
City Of Blue Island,Utilities,379.77,3/6/2018
City Of Blue Island,Utilities,462.34,4/2/2018
City Of Blue Island,Utilities,123.84,4/9/2018
City Of Blue Island,Utilities,574.61,4/9/2018
City Of Blue Island,Utilities,16.51,4/9/2018
City Of Blue Island,Utilities,16.51,4/9/2018
City Of Blue Island,Utilities,123.84,4/9/2018
City Of Blue Island,Utilities,566.91,4/9/2018
City Of Blue Island,Utilities,16.51,4/9/2018
City Of Blue Island,Utilities,123.84,5/8/2018
City Of Blue Island,Utilities,520.13,5/8/2018
City Of Blue Island,Utilities,16.51,5/8/2018
City Of Blue Island,Utilities,16.51,5/8/2018
City Of Blue Island,Utilities,123.84,5/8/2018
City Of Blue Island,Utilities,550.4,5/8/2018
City Of Blue Island,Utilities,33.02,5/8/2018
City Of Blue Island,Utilities,123.84,6/12/2018
City Of Blue Island,Utilities,470.59,6/12/2018
City Of Blue Island,Utilities,16.51,6/12/2018
City Of Blue Island,Utilities,16.51,6/12/2018
City Of Blue Island,Utilities,123.84,6/12/2018
City Of Blue Island,Utilities,525.63,6/12/2018
City Of Blue Island,Utilities,16.51,6/12/2018
City Of Blue Island,Utilities,123.84,7/9/2018
City Of Blue Island,Utilities,577.92,7/9/2018
City Of Blue Island,Utilities,16.51,7/9/2018
City Of Blue Island,Utilities,33.02,7/9/2018
City Of Blue Island,Utilities,123.84,7/9/2018
City Of Blue Island,Utilities,616.45,7/9/2018
City Of Blue Island,Utilities,16.51,7/9/2018
City Of Blue Island,Utilities,123.84,8/15/2018
City Of Blue Island,Utilities,478.85,8/15/2018
City Of Blue Island,Utilities,16.51,8/15/2018
City Of Blue Island,Utilities,33.02,8/15/2018
City Of Blue Island,Utilities,123.84,8/15/2018
City Of Blue Island,Utilities,575.17,8/15/2018
City Of Blue Island,Utilities,16.51,8/15/2018
City Of Blue Island,Utilities,160.73,9/10/2018
City Of Blue Island,Utilities,435.16,9/10/2018
City Of Blue Island,Utilities,21.43,9/10/2018
City Of Blue Island,Utilities,23.08,9/10/2018
City Of Blue Island,Utilities,160.73,9/10/2018
City Of Blue Island,Utilities,726.66,9/10/2018
City Of Blue Island,Utilities,21.43,9/10/2018
City Of Blue Island,Utilities,148.35,10/3/2018
City Of Blue Island,Utilities,534.06,10/3/2018
City Of Blue Island,Utilities,19.78,10/3/2018
City Of Blue Island,Utilities,19.78,10/3/2018
City Of Blue Island,Utilities,148.35,10/3/2018
City Of Blue Island,Utilities,748.26,10/3/2018
City Of Blue Island,Utilities,19.78,10/3/2018
City Of Blue Island,Utilities,148.35,11/9/2018
City Of Blue Island,Utilities,504.39,11/9/2018
City Of Blue Island,Utilities,19.78,11/9/2018
City Of Blue Island,Utilities,19.78,11/9/2018
City Of Blue Island,Utilities,148.35,11/9/2018
City Of Blue Island,Utilities,688.92,11/9/2018
City Of Blue Island,Utilities,19.78,11/9/2018
City Of Blue Island,Utilities,148.35,12/7/2018
City Of Blue Island,Utilities,395.6,12/7/2018
City Of Blue Island,Utilities,19.78,12/7/2018
City Of Blue Island,Utilities,19.78,12/7/2018
City Of Blue Island,Utilities,148.35,12/7/2018
City Of Blue Island,Utilities,659.25,12/7/2018
City Of Blue Island,Utilities,39.56,12/7/2018
City Of Crystal Lake,Services,5000,10/10/2018
City Of Elgin,Utilities,189.53,1/4/2018
City Of Elgin,Utilities,462.03,1/10/2018
City Of Elgin,Utilities,40.15,1/11/2018
City Of Elgin,Utilities,232.23,1/11/2018
City Of Elgin,Utilities,175.25,2/1/2018
City Of Elgin,Utilities,39.44,2/9/2018
City Of Elgin,Utilities,740.34,2/9/2018
City Of Elgin,Utilities,197.16,2/28/2018
City Of Elgin,Utilities,54.33,3/7/2018
City Of Elgin,Utilities,225.96,3/7/2018
City Of Elgin,Utilities,508.02,3/8/2018
City Of Elgin,Utilities,177.3,4/2/2018
City Of Elgin,Utilities,213.3,4/9/2018
City Of Elgin,Utilities,449.05,4/10/2018
City Of Elgin,Utilities,456.87,4/10/2018
City Of Elgin,Utilities,208.96,5/1/2018
City Of Elgin,Utilities,61.39,5/8/2018
City Of Elgin,Utilities,797.3,5/8/2018
City Of Elgin,Utilities,189.96,6/1/2018
City Of Elgin,Utilities,54.33,6/14/2018
City Of Elgin,Utilities,698.48,6/14/2018
City Of Elgin,Utilities,190.83,7/2/2018
City Of Elgin,Utilities,61.07,7/17/2018
City Of Elgin,Utilities,776.19,7/17/2018
City Of Elgin,Utilities,208.96,7/30/2018
City Of Elgin,Utilities,47.6,8/9/2018
City Of Elgin,Utilities,729.43,8/9/2018
City Of Elgin,Utilities,197.52,8/29/2018
City Of Elgin,Utilities,48.29,9/13/2018
City Of Elgin,Utilities,717.92,9/13/2018
City Of Elgin,Utilities,183.63,9/27/2018
City Of Elgin,Utilities,55.37,10/11/2018
City Of Elgin,Utilities,819.03,10/11/2018
City Of Elgin,Utilities,210.18,10/29/2018
City Of Elgin,Utilities,55.37,11/9/2018
City Of Elgin,Utilities,746.58,11/9/2018
City Of Elgin,Utilities,183.63,11/29/2018
City Of Elgin,Utilities,63.72,12/13/2018
City Of Elgin,Utilities,817.46,12/13/2018
City Of Harvey Water Department,Utilities,54.48,1/12/2018
City Of Harvey Water Department,Utilities,52.49,2/14/2018
City Of Harvey Water Department,Utilities,33.03,3/7/2018
City Of Harvey Water Department,Utilities,32.67,4/9/2018
City Of Harvey Water Department,Utilities,32.89,5/8/2018
City Of Harvey Water Department,Utilities,36.28,6/14/2018
City Of Harvey Water Department,Utilities,36.19,7/18/2018
City Of Harvey Water Department,Utilities,34.42,8/15/2018
City Of Harvey Water Department,Utilities,37.4,9/13/2018
City Of Harvey Water Department,Utilities,42.21,10/8/2018
City Of Harvey Water Department,Utilities,32.97,11/7/2018
City Of Harvey Water Department,Utilities,35.3,12/7/2018
City Of Highland Park,Utilities,27.8,3/14/2018
City Of Highland Park,Utilities,27.8,6/25/2018
City Of Highland Park,Utilities,27.8,9/18/2018
City Of Highland Park,Utilities,27.8,12/13/2018
City Of Joliet,Utilities,17.89,1/3/2018
City Of Joliet,Utilities,65.78,1/5/2018
City Of Joliet,Utilities,101.17,2/8/2018
City Of Joliet,Utilities,1718.22,3/8/2018
City Of Joliet,Utilities,369.68,3/21/2018
City Of Joliet,Utilities,483.64,4/10/2018
City Of Joliet,Utilities,142,5/8/2018
City Of Joliet,Utilities,840.85,6/6/2018
City Of Oak Forest Ill.,Utilities,76.56,1/18/2018
City Of Oak Forest Ill.,Utilities,56.04,4/20/2018
City Of Oak Forest Ill.,Utilities,67.3,7/18/2018
City Of Oak Forest Ill.,Utilities,67.75,10/19/2018
Claeven  Ltd.,Services,1265,1/2/2018
Claeven  Ltd.,Services,632.5,1/2/2018
Claeven  Ltd.,Services,532.5,1/2/2018
Claeven  Ltd.,Services,287.5,1/8/2018
Claeven  Ltd.,Services,402.5,1/11/2018
Claeven  Ltd.,Services,805,1/16/2018
Claeven  Ltd.,Services,657,1/17/2018
Claeven  Ltd.,Services,287.5,1/24/2018
Claeven  Ltd.,Services,632.5,1/24/2018
Claeven  Ltd.,Services,402.5,1/26/2018
Claeven  Ltd.,Services,747.5,2/1/2018
Claeven  Ltd.,Services,747.5,2/2/2018
Claeven  Ltd.,Services,862.5,2/9/2018
Claeven  Ltd.,Services,402.5,2/15/2018
Claeven  Ltd.,Services,805,2/20/2018
Claeven  Ltd.,Services,862.5,2/20/2018
Claeven  Ltd.,Services,4500,2/20/2018
Claeven  Ltd.,Services,1437.5,2/22/2018
Claeven  Ltd.,Services,287.5,2/22/2018
Claeven  Ltd.,Services,632.5,3/1/2018
Claeven  Ltd.,Services,1092.5,3/7/2018
Claeven  Ltd.,Services,862.5,3/7/2018
Claeven  Ltd.,Services,287.5,3/9/2018
Claeven  Ltd.,Services,2567.5,3/12/2018
Claeven  Ltd.,Services,437,3/12/2018
Claeven  Ltd.,Services,632.5,3/16/2018
Claeven  Ltd.,Services,977.5,3/26/2018
Claeven  Ltd.,Services,1745,4/2/2018
Claeven  Ltd.,Services,1552.5,4/3/2018
Claeven  Ltd.,Services,1610,4/3/2018
Claeven  Ltd.,Services,1006.25,4/6/2018
Claeven  Ltd.,Services,1380,4/6/2018
Claeven  Ltd.,Services,1380,4/11/2018
Claeven  Ltd.,Services,1552.5,4/11/2018
Claeven  Ltd.,Services,632.5,4/16/2018
Claeven  Ltd.,Services,1380,4/16/2018
Claeven  Ltd.,Services,437,4/16/2018
Claeven  Ltd.,Services,862.5,4/16/2018
Claeven  Ltd.,Services,1121.25,4/17/2018
Claeven  Ltd.,Services,632.5,4/18/2018
Claeven  Ltd.,Services,402.5,4/20/2018
Claeven  Ltd.,Services,517.5,4/20/2018
Claeven  Ltd.,Services,287.5,4/23/2018
Claeven  Ltd.,Services,402.5,4/24/2018
Claeven  Ltd.,Services,287.5,5/1/2018
Claeven  Ltd.,Services,1840,5/7/2018
Claeven  Ltd.,Services,632.5,5/8/2018
Claeven  Ltd.,Services,517.5,5/10/2018
Claeven  Ltd.,Services,632.5,5/10/2018
Claeven  Ltd.,Services,402.5,5/11/2018
Claeven  Ltd.,Services,1759.5,5/11/2018
Claeven  Ltd.,Services,862.5,5/14/2018
Claeven  Ltd.,Services,632.5,5/14/2018
Claeven  Ltd.,Services,402.5,5/14/2018
Claeven  Ltd.,Services,1380,5/15/2018
Claeven  Ltd.,Services,747.5,5/17/2018
Claeven  Ltd.,Services,1725,5/18/2018
Claeven  Ltd.,Services,402.5,5/25/2018
Claeven  Ltd.,Services,437,5/25/2018
Claeven  Ltd.,Services,632.5,6/1/2018
Claeven  Ltd.,Services,747.5,6/4/2018
Claeven  Ltd.,Services,437.5,6/11/2018
Claeven  Ltd.,Services,977.5,6/11/2018
Claeven  Ltd.,Services,402.5,6/11/2018
Claeven  Ltd.,Services,437.5,6/12/2018
Claeven  Ltd.,Services,812.5,6/12/2018
Claeven  Ltd.,Services,812.5,6/12/2018
Claeven  Ltd.,Services,437.5,6/15/2018
Claeven  Ltd.,Services,687.5,6/20/2018
Claeven  Ltd.,Services,747.5,6/21/2018
Claeven  Ltd.,Services,1292.5,6/22/2018
Claeven  Ltd.,Services,312.5,6/22/2018
Claeven  Ltd.,Services,1812.5,6/25/2018
Claeven  Ltd.,Services,1387.5,6/27/2018
Claeven  Ltd.,Services,937.5,6/29/2018
Claeven  Ltd.,Services,1562.5,7/2/2018
Claeven  Ltd.,Services,437.5,7/3/2018
Claeven  Ltd.,Services,312.5,7/16/2018
Claeven  Ltd.,Services,1125,7/17/2018
Claeven  Ltd.,Services,437.5,7/18/2018
Claeven  Ltd.,Services,875,7/23/2018
Claeven  Ltd.,Services,812.5,7/25/2018
Claeven  Ltd.,Services,437.5,7/27/2018
Claeven  Ltd.,Services,437.5,7/30/2018
Claeven  Ltd.,Services,500,8/1/2018
Claeven  Ltd.,Services,1100,8/8/2018
Claeven  Ltd.,Services,1812.5,8/15/2018
Claeven  Ltd.,Services,437.5,8/17/2018
Claeven  Ltd.,Services,1250,8/21/2018
Claeven  Ltd.,Services,750,8/21/2018
Claeven  Ltd.,Services,437.5,8/21/2018
Claeven  Ltd.,Services,687.5,8/24/2018
Claeven  Ltd.,Services,1250,8/24/2018
Claeven  Ltd.,Services,312.5,8/24/2018
Claeven  Ltd.,Services,437.5,9/4/2018
Claeven  Ltd.,Services,437.5,9/10/2018
Claeven  Ltd.,Services,1687.5,9/10/2018
Claeven  Ltd.,Services,687.5,9/10/2018
Claeven  Ltd.,Services,437.5,9/11/2018
Claeven  Ltd.,Services,562.5,9/12/2018
Claeven  Ltd.,Services,2625,9/13/2018
Claeven  Ltd.,Services,2375,9/14/2018
Claeven  Ltd.,Services,312.5,9/17/2018
Claeven  Ltd.,Services,787.5,9/19/2018
Claeven  Ltd.,Services,437.5,9/21/2018
Claeven  Ltd.,Services,1937.5,9/21/2018
Claeven  Ltd.,Services,750,9/26/2018
Claeven  Ltd.,Services,937.5,9/27/2018
Claeven  Ltd.,Services,437.5,10/1/2018
Claeven  Ltd.,Services,437.5,10/1/2018
Claeven  Ltd.,Services,462.5,10/1/2018
Claeven  Ltd.,Services,1625,10/2/2018
Claeven  Ltd.,Services,687.5,10/3/2018
Claeven  Ltd.,Services,437.5,10/8/2018
Claeven  Ltd.,Services,812.5,10/9/2018
Claeven  Ltd.,Services,875,10/12/2018
Claeven  Ltd.,Services,437.5,10/12/2018
Claeven  Ltd.,Services,437.5,10/16/2018
Claeven  Ltd.,Services,1312.5,10/16/2018
Claeven  Ltd.,Services,937.5,10/18/2018
Claeven  Ltd.,Services,750,10/25/2018
Claeven  Ltd.,Services,1937.5,11/1/2018
Claeven  Ltd.,Services,312.5,11/1/2018
Claeven  Ltd.,Services,437.5,11/5/2018
Claeven  Ltd.,Services,750,11/12/2018
Claeven  Ltd.,Services,1000,11/14/2018
Claeven  Ltd.,Services,812.5,11/14/2018
Claeven  Ltd.,Services,562.5,11/14/2018
Claeven  Ltd.,Services,1937.5,11/15/2018
Claeven  Ltd.,Services,687.5,11/21/2018
Claeven  Ltd.,Services,2187.5,11/27/2018
Claeven  Ltd.,Services,312.5,11/29/2018
Claeven  Ltd.,Services,1312.5,12/3/2018
Claeven  Ltd.,Services,812.5,12/11/2018
Claeven  Ltd.,Services,812.5,12/11/2018
Claeven  Ltd.,Services,1250,12/17/2018
Claeven  Ltd.,Services,812.5,12/17/2018
Claeven  Ltd.,Services,875,12/17/2018
Claeven  Ltd.,Services,312.5,12/27/2018
"ClaimFox, Inc.",Services,117.9,8/10/2018
Clarity Partners  Llc,Services,22767.45,1/2/2018
Clarity Partners  Llc,Services,6018.75,1/2/2018
Clarity Partners  Llc,Services,22191.43,2/1/2018
Clarity Partners  Llc,Services,3146.25,2/1/2018
Clarity Partners  Llc,Services,37192.89,3/14/2018
Clarity Partners  Llc,Services,7958.75,3/14/2018
Clarity Partners  Llc,Services,19567.15,4/5/2018
Clarity Partners  Llc,Services,18536.25,4/5/2018
Clarity Partners  Llc,Services,14978.75,5/8/2018
Clarity Partners  Llc,Services,21098.19,5/8/2018
Clarity Partners  Llc,Services,20095.2,5/15/2018
Clarity Partners  Llc,Services,20353.75,5/15/2018
Clarity Partners  Llc,Services,61169.01,7/19/2018
Clarity Partners  Llc,Services,22820,7/19/2018
Clarity Partners  Llc,Services,24388.8,8/23/2018
Clarity Partners  Llc,Services,8058.75,8/23/2018
Clarity Partners  Llc,Services,27751.81,9/26/2018
Clarity Partners  Llc,Services,8546.25,9/26/2018
Clarity Partners  Llc,Services,23829.72,10/11/2018
Clarity Partners  Llc,Services,6826.25,10/11/2018
Clarity Partners  Llc,Services,33372.25,11/16/2018
Clarity Partners  Llc,Services,11551.25,11/16/2018
Clarity Partners  Llc,Services,25610.53,12/19/2018
Clarity Partners  Llc,Services,4216.25,12/19/2018
Clark Filter C/O Unity Railway Supply Co.  Inc.,Materials,3396.68,2/8/2018
Clark Filter C/O Unity Railway Supply Co.  Inc.,Materials,5983.22,4/5/2018
Clark Filter C/O Unity Railway Supply Co.  Inc.,Materials,2510.16,4/13/2018
Clark Filter C/O Unity Railway Supply Co.  Inc.,Materials,1191.84,4/17/2018
Clark Filter C/O Unity Railway Supply Co.  Inc.,Materials,1685.04,4/24/2018
Clark Filter C/O Unity Railway Supply Co.  Inc.,Materials,1065.96,5/2/2018
Clark Filter C/O Unity Railway Supply Co.  Inc.,Materials,709.44,5/11/2018
Clark Filter C/O Unity Railway Supply Co.  Inc.,Materials,1466.88,5/18/2018
Clark Filter C/O Unity Railway Supply Co.  Inc.,Materials,687.54,5/23/2018
Clark Filter C/O Unity Railway Supply Co.  Inc.,Materials,3606.36,6/5/2018
Clark Filter C/O Unity Railway Supply Co.  Inc.,Materials,4668.56,7/25/2018
Clark Filter C/O Unity Railway Supply Co.  Inc.,Materials,2856.88,8/28/2018
Clark Filter C/O Unity Railway Supply Co.  Inc.,Materials,2369.12,9/10/2018
Clark Filter C/O Unity Railway Supply Co.  Inc.,Materials,2653.42,9/18/2018
Clark Filter C/O Unity Railway Supply Co.  Inc.,Materials,257.6,10/2/2018
Clark Filter C/O Unity Railway Supply Co.  Inc.,Materials,3656.92,10/26/2018
Clark Filter C/O Unity Railway Supply Co.  Inc.,Materials,589.32,10/30/2018
Clark Filter C/O Unity Railway Supply Co.  Inc.,Materials,1283.84,11/20/2018
Clark Filter C/O Unity Railway Supply Co.  Inc.,Materials,687.54,11/28/2018
Claude Colbert,Services,273.12,10/26/2018
Claybourne Miller,Services,308.74,1/12/2018
Claybourne Miller,Services,174.73,2/6/2018
Claybourne Miller,Services,139.78,2/7/2018
Claybourne Miller,Services,139.78,3/1/2018
Claybourne Miller,Services,139.78,3/14/2018
Claybourne Miller,Services,139.52,3/22/2018
Claybourne Miller,Services,139.52,4/17/2018
Claybourne Miller,Services,174.4,4/24/2018
Claybourne Miller,Services,174.4,5/11/2018
Claybourne Miller,Services,139.52,5/21/2018
Claybourne Miller,Services,139.52,6/7/2018
Claybourne Miller,Services,104.64,6/27/2018
Claybourne Miller,Services,104.64,7/19/2018
Claybourne Miller,Services,174.4,8/2/2018
Claybourne Miller,Services,209.28,8/14/2018
Claybourne Miller,Services,139.52,8/16/2018
Claybourne Miller,Services,69.76,9/10/2018
Claybourne Miller,Services,139.52,9/24/2018
Claybourne Miller,Services,174.4,10/10/2018
Claybourne Miller,Services,174.4,10/22/2018
Claybourne Miller,Services,139.52,11/8/2018
Claybourne Miller,Services,139.52,12/4/2018
Claybourne Miller,Services,139.52,12/6/2018
Claybourne Miller,Services,69.76,12/26/2018
Cle L Shaw,Services,20.1,8/2/2018
Cle L Shaw,Services,6.7,10/18/2018
Cle Shaw,Services,20.1,8/2/2018
Cle Shaw,Services,6.7,10/18/2018
Cleaning Specialist  Inc.,Services,4869,1/2/2018
Cleaning Specialist  Inc.,Services,2790,1/16/2018
Cleaning Specialist  Inc.,Services,3117,1/26/2018
Cleaning Specialist  Inc.,Services,657,2/16/2018
Cleaning Specialist  Inc.,Services,3479.53,2/21/2018
Cleaning Specialist  Inc.,Capital Purchases,1750,3/1/2018
Cleaning Specialist  Inc.,Services,2875.3,3/1/2018
Cleaning Specialist  Inc.,Services,4584.5,3/13/2018
Cleaning Specialist  Inc.,Services,2698,4/2/2018
Cleaning Specialist  Inc.,Capital Purchases,5250,4/5/2018
Cleaning Specialist  Inc.,Services,2745,4/23/2018
Cleaning Specialist  Inc.,Services,2106,4/30/2018
Cleaning Specialist  Inc.,Capital Purchases,700,5/4/2018
Cleaning Specialist  Inc.,Services,2255,5/11/2018
Cleaning Specialist  Inc.,Capital Purchases,350,5/16/2018
Cleaning Specialist  Inc.,Services,2653,5/29/2018
Cleaning Specialist  Inc.,Services,792,6/12/2018
Cleaning Specialist  Inc.,Capital Purchases,2450,7/10/2018
Cleaning Specialist  Inc.,Capital Purchases,350,7/17/2018
Cleaning Specialist  Inc.,Services,608,7/23/2018
Cleaning Specialist  Inc.,Capital Purchases,350,8/1/2018
Cleaning Specialist  Inc.,Services,3145,8/1/2018
Cleaning Specialist  Inc.,Services,2395.5,8/15/2018
Cleaning Specialist  Inc.,Services,518,9/11/2018
Cleaning Specialist  Inc.,Services,460,9/13/2018
Cleaning Specialist  Inc.,Services,6285,9/14/2018
Cleaning Specialist  Inc.,Services,3017.5,9/17/2018
Cleaning Specialist  Inc.,Services,3447,9/19/2018
Cleaning Specialist  Inc.,Capital Purchases,5950,10/1/2018
Cleaning Specialist  Inc.,Services,2767,10/29/2018
Cleaning Specialist  Inc.,Services,6001,11/6/2018
Cleaning Specialist  Inc.,Capital Purchases,2100,12/3/2018
Clemetina Garcia,Claims & Insurance,1500,9/13/2018
Clerk of Lake,Claims & Insurance,157,1/11/2018
Clerk of the Circuit Court of Cook County,Claims & Insurance,20,5/14/2018
Clerk of the Circuit Court of Cook County,Claims & Insurance,24.75,5/18/2018
Clerk of the Circuit Court of Cook County,Claims & Insurance,172,5/21/2018
Clerk of the Circuit Court of Cook County,Services,5,5/21/2018
Clifford Lao,Services,87.2,8/2/2018
"Clifford Law Offices, PC",Claims & Insurance,230000,4/17/2018
"Clifford Law Offices, PC",Claims & Insurance,30000,8/23/2018
"Clifford Law Offices, PC",Claims & Insurance,26296,9/5/2018
"Clifford Law Offices, PC",Claims & Insurance,630,9/24/2018
Cody James Gillespie,Services,2101.51,10/15/2018
Cody Johnson,Services,251.45,1/10/2018
Cody Johnson,Services,204.92,2/15/2018
Cody Johnson,Services,153.69,3/19/2018
Cody Johnson,Services,204.92,4/20/2018
Cody Johnson,Services,102.46,5/21/2018
Cody Johnson,Services,51.23,5/21/2018
Cody Johnson,Services,2123.13,10/29/2018
"Cogan and Power, P. C.",Claims & Insurance,4860.46,2/2/2018
"Cogan and Power, P. C.",Claims & Insurance,140,3/28/2018
"Cogan and Power, P. C.",Claims & Insurance,35000,5/17/2018
"Cogan and Power, P. C.",Claims & Insurance,750,5/17/2018
"Cogan and Power, P. C.",Claims & Insurance,116282.9,8/8/2018
Colleen Sons,Services,4880.01,9/21/2018
Colleen Sons,Services,4916.12,9/28/2018
Colleen Sons,Services,261.97,10/8/2018
College of Dupage,Services,8778.66,1/9/2018
Collins Bargione & Vukovich,Claims & Insurance,438.62,8/21/2018
Collins Bargione & Vukovich,Claims & Insurance,76.35,8/21/2018
Collins Bargione & Vukovich,Claims & Insurance,201.5,8/21/2018
Collins Bargione & Vukovich,Claims & Insurance,389.85,8/21/2018
Com Ed-Real Estate Dept.  4Th Fl.,Rental Expense,5811.12,2/14/2018
Com Ed-Real Estate Dept.  4Th Fl.,Rental Expense,1015.16,2/20/2018
Com Ed-Real Estate Dept.  4Th Fl.,Services,519.96,3/20/2018
Com Ed-Real Estate Dept.  4Th Fl.,Rental Expense,641.89,5/10/2018
Com Ed-Real Estate Dept.  4Th Fl.,Rental Expense,946.05,5/22/2018
Com Ed-Real Estate Dept.  4Th Fl.,Rental Expense,314.48,5/22/2018
Com Ed-Real Estate Dept.  4Th Fl.,Rental Expense,521.19,6/6/2018
Com Ed-Real Estate Dept.  4Th Fl.,Rental Expense,519.96,6/27/2018
Com Ed-Real Estate Dept.  4Th Fl.,Rental Expense,519.96,7/30/2018
Com Ed-Real Estate Dept.  4Th Fl.,Rental Expense,519.96,9/10/2018
Com Ed-Real Estate Dept.  4Th Fl.,Rental Expense,519.96,9/25/2018
Com Ed-Real Estate Dept.  4Th Fl.,Rental Expense,519.96,10/30/2018
Com Ed-Real Estate Dept.  4Th Fl.,Rental Expense,519.96,11/30/2018
Comcast,Services,4774.06,1/12/2018
Comcast,Services,4822.54,2/8/2018
Comcast,Services,4827.54,3/8/2018
Comcast,Services,4827.54,4/11/2018
Comcast,Services,4867.24,5/9/2018
Comcast,Services,4867.24,6/5/2018
Comcast,Services,4867.24,7/9/2018
Comcast,Services,4327.18,8/7/2018
Comcast,Services,540,8/7/2018
Comcast,Services,4329.72,9/11/2018
Comcast,Services,540,9/11/2018
Comcast,Services,4339.5,10/9/2018
Comcast,Services,540,10/9/2018
Comcast,Services,4259.3,11/6/2018
Comcast,Services,540,11/6/2018
Comcast,Services,4282.31,12/4/2018
Comcast,Services,540,12/4/2018
Comcast Business,Services,6000,1/12/2018
Comcast Business,Services,46905.72,1/12/2018
Comcast Business,Services,6000,2/22/2018
Comcast Business,Services,48813.01,2/22/2018
Comcast Business,Services,6000,3/15/2018
Comcast Business,Services,52022.45,3/15/2018
Comcast Business,Services,51949.46,4/13/2018
Comcast Business,Utilities,6000,4/13/2018
Comcast Business,Utilities,6000,5/17/2018
Comcast Business,Utilities,51493.25,5/17/2018
Comcast Business,Utilities,6000,6/21/2018
Comcast Business,Utilities,31042.51,6/21/2018
Comcast Business,Utilities,6000,7/12/2018
Comcast Business,Utilities,38479.41,7/12/2018
Comcast Business,Utilities,31728.66,8/28/2018
Comcast Business,Utilities,12275,8/28/2018
Comcast Business,Utilities,31715.52,9/21/2018
Comcast Business,Utilities,12300,9/21/2018
Comcast Business,Utilities,5659.41,10/16/2018
Comcast Business,Utilities,2200,10/16/2018
Comcast Business,Utilities,31794.27,11/15/2018
Comcast Business,Utilities,12300,11/15/2018
Comcast Business,Utilities,33082.06,12/18/2018
Comcast Business,Utilities,12800,12/18/2018
Commercial Tire Service,Services,1471.48,1/2/2018
Commercial Tire Service,Services,391.31,1/8/2018
Commercial Tire Service,Services,2794.21,1/10/2018
Commercial Tire Service,Services,842.28,1/26/2018
Commercial Tire Service,Services,571.08,2/1/2018
Commercial Tire Service,Services,797.28,2/5/2018
Commercial Tire Service,Services,2834.78,2/7/2018
Commercial Tire Service,Services,366.63,2/8/2018
Commercial Tire Service,Services,290,2/21/2018
Commercial Tire Service,Services,1067.11,3/1/2018
Commercial Tire Service,Services,20,3/13/2018
Commercial Tire Service,Services,335.06,3/20/2018
Commercial Tire Service,Services,1560.98,3/21/2018
Commercial Tire Service,Services,925.92,3/22/2018
Commercial Tire Service,Services,4305.38,4/2/2018
Commercial Tire Service,Services,391.31,4/3/2018
Commercial Tire Service,Services,1365.53,4/13/2018
Commercial Tire Service,Services,1125.24,4/17/2018
Commercial Tire Service,Services,275.04,4/27/2018
Commercial Tire Service,Services,135,5/1/2018
Commercial Tire Service,Services,313.48,5/2/2018
Commercial Tire Service,Services,188.82,5/10/2018
Commercial Tire Service,Services,2818.23,5/10/2018
Commercial Tire Service,Services,1002.83,5/16/2018
Commercial Tire Service,Services,162.5,5/23/2018
Commercial Tire Service,Services,607,5/25/2018
Commercial Tire Service,Services,60,6/5/2018
Commercial Tire Service,Services,761.32,6/15/2018
Commercial Tire Service,Services,1195.92,6/19/2018
Commercial Tire Service,Services,721.32,6/20/2018
Commercial Tire Service,Services,797.28,6/21/2018
Commercial Tire Service,Services,20,7/2/2018
Commercial Tire Service,Services,2253.07,7/2/2018
Commercial Tire Service,Services,312.94,7/17/2018
Commercial Tire Service,Services,155,7/23/2018
Commercial Tire Service,Services,20,7/25/2018
Commercial Tire Service,Services,3807.66,8/24/2018
Commercial Tire Service,Services,1584.11,8/29/2018
Commercial Tire Service,Services,588.06,9/4/2018
Commercial Tire Service,Services,155,9/10/2018
Commercial Tire Service,Services,155,9/14/2018
Commercial Tire Service,Services,916.67,9/25/2018
Commercial Tire Service,Services,156.74,9/26/2018
Commercial Tire Service,Services,512.12,9/26/2018
Commercial Tire Service,Services,884.28,10/5/2018
Commercial Tire Service,Services,1898.86,10/10/2018
Commercial Tire Service,Services,869.28,10/26/2018
Commercial Tire Service,Services,1475.64,10/30/2018
